SERVICE_CODE,ORGANISATION_UNIT,EXPENDITURE_CATEGORY,EXPENDITURE_DESCRIPTION,EXPENDITURE_CODE,NARRATIVE,DATE,TRANSATION_CODE,NET_AMOUNT,SUPPLIER_CODE,SUPPLIER_NAME,FROM_DATE,TO_DATE,FINANCIAL_PERIOD_YEAR
CEO,LEGAL SERVICES,EMPLOYEES,APPOINTMENT EXPENSES,1301,P123786-SERVICE-PROPERTY SOLICITOR ADVERT COSTS,29/10/2023 00:00:00,279065,815,SA0133,SOWERBY ADVERTISING AND COMMUNICATIONS,25/9/2023 00:00:00,29/10/2023 00:00:00,P07-2024
P&V,SPORT AND LEISURE,EMPLOYEES,APPOINTMENT EXPENSES,1301,P123587-SERVICE-BUSINESS SUPP OFF VACANCY COSTS,17/10/2023 00:00:00,278605,712,SA0133,SOWERBY ADVERTISING AND COMMUNICATIONS,25/9/2023 00:00:00,29/10/2023 00:00:00,P07-2024
R&B,CORPORATE TRAINING,EMPLOYEES,TRAINING EXPENSES,1305,P123475-SERVICE-FIRE MARSHALL TRAINING 19/09/2023,10/03/2023 00:00,278115,990,RI0053,RIGHT DIRECTIONS (MANAGEMENT) LTD,25/9/2023 00:00:00,29/10/2023 00:00:00,P07-2024
R&B,CORPORATE TRAINING,EMPLOYEES,TRAINING EXPENSES,1305,P123479-SERVICE-IOSH MS Traing 4 extra delegates,10/10/2023 00:00,278130,1180,RI0053,RIGHT DIRECTIONS (MANAGEMENT) LTD,25/9/2023 00:00:00,29/10/2023 00:00:00,P07-2024
R&B,CORPORATE TRAINING,EMPLOYEES,TRAINING EXPENSES,1305,P123394-SERVICE-J WHITEHEAD FAW REQUAL 16/17 NOV 23,17/10/2023 00:00:00,278641,255,BR0069,BRITISH RED CROSS,25/9/2023 00:00:00,29/10/2023 00:00:00,P07-2024
R&B,CORPORATE TRAINING,EMPLOYEES,TRAINING EXPENSES,1305,P123650-SERVICE-G WILLIAMS FAW REQUAL 13/14 NOV 23,23/10/2023 00:00:00,278687,289,BR0069,BRITISH RED CROSS,25/9/2023 00:00:00,29/10/2023 00:00:00,P07-2024
R&B,CORPORATE TRAINING,EMPLOYEES,TRAINING EXPENSES,1305,P123665-SERVICE-EDI Training 17/10/2023,23/10/2023 00:00:00,278709,1147.31,KL0167,KLC EMPLOYMENT LAW CONSULTANTS,25/9/2023 00:00:00,29/10/2023 00:00:00,P07-2024
R&B,CORPORATE TRAINING,EMPLOYEES,TRAINING EXPENSES,1305,P121246-SERVICE-C CARTER 1ST AID COURSE 18-20/04/23,24/10/2023 00:00:00,278809,-419,BR0069,BRITISH RED CROSS,25/9/2023 00:00:00,29/10/2023 00:00:00,P07-2024
R&B,CORPORATE TRAINING,EMPLOYEES,TRAINING EXPENSES,1305,P121246-SERVICE-C CARTER 1ST AID COURSE 18-20/04/23,24/10/2023 00:00:00,278810,419,BR0069,BRITISH RED CROSS,25/9/2023 00:00:00,29/10/2023 00:00:00,P07-2024
R&B,CORPORATE TRAINING,EMPLOYEES,TRAINING EXPENSES,1305,P123750-SERVICE-PRACTICAL INVESTIGATION TRAINING 30/10/23 PC,29/10/2023 00:00:00,278893,195,VI0074,VINE HR LIMITED,25/9/2023 00:00:00,29/10/2023 00:00:00,P07-2024
P&V,NORTH AREA RANGERS,EMPLOYEES,TRAINING EXPENSES,1305,P123539-SERVICE-Project management for wildlife training,29/10/2023 00:00:00,278845,1760,WI0367,WILD TEAM,25/9/2023 00:00:00,29/10/2023 00:00:00,P07-2024
P&V,SOUTH AREA RANGERS,EMPLOYEES,TRAINING EXPENSES,1305,P123246-SERVICE-LANTRA Tree Inspection Training,24/10/2023 00:00:00,278128,1250,EA0421,EASTEC UK LTD,25/9/2023 00:00:00,29/10/2023 00:00:00,P07-2024
P&V,SOUTH AREA RANGERS,EMPLOYEES,TRAINING EXPENSES,1305,P123539-SERVICE-Project mamagment for Wildlife Training,29/10/2023 00:00:00,278845,1408,WI0367,WILD TEAM,25/9/2023 00:00:00,29/10/2023 00:00:00,P07-2024
R&B,NON DISTRIBUTED COSTS,EMPLOYEES,SUPERANNUATION ADDED YEARS,1310,Residual Liabilities,10/04/2023 00:00,278071,5276.2,LO0031,LONDON PENSIONS FUND AUTHORITY,25/9/2023 00:00:00,29/10/2023 00:00:00,P07-2024
R&B,NON DISTRIBUTED COSTS,EMPLOYEES,SUPERANNUATION ADDED YEARS,1310,Residual Liabilities,23/10/2023 00:00:00,278677,5276.2,LO0031,LONDON PENSIONS FUND AUTHORITY,25/9/2023 00:00:00,29/10/2023 00:00:00,P07-2024
,LEE VALLEY CAMPSITE,EMPLOYEES,CRB CHECKS,1330,HR-DBS Check,10/11/2023 00:00,278323,18,DD0119,DUE DILIGENCE CHECKING LIMITED,25/9/2023 00:00:00,29/10/2023 00:00:00,P07-2024
,LEE VALLEY CAMPSITE,EMPLOYEES,CRB CHECKS,1330,ADMIN FEE,10/11/2023 00:00,278323,18,DD0119,DUE DILIGENCE CHECKING LIMITED,25/9/2023 00:00:00,29/10/2023 00:00:00,P07-2024
P&V,MYDDELTON HOUSE GARDENS,EMPLOYEES,CRB CHECKS,1330,HR-DBS Check,10/11/2023 00:00,278323,18,DD0119,DUE DILIGENCE CHECKING LIMITED,25/9/2023 00:00:00,29/10/2023 00:00:00,P07-2024
P&V,MYDDELTON HOUSE GARDENS,EMPLOYEES,CRB CHECKS,1330,ADMIN FEE,10/11/2023 00:00,278323,18,DD0119,DUE DILIGENCE CHECKING LIMITED,25/9/2023 00:00:00,29/10/2023 00:00:00,P07-2024
P&V,NORTH AREA RANGERS,EMPLOYEES,CRB CHECKS,1330,HR-DBS Check,10/11/2023 00:00,278323,38,DD0119,DUE DILIGENCE CHECKING LIMITED,25/9/2023 00:00:00,29/10/2023 00:00:00,P07-2024
P&V,NORTH AREA RANGERS,EMPLOYEES,CRB CHECKS,1330,ADMIN FEE,10/11/2023 00:00,278323,18,DD0119,DUE DILIGENCE CHECKING LIMITED,25/9/2023 00:00:00,29/10/2023 00:00:00,P07-2024
P&V,SPORT AND LEISURE,EMPLOYEES,CRB CHECKS,1330,ADMIN FEE,10/11/2023 00:00,278323,18,DD0119,DUE DILIGENCE CHECKING LIMITED,25/9/2023 00:00:00,29/10/2023 00:00:00,P07-2024
P&V,SPORT AND LEISURE,EMPLOYEES,CRB CHECKS,1330,HR-DBS Check,10/11/2023 00:00,278323,18,DD0119,DUE DILIGENCE CHECKING LIMITED,25/9/2023 00:00:00,29/10/2023 00:00:00,P07-2024
,LV LEISURE CENTRE GOLF COURSE,EMPLOYEES,CRB CHECKS,1330,ADMIN FEE,10/11/2023 00:00,278323,18,DD0119,DUE DILIGENCE CHECKING LIMITED,25/9/2023 00:00:00,29/10/2023 00:00:00,P07-2024
R&B,INFORMATION TECHNOLOGY,EMPLOYEES,DRIVING LICENCE CHECKS,1335,S CLARK DRIVING LICENCE CHECK,10/11/2023 00:00,278331,6.25,FI0288,FIRST ADVANTAGE EUROPE LTD,25/9/2023 00:00:00,29/10/2023 00:00:00,P07-2024
P&V,SPORT AND LEISURE,EMPLOYEES,DRIVING LICENCE CHECKS,1335,L NORTH DRIVING LICENCE CHECK,10/11/2023 00:00,278331,6.25,FI0288,FIRST ADVANTAGE EUROPE LTD,25/9/2023 00:00:00,29/10/2023 00:00:00,P07-2024
P&V,SPORT AND LEISURE,EMPLOYEES,DRIVING LICENCE CHECKS,1335,P BLACKWELL DRIVING LICENCE CHECK,10/11/2023 00:00,278331,6.25,FI0288,FIRST ADVANTAGE EUROPE LTD,25/9/2023 00:00:00,29/10/2023 00:00:00,P07-2024
R&B,CORPORATE TRAINING,EMPLOYEES,APPRENTICE LEVY,1390,PAYE,10/10/2023 00:00,278342,934,HM0368,HMRC,25/9/2023 00:00:00,29/10/2023 00:00:00,P07-2024
CEO,LVLC SERVICE CHARGE,PREMISES RELATED EXPENDITURE,SCHEDULED GROUND MAINTENANCE,2111,Sep-23,18/10/2023 00:00:00,278469,3023.46,GL0214,GLENDALE GROUNDS MANAGEMENT LIMITED,25/9/2023 00:00:00,29/10/2023 00:00:00,P07-2024
CEO,LVLC SERVICE CHARGE,PREMISES RELATED EXPENDITURE,SCHEDULED GROUND MAINTENANCE,2111,Sep-23,18/10/2023 00:00:00,278469,110.27,GL0214,GLENDALE GROUNDS MANAGEMENT LIMITED,25/9/2023 00:00:00,29/10/2023 00:00:00,P07-2024
CEO,LVLC SERVICE CHARGE,PREMISES RELATED EXPENDITURE,SCHEDULED GROUND MAINTENANCE,2111,P123397-SERVICE-Car Park Grass Cutting,25/10/2023 00:00:00,278632,300,PA0222,PARKIN & PARKER TREE SPECIALISTS,25/9/2023 00:00:00,29/10/2023 00:00:00,P07-2024
CEO,LVLC SERVICE CHARGE,PREMISES RELATED EXPENDITURE,SCHEDULED GROUND MAINTENANCE,2111,P123397-SERVICE-Lime Tree Crown,25/10/2023 00:00:00,278632,350,PA0222,PARKIN & PARKER TREE SPECIALISTS,25/9/2023 00:00:00,29/10/2023 00:00:00,P07-2024
CEO,LVLC SERVICE CHARGE,PREMISES RELATED EXPENDITURE,SCHEDULED GROUND MAINTENANCE,2111,P123397-SERVICE-Beech Tree Crown,25/10/2023 00:00:00,278632,150,PA0222,PARKIN & PARKER TREE SPECIALISTS,25/9/2023 00:00:00,29/10/2023 00:00:00,P07-2024
,LEE VALLEY MARINA SPRINGFIELD,PREMISES RELATED EXPENDITURE,UNSCHEDULED GROUND MAINTENANCE,2112,P123015-SERVICE-To cut back Trees & Shrubs from gate along,10/03/2023 00:00,277923,825,PA0222,PARKIN & PARKER TREE SPECIALISTS,25/9/2023 00:00:00,29/10/2023 00:00:00,P07-2024
P&V,MYDDELTON HOUSE,PREMISES RELATED EXPENDITURE,CONTRACT CLEANING,2120,P121875-SERVICE-Myddelton House Cleaning,25/10/2023 00:00:00,278860,1681.68,BR0632,BRITANNIA SERVICES GROUP LTD,25/9/2023 00:00:00,29/10/2023 00:00:00,P07-2024
,LEE VALLEY WATERWORKS CENTRE,PREMISES RELATED EXPENDITURE,CONTRACT CLEANING,2120,P123091-SERVICE-Cleaning WaterWorks Centre,10/03/2023 00:00,277950,776.16,BR0632,BRITANNIA SERVICES GROUP LTD,25/9/2023 00:00:00,29/10/2023 00:00:00,P07-2024
,LEE VALLEY WATERWORKS CENTRE,PREMISES RELATED EXPENDITURE,CONTRACT CLEANING,2120,P123091-SERVICE-Cleaning WaterWorks Centre,29/10/2023 00:00:00,278863,776.16,BR0632,BRITANNIA SERVICES GROUP LTD,25/9/2023 00:00:00,29/10/2023 00:00:00,P07-2024
,LEE VALLEY CAMPSITE,PREMISES RELATED EXPENDITURE,CONTRACT CLEANING,2120,P122514-SERVICE-Site Cleaning AUGUST 23,28/9/2023 00:00:00,277260,5000,LI0305,LIMPIAR CLEANING,25/9/2023 00:00:00,29/10/2023 00:00:00,P07-2024
,LEE VALLEY CAMPSITE,PREMISES RELATED EXPENDITURE,CONTRACT CLEANING,2120,P122514-SERVICE-increase val;ue to cover invoice,28/9/2023 00:00:00,277260,649,LI0305,LIMPIAR CLEANING,25/9/2023 00:00:00,29/10/2023 00:00:00,P07-2024
,LEE VALLEY CAMPSITE,PREMISES RELATED EXPENDITURE,CONTRACT CLEANING,2120,P123544-SERVICE-Site Cleaning September  23,17/10/2023 00:00:00,278362,4114,LI0305,LIMPIAR CLEANING,25/9/2023 00:00:00,29/10/2023 00:00:00,P07-2024
,LEE VALLEY CAMPSITE,PREMISES RELATED EXPENDITURE,CONTRACT CLEANING,2120,P122615-SERVICE-Oct 23 - Nov 23,17/10/2023 00:00:00,278573,93.56,IN0012,INITIAL WASHROOM HYGIENE,25/9/2023 00:00:00,29/10/2023 00:00:00,P07-2024
,LEE VALLEY CARAVAN PARK,PREMISES RELATED EXPENDITURE,CONTRACT CLEANING,2120,P123664-SERVICE-General/Glass Waste Collection,25/10/2023 00:00:00,278347,3709.95,CL0037,VEOLIA ES (UK) LTD,25/9/2023 00:00:00,29/10/2023 00:00:00,P07-2024
,LEE VALLEY CARAVAN PARK,PREMISES RELATED EXPENDITURE,CONTRACT CLEANING,2120,P123558-SERVICE-Window Cleaning for September 2023,17/10/2023 00:00:00,278360,150,LI0305,LIMPIAR CLEANING,25/9/2023 00:00:00,29/10/2023 00:00:00,P07-2024
,LEE VALLEY CARAVAN PARK,PREMISES RELATED EXPENDITURE,CONTRACT CLEANING,2120,P123559-SERVICE-Monthly Cleaning - All Rentals & Facilities,17/10/2023 00:00:00,278361,4129,LI0305,LIMPIAR CLEANING,25/9/2023 00:00:00,29/10/2023 00:00:00,P07-2024
,LEE VALLEY CARAVAN PARK,PREMISES RELATED EXPENDITURE,CONTRACT CLEANING,2120,P123780-SERVICE-Monthly Washroom Service,29/10/2023 00:00:00,278826,98.87,IN0012,INITIAL WASHROOM HYGIENE,25/9/2023 00:00:00,29/10/2023 00:00:00,P07-2024
P&V,NORTH AREA RANGERS,PREMISES RELATED EXPENDITURE,CONTRACT CLEANING,2120,P123370-SERVICE-Cleaning - Ranger Office / Shower,25/10/2023 00:00:00,278862,388.08,BR0632,BRITANNIA SERVICES GROUP LTD,25/9/2023 00:00:00,29/10/2023 00:00:00,P07-2024
P&V,GUNPOWDER PARK,PREMISES RELATED EXPENDITURE,CONTRACT CLEANING,2120,Sep-23,18/10/2023 00:00:00,278469,552.26,GL0214,GLENDALE GROUNDS MANAGEMENT LIMITED,25/9/2023 00:00:00,29/10/2023 00:00:00,P07-2024
P&V,RIVER LEE COUNTRY PARK,PREMISES RELATED EXPENDITURE,CONTRACT CLEANING,2120,P122858-SERVICE-Cleaning - Ranger Office / Wildlife Discovery,10/03/2023 00:00,277949,388.08,BR0632,BRITANNIA SERVICES GROUP LTD,25/9/2023 00:00:00,29/10/2023 00:00:00,P07-2024
P&V,RIVER LEE COUNTRY PARK,PREMISES RELATED EXPENDITURE,CONTRACT CLEANING,2120,Sep-23,18/10/2023 00:00:00,278469,1104.51,GL0214,GLENDALE GROUNDS MANAGEMENT LIMITED,25/9/2023 00:00:00,29/10/2023 00:00:00,P07-2024
,LV LEISURE CENTRE CAMPSITE,PREMISES RELATED EXPENDITURE,CONTRACT CLEANING,2120,P123598-SERVICE-Site cleaning,17/10/2023 00:00:00,278359,3070,LI0305,LIMPIAR CLEANING,25/9/2023 00:00:00,29/10/2023 00:00:00,P07-2024
P&V,MYDDLETON HSE HERITAGE CENTRE,PREMISES RELATED EXPENDITURE,CLEANING CONTRACT,2121,P121876-SERVICE-Tea Room Cleaning,25/10/2023 00:00:00,278861,840.84,BR0632,BRITANNIA SERVICES GROUP LTD,25/9/2023 00:00:00,29/10/2023 00:00:00,P07-2024
,LEE VALLEY CAMPSITE,PREMISES RELATED EXPENDITURE,LINEN SERVICE,2122,P122851-SERVICE-Monthly Linen services,10/09/2023 00:00,278088,1275.65,JO0168,JOHNSONS STALBRIDGE LINEN SERVICES,25/9/2023 00:00:00,29/10/2023 00:00:00,P07-2024
,LEE VALLEY CAMPSITE,PREMISES RELATED EXPENDITURE,LINEN SERVICE,2122,P123805-SERVICE-Site Laundry Nov- Mar 24,29/10/2023 00:00:00,279005,1020.52,JO0168,JOHNSONS STALBRIDGE LINEN SERVICES,25/9/2023 00:00:00,29/10/2023 00:00:00,P07-2024
,LEE VALLEY CARAVAN PARK,PREMISES RELATED EXPENDITURE,LINEN SERVICE,2122,P123501-SERVICE-Monthly Laundry Service for the Lodges,10/09/2023 00:00,278089,1183.58,JO0168,JOHNSONS STALBRIDGE LINEN SERVICES,25/9/2023 00:00:00,29/10/2023 00:00:00,P07-2024
,LEE VALLEY CARAVAN PARK,PREMISES RELATED EXPENDITURE,LINEN SERVICE,2122,P123801-SERVICE-Monthly Laundry Service,29/10/2023 00:00:00,279006,896.93,JO0168,JOHNSONS STALBRIDGE LINEN SERVICES,25/9/2023 00:00:00,29/10/2023 00:00:00,P07-2024
,LEE VALLEY MARINA STANSTEAD,PREMISES RELATED EXPENDITURE,GM MAIN CONTRACT SCHEDULED,2141,Sep-23,18/10/2023 00:00:00,278469,645.18,GL0214,GLENDALE GROUNDS MANAGEMENT LIMITED,25/9/2023 00:00:00,29/10/2023 00:00:00,P07-2024
,LEE VALLEY WATERWORKS CENTRE,PREMISES RELATED EXPENDITURE,GM MAIN CONTRACT SCHEDULED,2141,Sep-23,18/10/2023 00:00:00,278469,265.73,GL0214,GLENDALE GROUNDS MANAGEMENT LIMITED,25/9/2023 00:00:00,29/10/2023 00:00:00,P07-2024
,LEE VALLEY WATERWORKS CENTRE,PREMISES RELATED EXPENDITURE,GM MAIN CONTRACT SCHEDULED,2141,Sep-23,18/10/2023 00:00:00,278469,606.11,GL0214,GLENDALE GROUNDS MANAGEMENT LIMITED,25/9/2023 00:00:00,29/10/2023 00:00:00,P07-2024
P&V,LEE VALLEY FARM HOLYFIELDHALL,PREMISES RELATED EXPENDITURE,GM MAIN CONTRACT SCHEDULED,2141,Sep-23,18/10/2023 00:00:00,278469,149.67,GL0214,GLENDALE GROUNDS MANAGEMENT LIMITED,25/9/2023 00:00:00,29/10/2023 00:00:00,P07-2024
P&V,EAST INDIA DOCK AND BOW CREEK,PREMISES RELATED EXPENDITURE,GM MAIN CONTRACT SCHEDULED,2141,Sep-23,18/10/2023 00:00:00,278469,949.08,GL0214,GLENDALE GROUNDS MANAGEMENT LIMITED,25/9/2023 00:00:00,29/10/2023 00:00:00,P07-2024
P&V,EAST INDIA DOCK AND BOW CREEK,PREMISES RELATED EXPENDITURE,GM MAIN CONTRACT SCHEDULED,2141,Sep-23,18/10/2023 00:00:00,278469,849.88,GL0214,GLENDALE GROUNDS MANAGEMENT LIMITED,25/9/2023 00:00:00,29/10/2023 00:00:00,P07-2024
P&V,NORTH AREA RANGERS,PREMISES RELATED EXPENDITURE,GM MAIN CONTRACT SCHEDULED,2141,Sep-23,18/10/2023 00:00:00,278469,5667.65,GL0214,GLENDALE GROUNDS MANAGEMENT LIMITED,25/9/2023 00:00:00,29/10/2023 00:00:00,P07-2024
P&V,SOUTH AREA RANGERS,PREMISES RELATED EXPENDITURE,GM MAIN CONTRACT SCHEDULED,2141,Sep-23,18/10/2023 00:00:00,278469,379.64,GL0214,GLENDALE GROUNDS MANAGEMENT LIMITED,25/9/2023 00:00:00,29/10/2023 00:00:00,P07-2024
P&V,SOUTH AREA RANGERS,PREMISES RELATED EXPENDITURE,GM MAIN CONTRACT SCHEDULED,2141,Sep-23,18/10/2023 00:00:00,278469,6555.49,GL0214,GLENDALE GROUNDS MANAGEMENT LIMITED,25/9/2023 00:00:00,29/10/2023 00:00:00,P07-2024
P&V,ABBEY GARDENS,PREMISES RELATED EXPENDITURE,GM MAIN CONTRACT SCHEDULED,2141,Sep-23,18/10/2023 00:00:00,278469,2895.18,GL0214,GLENDALE GROUNDS MANAGEMENT LIMITED,25/9/2023 00:00:00,29/10/2023 00:00:00,P07-2024
P&V,GUNPOWDER PARK,PREMISES RELATED EXPENDITURE,GM MAIN CONTRACT SCHEDULED,2141,Sep-23,18/10/2023 00:00:00,278469,2850.51,GL0214,GLENDALE GROUNDS MANAGEMENT LIMITED,25/9/2023 00:00:00,29/10/2023 00:00:00,P07-2024
P&V,RIVER LEE COUNTRY PARK,PREMISES RELATED EXPENDITURE,GM MAIN CONTRACT SCHEDULED,2141,Sep-23,18/10/2023 00:00:00,278469,16669.47,GL0214,GLENDALE GROUNDS MANAGEMENT LIMITED,25/9/2023 00:00:00,29/10/2023 00:00:00,P07-2024
P&V,RIVER LEE COUNTRY PARK,PREMISES RELATED EXPENDITURE,GM MAIN CONTRACT SCHEDULED,2141,Sep-23,18/10/2023 00:00:00,278469,189.81,GL0214,GLENDALE GROUNDS MANAGEMENT LIMITED,25/9/2023 00:00:00,29/10/2023 00:00:00,P07-2024
,LEE VALLEY VELOPARK,PREMISES RELATED EXPENDITURE,GM MAIN CONTRACT SCHEDULED,2141,Sep-23,18/10/2023 00:00:00,278469,7243.95,GL0214,GLENDALE GROUNDS MANAGEMENT LIMITED,25/9/2023 00:00:00,29/10/2023 00:00:00,P07-2024
,LV HOCKEY AND TENNIS CENTRE,PREMISES RELATED EXPENDITURE,GM MAIN CONTRACT SCHEDULED,2141,Sep-23,18/10/2023 00:00:00,278469,4442.53,GL0214,GLENDALE GROUNDS MANAGEMENT LIMITED,25/9/2023 00:00:00,29/10/2023 00:00:00,P07-2024
P&V,THREE MILLS,PREMISES RELATED EXPENDITURE,GM MAIN CONTRACT SCHEDULED,2141,Sep-23,18/10/2023 00:00:00,278469,1623.64,GL0214,GLENDALE GROUNDS MANAGEMENT LIMITED,25/9/2023 00:00:00,29/10/2023 00:00:00,P07-2024
,LEE VALLEY RIDING CENTRE,PREMISES RELATED EXPENDITURE,GM MAIN CONTRACT SCHEDULED,2141,Sep-23,18/10/2023 00:00:00,278469,563.07,GL0214,GLENDALE GROUNDS MANAGEMENT LIMITED,25/9/2023 00:00:00,29/10/2023 00:00:00,P07-2024
,LEE VALLEY ICE CENTRE,PREMISES RELATED EXPENDITURE,GM MAIN CONTRACT SCHEDULED,2141,Sep-23,18/10/2023 00:00:00,278469,907.11,GL0214,GLENDALE GROUNDS MANAGEMENT LIMITED,25/9/2023 00:00:00,29/10/2023 00:00:00,P07-2024
P&V,FORMER LV LIDO SITE,PREMISES RELATED EXPENDITURE,GM MAIN CONTRACT SCHEDULED,2141,Sep-23,18/10/2023 00:00:00,278469,1112.21,GL0214,GLENDALE GROUNDS MANAGEMENT LIMITED,25/9/2023 00:00:00,29/10/2023 00:00:00,P07-2024
,LEE VALLEY ATHLETICS CENTRE,PREMISES RELATED EXPENDITURE,GM MAIN CONTRACT SCHEDULED,2141,Sep-23,18/10/2023 00:00:00,278469,672.8,GL0214,GLENDALE GROUNDS MANAGEMENT LIMITED,25/9/2023 00:00:00,29/10/2023 00:00:00,P07-2024
,LEE VALLEY WHITE WATER CENTRE,PREMISES RELATED EXPENDITURE,GM MAIN CONTRACT SCHEDULED,2141,Sep-23,18/10/2023 00:00:00,278469,3497.86,GL0214,GLENDALE GROUNDS MANAGEMENT LIMITED,25/9/2023 00:00:00,29/10/2023 00:00:00,P07-2024
,LEE VALLEY WATERWORKS CENTRE,PREMISES RELATED EXPENDITURE,GM MAIN CONTRACT UNSCHEDULED,2142,Sep-23,18/10/2023 00:00:00,278469,247.94,GL0214,GLENDALE GROUNDS MANAGEMENT LIMITED,25/9/2023 00:00:00,29/10/2023 00:00:00,P07-2024
P&V,NORTH AREA RANGERS,PREMISES RELATED EXPENDITURE,GM MAIN CONTRACT UNSCHEDULED,2142,Sep-23,18/10/2023 00:00:00,278469,991.76,GL0214,GLENDALE GROUNDS MANAGEMENT LIMITED,25/9/2023 00:00:00,29/10/2023 00:00:00,P07-2024
,LEE VALLEY WATERWORKS CENTRE,PREMISES RELATED EXPENDITURE,GM HORTICULTURE SCHEDULED,2143,Sep-23,18/10/2023 00:00:00,278469,169.94,GL0214,GLENDALE GROUNDS MANAGEMENT LIMITED,25/9/2023 00:00:00,29/10/2023 00:00:00,P07-2024
P&V,NORTH AREA RANGERS,PREMISES RELATED EXPENDITURE,GM HORTICULTURE SCHEDULED,2143,Sep-23,18/10/2023 00:00:00,278469,250.51,GL0214,GLENDALE GROUNDS MANAGEMENT LIMITED,25/9/2023 00:00:00,29/10/2023 00:00:00,P07-2024
P&V,SOUTH AREA RANGERS,PREMISES RELATED EXPENDITURE,GM HORTICULTURE SCHEDULED,2143,Sep-23,18/10/2023 00:00:00,278469,144.87,GL0214,GLENDALE GROUNDS MANAGEMENT LIMITED,25/9/2023 00:00:00,29/10/2023 00:00:00,P07-2024
P&V,ABBEY GARDENS,PREMISES RELATED EXPENDITURE,GM HORTICULTURE SCHEDULED,2143,Sep-23,18/10/2023 00:00:00,278469,1974.21,GL0214,GLENDALE GROUNDS MANAGEMENT LIMITED,25/9/2023 00:00:00,29/10/2023 00:00:00,P07-2024
P&V,GUNPOWDER PARK,PREMISES RELATED EXPENDITURE,GM HORTICULTURE SCHEDULED,2143,Sep-23,18/10/2023 00:00:00,278469,259.15,GL0214,GLENDALE GROUNDS MANAGEMENT LIMITED,25/9/2023 00:00:00,29/10/2023 00:00:00,P07-2024
P&V,RIVER LEE COUNTRY PARK,PREMISES RELATED EXPENDITURE,GM HORTICULTURE SCHEDULED,2143,Sep-23,18/10/2023 00:00:00,278469,134.48,GL0214,GLENDALE GROUNDS MANAGEMENT LIMITED,25/9/2023 00:00:00,29/10/2023 00:00:00,P07-2024
,LEE VALLEY VELOPARK,PREMISES RELATED EXPENDITURE,GM HORTICULTURE SCHEDULED,2143,Sep-23,18/10/2023 00:00:00,278469,1152.74,GL0214,GLENDALE GROUNDS MANAGEMENT LIMITED,25/9/2023 00:00:00,29/10/2023 00:00:00,P07-2024
,LV HOCKEY AND TENNIS CENTRE,PREMISES RELATED EXPENDITURE,GM HORTICULTURE SCHEDULED,2143,Sep-23,18/10/2023 00:00:00,278469,1660.02,GL0214,GLENDALE GROUNDS MANAGEMENT LIMITED,25/9/2023 00:00:00,29/10/2023 00:00:00,P07-2024
P&V,THREE MILLS,PREMISES RELATED EXPENDITURE,GM HORTICULTURE SCHEDULED,2143,Sep-23,18/10/2023 00:00:00,278469,53.88,GL0214,GLENDALE GROUNDS MANAGEMENT LIMITED,25/9/2023 00:00:00,29/10/2023 00:00:00,P07-2024
,LEE VALLEY RIDING CENTRE,PREMISES RELATED EXPENDITURE,GM HORTICULTURE SCHEDULED,2143,Sep-23,18/10/2023 00:00:00,278469,13.47,GL0214,GLENDALE GROUNDS MANAGEMENT LIMITED,25/9/2023 00:00:00,29/10/2023 00:00:00,P07-2024
P&V,FORMER LV LIDO SITE,PREMISES RELATED EXPENDITURE,GM HORTICULTURE SCHEDULED,2143,Sep-23,18/10/2023 00:00:00,278469,12.85,GL0214,GLENDALE GROUNDS MANAGEMENT LIMITED,25/9/2023 00:00:00,29/10/2023 00:00:00,P07-2024
,LEE VALLEY WHITE WATER CENTRE,PREMISES RELATED EXPENDITURE,GM HORTICULTURE SCHEDULED,2143,Sep-23,18/10/2023 00:00:00,278469,29.42,GL0214,GLENDALE GROUNDS MANAGEMENT LIMITED,25/9/2023 00:00:00,29/10/2023 00:00:00,P07-2024
P&V,SOUTH AREA RANGERS,PREMISES RELATED EXPENDITURE,GM ARBORICULTURE UNSCHEDULED,2146,P123391-SERVICE-Tree Works at Oxbow Island,17/10/2023 00:00:00,278119,600,PA0222,PARKIN & PARKER TREE SPECIALISTS,25/9/2023 00:00:00,29/10/2023 00:00:00,P07-2024
P&V,GUNPOWDER PARK,PREMISES RELATED EXPENDITURE,GM ARBORICULTURE UNSCHEDULED,2146,P123743-SERVICE-Tree Works at Swan & Pike Pool,29/10/2023 00:00:00,279053,595,PA0222,PARKIN & PARKER TREE SPECIALISTS,25/9/2023 00:00:00,29/10/2023 00:00:00,P07-2024
P&V,EAST INDIA DOCK AND BOW CREEK,PREMISES RELATED EXPENDITURE,GM NON MAIN CONT UNSCHEDULED,2147,P123334-SERVICE-Replace Bricks at East India Dock Basin,29/10/2023 00:00:00,278684,400,JO0019,R G JOYCE,25/9/2023 00:00:00,29/10/2023 00:00:00,P07-2024
P&V,SOUTH AREA RANGERS,PREMISES RELATED EXPENDITURE,GM NON MAIN CONT UNSCHEDULED,2147,P123003-SERVICE-Install Bollards at Lee Park Way,17/10/2023 00:00:00,277919,850,BU0090,BUSH WHEELER SERVICES LTD,25/9/2023 00:00:00,29/10/2023 00:00:00,P07-2024
P&V,SOUTH AREA RANGERS,PREMISES RELATED EXPENDITURE,GM NON MAIN CONT UNSCHEDULED,2147,P123504-SERVICE-Take out and replace broken wooden,23/10/2023 00:00:00,278683,160,JO0019,R G JOYCE,25/9/2023 00:00:00,29/10/2023 00:00:00,P07-2024
P&V,GUNPOWDER PARK,PREMISES RELATED EXPENDITURE,GM NON MAIN CONT UNSCHEDULED,2147,P123711-SERVICE-Repair Small Pot Hole at Gunpowder Park,25/10/2023 00:00:00,278847,150,JO0019,R G JOYCE,25/9/2023 00:00:00,29/10/2023 00:00:00,P07-2024
P&V,RIVER LEE COUNTRY PARK,PREMISES RELATED EXPENDITURE,GM NON MAIN CONT UNSCHEDULED,2147,P122343-SERVICE-Remove Blockage Ditch at Wharf Rd,17/10/2023 00:00:00,278479,650,BU0090,BUSH WHEELER SERVICES LTD,25/9/2023 00:00:00,29/10/2023 00:00:00,P07-2024
P&V,SOUTH AREA RANGERS,PREMISES RELATED EXPENDITURE,HABITAT MANAGEMENT WORKS,2149,P122469-SERVICE-Remove OPM Nest Tottenham,10/03/2023 00:00,277948,1030,CO0752,COMPLETE TREE CARE LTD,25/9/2023 00:00:00,29/10/2023 00:00:00,P07-2024
P&V,GUNPOWDER PARK,PREMISES RELATED EXPENDITURE,HABITAT MANAGEMENT WORKS,2149,P123071-SERVICE-Japanese Knot Weed at Sewardstone Paddocks,23/10/2023 00:00:00,278675,195,GO0044,S.H.GOSS & CO LTD,25/9/2023 00:00:00,29/10/2023 00:00:00,P07-2024
P&V,GUNPOWDER PARK,PREMISES RELATED EXPENDITURE,HABITAT MANAGEMENT WORKS,2149,P119591-SERVICE-De-Silt Black Ditch - Gunpowder Park,23/10/2023 00:00:00,278686,3645,FA0099,FARM & COUNTRY SUPPLIES LTD,25/9/2023 00:00:00,29/10/2023 00:00:00,P07-2024
,LEE VALLEY MARINA SPRINGFIELD,PREMISES RELATED EXPENDITURE,GENERAL WASTE,2211,P123012-SERVICE-General waste & recyling July to sept 23,10/11/2023 00:00,278357,1574.8,CL0037,VEOLIA ES (UK) LTD,25/9/2023 00:00:00,29/10/2023 00:00:00,P07-2024
,LEE VALLEY MARINA STANSTEAD,PREMISES RELATED EXPENDITURE,GENERAL WASTE,2211,P121961-SERVICE-annual bin pick ups for RH & SM,17/10/2023 00:00:00,278352,235.08,CL0037,VEOLIA ES (UK) LTD,25/9/2023 00:00:00,29/10/2023 00:00:00,P07-2024
,LEE VALLEY MARINA STANSTEAD,PREMISES RELATED EXPENDITURE,GENERAL WASTE,2211,P121961-SERVICE-annual bin pick ups for RH & SM,17/10/2023 00:00:00,278353,1172.09,CL0037,VEOLIA ES (UK) LTD,25/9/2023 00:00:00,29/10/2023 00:00:00,P07-2024
,LEE VALLEY MARINA STANSTEAD,PREMISES RELATED EXPENDITURE,GENERAL WASTE,2211,P121961-SERVICE-annual bin pick ups for RH & SM,17/10/2023 00:00:00,278413,49.51,CL0037,VEOLIA ES (UK) LTD,25/9/2023 00:00:00,29/10/2023 00:00:00,P07-2024
,LEE VALLEY CAMPSITE,PREMISES RELATED EXPENDITURE,GENERAL WASTE,2211,P122977-SERVICE-Skip Collections  Aug- Dec 23,17/10/2023 00:00:00,278356,747.16,CL0037,VEOLIA ES (UK) LTD,25/9/2023 00:00:00,29/10/2023 00:00:00,P07-2024
P&V,NORTH AREA RANGERS,PREMISES RELATED EXPENDITURE,GENERAL WASTE,2211,P123291-SERVICE-12yd General Rubbish Skip at Holyfield Hall F,23/10/2023 00:00:00,278077,646.8,GB0239,GBN SERVICES LTD,25/9/2023 00:00:00,29/10/2023 00:00:00,P07-2024
P&V,NORTH AREA RANGERS,PREMISES RELATED EXPENDITURE,GENERAL WASTE,2211,P123291-SERVICE-12yd General Rubbish Skip at Holyfield Hall F,24/10/2023 00:00:00,278816,323.4,GB0239,GBN SERVICES LTD,25/9/2023 00:00:00,29/10/2023 00:00:00,P07-2024
P&V,SOUTH AREA RANGERS,PREMISES RELATED EXPENDITURE,GENERAL WASTE,2211,P121714-SERVICE-Skip at WaterWorks Centre,10/03/2023 00:00,277913,323.4,GB0239,GBN SERVICES LTD,25/9/2023 00:00:00,29/10/2023 00:00:00,P07-2024
P&V,SOUTH AREA RANGERS,PREMISES RELATED EXPENDITURE,GENERAL WASTE,2211,P123636-SERVICE-Skip at WaterWorks Centre,17/10/2023 00:00:00,278412,323.4,GB0239,GBN SERVICES LTD,25/9/2023 00:00:00,29/10/2023 00:00:00,P07-2024
P&V,ABBEY GARDENS,PREMISES RELATED EXPENDITURE,GENERAL WASTE,2211,P122906-SERVICE-Green Waste Disposal Waltham Abbey Gardens,29/10/2023 00:00:00,279030,180,MA0002,GTM RURAL  ENTERPRISES LIMITED,25/9/2023 00:00:00,29/10/2023 00:00:00,P07-2024
P&V,ABBEY GARDENS,PREMISES RELATED EXPENDITURE,GENERAL WASTE,2211,P122906-SERVICE-Green Waste Disposal Cornmill Meadows,29/10/2023 00:00:00,279030,300,MA0002,GTM RURAL  ENTERPRISES LIMITED,25/9/2023 00:00:00,29/10/2023 00:00:00,P07-2024
,LV LEISURE CENTRE CAMPSITE,PREMISES RELATED EXPENDITURE,GENERAL WASTE,2211,P123530-SERVICE-Recycling empty,10/09/2023 00:00,278284,349.82,BY0049,BYWATERS (LEYTON) LTD,25/9/2023 00:00:00,29/10/2023 00:00:00,P07-2024
,LV LEISURE CENTRE CAMPSITE,PREMISES RELATED EXPENDITURE,GENERAL WASTE,2211,P123597-SERVICE-Skip and compactor empty,17/10/2023 00:00:00,278346,1216.14,CL0037,VEOLIA ES (UK) LTD,25/9/2023 00:00:00,29/10/2023 00:00:00,P07-2024
P&V,NORTH AREA RANGERS,PREMISES RELATED EXPENDITURE,HAZARDOUS WASTE DISPOSAL,2212,P123499-SERVICE-Mobilistion and demob of floating plant,10/10/2023 00:00,278370,3080,WO0366,WOOD HALL & HEWARD LTD,25/9/2023 00:00:00,29/10/2023 00:00:00,P07-2024
P&V,NORTH AREA RANGERS,PREMISES RELATED EXPENDITURE,HAZARDOUS WASTE DISPOSAL,2212,P123499-SERVICE-Removal of car from towpath,10/10/2023 00:00,278370,1100,WO0366,WOOD HALL & HEWARD LTD,25/9/2023 00:00:00,29/10/2023 00:00:00,P07-2024
P&V,NORTH AREA RANGERS,PREMISES RELATED EXPENDITURE,HAZARDOUS WASTE DISPOSAL,2212,P123499-SERVICE-Disposal of car,10/10/2023 00:00,278370,740,WO0366,WOOD HALL & HEWARD LTD,25/9/2023 00:00:00,29/10/2023 00:00:00,P07-2024
P&V,NORTH AREA RANGERS,PREMISES RELATED EXPENDITURE,FLYTIPPING/WHITE GOOD DISPOSAL,2213,P123638-SERVICE-Fly Tip at Spittal Brook Gates,29/10/2023 00:00:00,278908,991.75,GL0214,GLENDALE GROUNDS MANAGEMENT LIMITED,25/9/2023 00:00:00,29/10/2023 00:00:00,P07-2024
P&V,SOUTH AREA RANGERS,PREMISES RELATED EXPENDITURE,FLYTIPPING/WHITE GOOD DISPOSAL,2213,P123508-SERVICE-Fly tip removal,23/10/2023 00:00:00,278639,200,JO0019,R G JOYCE,25/9/2023 00:00:00,29/10/2023 00:00:00,P07-2024
P&V,SOUTH AREA RANGERS,PREMISES RELATED EXPENDITURE,FLYTIPPING/WHITE GOOD DISPOSAL,2213,P123731-SERVICE-Fly Tip at Tottenham Marshes Car Park,29/10/2023 00:00:00,278900,640,JO0019,R G JOYCE,25/9/2023 00:00:00,29/10/2023 00:00:00,P07-2024
P&V,MYDDELTON HOUSE,PREMISES RELATED EXPENDITURE,RECYCLING,2214,P122866-SERVICE-Recycling,10/09/2023 00:00,278332,230.14,CA0341,F & R CAWLEY LTD,25/9/2023 00:00:00,29/10/2023 00:00:00,P07-2024
P&V,MYDDELTON HOUSE,PREMISES RELATED EXPENDITURE,BUILDING SERVICE AGREEMENTS,2220,P121870-SERVICE-Sanitary Services,10/03/2023 00:00,278072,204.44,PE0015,PHS GROUP PLC,25/9/2023 00:00:00,29/10/2023 00:00:00,P07-2024
P&V,MYDDELTON HOUSE,PREMISES RELATED EXPENDITURE,BUILDING SERVICE AGREEMENTS,2220,P121870-SERVICE-Sanitary Services,10/03/2023 00:00,278082,10.09,PE0015,PHS GROUP PLC,25/9/2023 00:00:00,29/10/2023 00:00:00,P07-2024
P&V,MYDDELTON HOUSE,PREMISES RELATED EXPENDITURE,BUILDING SERVICE AGREEMENTS,2220,P121870-SERVICE-Sanitary Services,10/03/2023 00:00,278083,24.15,PE0015,PHS GROUP PLC,25/9/2023 00:00:00,29/10/2023 00:00:00,P07-2024
P&V,MYDDELTON HOUSE,PREMISES RELATED EXPENDITURE,BUILDING SERVICE AGREEMENTS,2220,P123594-SERVICE-Fire Alarm Fault 27/09/23,17/10/2023 00:00:00,278486,267.96,AD0015,ADT FIRE & SECURITY PLC,25/9/2023 00:00:00,29/10/2023 00:00:00,P07-2024
P&V,MYDDELTON HOUSE,PREMISES RELATED EXPENDITURE,BUILDING SERVICE AGREEMENTS,2220,P121587-SERVICE-Maintenance of Fire Alarm 04/23-03/24,23/10/2023 00:00:00,278649,-1025.75,AD0015,ADT FIRE & SECURITY PLC,25/9/2023 00:00:00,29/10/2023 00:00:00,P07-2024
P&V,MYDDELTON HOUSE,PREMISES RELATED EXPENDITURE,BUILDING SERVICE AGREEMENTS,2220,P121191-SERVICE-Signalling Transmission Service Intruder Alar,23/10/2023 00:00:00,278650,-170.67,AD0015,ADT FIRE & SECURITY PLC,25/9/2023 00:00:00,29/10/2023 00:00:00,P07-2024
P&V,MYDDELTON HOUSE,PREMISES RELATED EXPENDITURE,BUILDING SERVICE AGREEMENTS,2220,P121190-SERVICE-British Telecom Redcare Intruder Alarm,23/10/2023 00:00:00,278725,-139.54,AD0015,ADT FIRE & SECURITY PLC,25/9/2023 00:00:00,29/10/2023 00:00:00,P07-2024
P&V,MYDDELTON HOUSE,PREMISES RELATED EXPENDITURE,BUILDING SERVICE AGREEMENTS,2220,P121870-SERVICE-Sanitary Services,25/10/2023 00:00:00,278854,89.64,PE0015,PHS GROUP PLC,25/9/2023 00:00:00,29/10/2023 00:00:00,P07-2024
P&V,MYDDELTON HOUSE,PREMISES RELATED EXPENDITURE,BUILDING SERVICE AGREEMENTS,2220,P121870-SERVICE-Sanitary Services,29/10/2023 00:00:00,279031,10.09,PE0015,PHS GROUP PLC,25/9/2023 00:00:00,29/10/2023 00:00:00,P07-2024
P&V,MYDDELTON HOUSE,PREMISES RELATED EXPENDITURE,BUILDING SERVICE AGREEMENTS,2220,P121870-SERVICE-Sanitary Services,29/10/2023 00:00:00,279032,204.44,PE0015,PHS GROUP PLC,25/9/2023 00:00:00,29/10/2023 00:00:00,P07-2024
,LEE VALLEY MARINA SPRINGFIELD,PREMISES RELATED EXPENDITURE,BUILDING SERVICE AGREEMENTS,2220,"P121662-SERVICE-Sanitary Disposal,Dust Mats,Eco Shield",10/03/2023 00:00,277916,216.54,PE0015,PHS GROUP PLC,25/9/2023 00:00:00,29/10/2023 00:00:00,P07-2024
,LEE VALLEY MARINA SPRINGFIELD,PREMISES RELATED EXPENDITURE,BUILDING SERVICE AGREEMENTS,2220,P121657-SERVICE-To Supply pest & Vermin control,10/11/2023 00:00,278393,160,VE0006,VERMINATE CITY & RURAL PEST CONTROL LTD,25/9/2023 00:00:00,29/10/2023 00:00:00,P07-2024
,LEE VALLEY MARINA SPRINGFIELD,PREMISES RELATED EXPENDITURE,BUILDING SERVICE AGREEMENTS,2220,P121658-SERVICE-Annual maintenance 2 vists & Adhoc,10/11/2023 00:00,278434,300,DE0013,DENNIS SECURITY CENTRE,25/9/2023 00:00:00,29/10/2023 00:00:00,P07-2024
,LEE VALLEY MARINA SPRINGFIELD,PREMISES RELATED EXPENDITURE,BUILDING SERVICE AGREEMENTS,2220,P121657-SERVICE-To Supply pest & Vermin control,10/11/2023 00:00,278443,450,VE0006,VERMINATE CITY & RURAL PEST CONTROL LTD,25/9/2023 00:00:00,29/10/2023 00:00:00,P07-2024
,LEE VALLEY MARINA SPRINGFIELD,PREMISES RELATED EXPENDITURE,BUILDING SERVICE AGREEMENTS,2220,P121658-SERVICE-Annual maintenance 2 vists & Adhoc,24/10/2023 00:00:00,278571,330,DE0013,DENNIS SECURITY CENTRE,25/9/2023 00:00:00,29/10/2023 00:00:00,P07-2024
,LEE VALLEY MARINA SPRINGFIELD,PREMISES RELATED EXPENDITURE,BUILDING SERVICE AGREEMENTS,2220,"P121662-SERVICE-Sanitary Disposal,Dust Mats,Eco Shield",25/10/2023 00:00:00,278853,216.54,PE0015,PHS GROUP PLC,25/9/2023 00:00:00,29/10/2023 00:00:00,P07-2024
,LEE VALLEY WATERWORKS CENTRE,PREMISES RELATED EXPENDITURE,BUILDING SERVICE AGREEMENTS,2220,P122535-SERVICE-Repair Lights at Waterworks Centre,29/10/2023 00:00:00,277779,388.13,CO0199,EQUANS FM LIMITED (frmlyENGIE FM LIMITED),25/9/2023 00:00:00,29/10/2023 00:00:00,P07-2024
,LEE VALLEY WATERWORKS CENTRE,PREMISES RELATED EXPENDITURE,BUILDING SERVICE AGREEMENTS,2220,P123682-SERVICE-Fire Alarm PPM Sep - WWK's,25/10/2023 00:00:00,278851,268.63,CO0199,EQUANS FM LIMITED (frmlyENGIE FM LIMITED),25/9/2023 00:00:00,29/10/2023 00:00:00,P07-2024
,LEE VALLEY CAMPSITE,PREMISES RELATED EXPENDITURE,BUILDING SERVICE AGREEMENTS,2220,P121646-SERVICE-September 23,17/10/2023 00:00:00,278438,60,VE0006,VERMINATE CITY & RURAL PEST CONTROL LTD,25/9/2023 00:00:00,29/10/2023 00:00:00,P07-2024
,LEE VALLEY CAMPSITE,PREMISES RELATED EXPENDITURE,BUILDING SERVICE AGREEMENTS,2220,P121646-SERVICE-October 23,17/10/2023 00:00:00,278438,10,VE0006,VERMINATE CITY & RURAL PEST CONTROL LTD,25/9/2023 00:00:00,29/10/2023 00:00:00,P07-2024
,LEE VALLEY CAMPSITE,PREMISES RELATED EXPENDITURE,BUILDING SERVICE AGREEMENTS,2220,P120723-SERVICE-Legionella risk assessment,23/10/2023 00:00:00,278646,1016.52,KI0090,KINGFISHER ENVIRONMENTAL SERVICES LTD,25/9/2023 00:00:00,29/10/2023 00:00:00,P07-2024
,LEE VALLEY CARAVAN PARK,PREMISES RELATED EXPENDITURE,BUILDING SERVICE AGREEMENTS,2220,P123654-SERVICE-October - Monthly Pest Control Service,29/10/2023 00:00:00,278437,70,VE0006,VERMINATE CITY & RURAL PEST CONTROL LTD,25/9/2023 00:00:00,29/10/2023 00:00:00,P07-2024
P&V,MYDDLETON HSE HERITAGE CENTRE,PREMISES RELATED EXPENDITURE,BUILDING SERVICE AGREEMENTS,2220,P123596-SERVICE-Stocktaking - Tea Room,17/10/2023 00:00:00,278139,326.5,VE0038,VENNERS LTD,25/9/2023 00:00:00,29/10/2023 00:00:00,P07-2024
P&V,NORTH AREA RANGERS,PREMISES RELATED EXPENDITURE,BUILDING SERVICE AGREEMENTS,2220,P121023-SERVICE-Sanitary Disposal - Old Mill & Meadows Toilet,25/10/2023 00:00:00,278852,3.74,PE0015,PHS GROUP PLC,25/9/2023 00:00:00,29/10/2023 00:00:00,P07-2024
P&V,WILDLIFE DISCOVERY CENTRE,PREMISES RELATED EXPENDITURE,BUILDING SERVICE AGREEMENTS,2220,P123643-SERVICE-Fire Alarm Service - WDC,17/10/2023 00:00:00,278358,124.71,TJ0009,T.J.FIRE & SECURITY,25/9/2023 00:00:00,29/10/2023 00:00:00,P07-2024
P&V,WILDLIFE DISCOVERY CENTRE,PREMISES RELATED EXPENDITURE,BUILDING SERVICE AGREEMENTS,2220,P123244-SERVICE-Lift Service Contract - Wildlife Discovery Ce,25/10/2023 00:00:00,278890,555,GA0448,GARTEC,25/9/2023 00:00:00,29/10/2023 00:00:00,P07-2024
P&V,GUNPOWDER PARK,PREMISES RELATED EXPENDITURE,BUILDING SERVICE AGREEMENTS,2220,P121073-SERVICE-Sanitary Disposal - Gunpowder Park - Public T,23/10/2023 00:00:00,278576,14.3,PE0015,PHS GROUP PLC,25/9/2023 00:00:00,29/10/2023 00:00:00,P07-2024
P&V,RIVER LEE COUNTRY PARK,PREMISES RELATED EXPENDITURE,BUILDING SERVICE AGREEMENTS,2220,P121074-SERVICE-Sanitary Disposal - Fishers Green Toilets,24/10/2023 00:00:00,278084,6.47,PE0015,PHS GROUP PLC,25/9/2023 00:00:00,29/10/2023 00:00:00,P07-2024
P&V,RIVER LEE COUNTRY PARK,PREMISES RELATED EXPENDITURE,BUILDING SERVICE AGREEMENTS,2220,P121074-SERVICE-Sanitary Disposal - Fishers Green Toilets,23/10/2023 00:00:00,278577,10.72,PE0015,PHS GROUP PLC,25/9/2023 00:00:00,29/10/2023 00:00:00,P07-2024
P&V,RIVER LEE COUNTRY PARK,PREMISES RELATED EXPENDITURE,BUILDING SERVICE AGREEMENTS,2220,P121071-SERVICE-Sanitary Disposal - Ranger Base Office Holyfi,29/10/2023 00:00:00,279033,6.47,PE0015,PHS GROUP PLC,25/9/2023 00:00:00,29/10/2023 00:00:00,P07-2024
,LV LEISURE CENTRE CAMPSITE,PREMISES RELATED EXPENDITURE,BUILDING SERVICE AGREEMENTS,2220,P123582-SERVICE-SERVICE AGREEMENT,10/11/2023 00:00,278403,1239,FL0287,FLAKT GROUP UK LTD,25/9/2023 00:00:00,29/10/2023 00:00:00,P07-2024
,LV LEISURE CENTRE CAMPSITE,PREMISES RELATED EXPENDITURE,BUILDING SERVICE AGREEMENTS,2220,P123607-SERVICE-Sanitary bin empty,23/10/2023 00:00:00,278423,163.96,PE0015,PHS GROUP PLC,25/9/2023 00:00:00,29/10/2023 00:00:00,P07-2024
,LV LEISURE CENTRE CAMPSITE,PREMISES RELATED EXPENDITURE,BUILDING SERVICE AGREEMENTS,2220,P123604-SERVICE-monthly check and wasp nest,23/10/2023 00:00:00,278439,160,VE0006,VERMINATE CITY & RURAL PEST CONTROL LTD,25/9/2023 00:00:00,29/10/2023 00:00:00,P07-2024
,LV LEISURE CENTRE CAMPSITE,PREMISES RELATED EXPENDITURE,BUILDING SERVICE AGREEMENTS,2220,P123613-SERVICE-CCTV Campsite and golf,23/10/2023 00:00:00,278473,645,RV0035,RVTV SECURITY GROUP LTD,25/9/2023 00:00:00,29/10/2023 00:00:00,P07-2024
,LV LEISURE CENTRE CAMPSITE,PREMISES RELATED EXPENDITURE,BUILDING SERVICE AGREEMENTS,2220,P123609-SERVICE-Contract cover for greenkeeper yard cctv,23/10/2023 00:00:00,278475,395,RV0035,RVTV SECURITY GROUP LTD,25/9/2023 00:00:00,29/10/2023 00:00:00,P07-2024
,LV LEISURE CENTRE CAMPSITE,PREMISES RELATED EXPENDITURE,BUILDING SERVICE AGREEMENTS,2220,P123175-SERVICE-servicing,23/10/2023 00:00:00,278636,284,PD0171,PDE WASTE TECHNOLOGIES,25/9/2023 00:00:00,29/10/2023 00:00:00,P07-2024
,LV LEISURE CENTRE CAMPSITE,PREMISES RELATED EXPENDITURE,BUILDING SERVICE AGREEMENTS,2220,P123770-SERVICE-7 Year Service Plan,25/10/2023 00:00:00,278823,700,CI0770,CITIPOST POWER,25/9/2023 00:00:00,29/10/2023 00:00:00,P07-2024
,LV LEISURE CENTRE GOLF COURSE,PREMISES RELATED EXPENDITURE,BUILDING SERVICE AGREEMENTS,2220,P123649-SERVICE-Annual Contract Cover Fire Alarm AP3717,23/10/2023 00:00:00,278474,280,RV0035,RVTV SECURITY GROUP LTD,25/9/2023 00:00:00,29/10/2023 00:00:00,P07-2024
,LV LEISURE CENTRE GOLF COURSE,PREMISES RELATED EXPENDITURE,BUILDING SERVICE AGREEMENTS,2220,P123756-SERVICE-Intruder Hold up Alarm,25/10/2023 00:00:00,278476,480,RV0035,RVTV SECURITY GROUP LTD,25/9/2023 00:00:00,29/10/2023 00:00:00,P07-2024
P&V,GUNPOWDER PARK,PREMISES RELATED EXPENDITURE,ENGINEERING SERVICE AGREEMENTS,2221,P123713-SERVICE-PPM - Sep 2023 - GPP,23/10/2023 00:00:00,278717,154.6,CO0199,EQUANS FM LIMITED (frmlyENGIE FM LIMITED),25/9/2023 00:00:00,29/10/2023 00:00:00,P07-2024
P&V,MYDDELTON HOUSE,PREMISES RELATED EXPENDITURE,BUILDING REPAIRS & MAINTENANCE,2222,P122467-SERVICE-IT Office First Floor - Broken Sash Cord that,17/10/2023 00:00:00,278599,810,RE0094,REACT 2 IT (BUILDING & REFURBISHMENT) LTD,25/9/2023 00:00:00,29/10/2023 00:00:00,P07-2024
P&V,MYDDELTON HOUSE,PREMISES RELATED EXPENDITURE,BUILDING REPAIRS & MAINTENANCE,2222,P123443-SERVICE-panels for existing posts,29/10/2023 00:00:00,278802,195,SI0024,SIGNS EXPRESS (HARLOW),25/9/2023 00:00:00,29/10/2023 00:00:00,P07-2024
CEO,RESIDENTIAL ACCOMMODATION,PREMISES RELATED EXPENDITURE,BUILDING REPAIRS & MAINTENANCE,2222,P121557-SERVICE-Maintenance,10/03/2023 00:00,277924,180,CA0165,CASTLES,25/9/2023 00:00:00,29/10/2023 00:00:00,P07-2024
CEO,RESIDENTIAL ACCOMMODATION,PREMISES RELATED EXPENDITURE,BUILDING REPAIRS & MAINTENANCE,2222,P121557-SERVICE-Maintenance,17/10/2023 00:00:00,278483,260,CA0165,CASTLES,25/9/2023 00:00:00,29/10/2023 00:00:00,P07-2024
CEO,RESIDENTIAL ACCOMMODATION,PREMISES RELATED EXPENDITURE,BUILDING REPAIRS & MAINTENANCE,2222,P123491-SERVICE-Gas Certificates:,25/10/2023 00:00:00,278595,700,RE0094,REACT 2 IT (BUILDING & REFURBISHMENT) LTD,25/9/2023 00:00:00,29/10/2023 00:00:00,P07-2024
CEO,RESIDENTIAL ACCOMMODATION,PREMISES RELATED EXPENDITURE,BUILDING REPAIRS & MAINTENANCE,2222,P122646-SERVICE-Gate Repairs at Springfield Bunglow,18/10/2023 00:00:00,278597,1280,RE0094,REACT 2 IT (BUILDING & REFURBISHMENT) LTD,25/9/2023 00:00:00,29/10/2023 00:00:00,P07-2024
CEO,RESIDENTIAL ACCOMMODATION,PREMISES RELATED EXPENDITURE,BUILDING REPAIRS & MAINTENANCE,2222,P122900-SERVICE-Production  residential EPC's,23/10/2023 00:00:00,278613,400,ST0447,E R HERITAGE LTD,25/9/2023 00:00:00,29/10/2023 00:00:00,P07-2024
CEO,RESIDENTIAL ACCOMMODATION,PREMISES RELATED EXPENDITURE,BUILDING REPAIRS & MAINTENANCE,2222,P122506-SERVICE-Repairs & Maintenance,25/10/2023 00:00:00,278873,792,WA0315,PAUL WALLACE ESTATE AGENTS,25/9/2023 00:00:00,29/10/2023 00:00:00,P07-2024
CEO,COMMERCIAL ACCOMMODATION,PREMISES RELATED EXPENDITURE,BUILDING REPAIRS & MAINTENANCE,2222,P121780-SERVICE-Concrete blocks Wharf Road,10/09/2023 00:00,278096,62,NA0171,NAIVETTE SERVICES LTD,25/9/2023 00:00:00,29/10/2023 00:00:00,P07-2024
CEO,COMMERCIAL ACCOMMODATION,PREMISES RELATED EXPENDITURE,BUILDING REPAIRS & MAINTENANCE,2222,P122990-SERVICE-Supply and Fit CCTV Post Including Excavation,10/11/2023 00:00,278329,5895,BR0018,BRADSHAW ELECTRICAL LIMITED,25/9/2023 00:00:00,29/10/2023 00:00:00,P07-2024
CEO,COMMERCIAL ACCOMMODATION,PREMISES RELATED EXPENDITURE,BUILDING REPAIRS & MAINTENANCE,2222,P122900-SERVICE-Production of commercial l EPCs,23/10/2023 00:00:00,278613,870,ST0447,E R HERITAGE LTD,25/9/2023 00:00:00,29/10/2023 00:00:00,P07-2024
CEO,COMMERCIAL ACCOMMODATION,PREMISES RELATED EXPENDITURE,BUILDING REPAIRS & MAINTENANCE,2222,P121780-SERVICE-Concrete blocks Wharf Road,29/10/2023 00:00:00,279069,60,NA0171,NAIVETTE SERVICES LTD,25/9/2023 00:00:00,29/10/2023 00:00:00,P07-2024
,LEE VALLEY MARINA SPRINGFIELD,PREMISES RELATED EXPENDITURE,BUILDING REPAIRS & MAINTENANCE,2222,P123351-SERVICE-To carry out works as per quotoe 18-09-2023,10/03/2023 00:00,277785,880,SO0400,SOUTHERN GREEN SERVICES LIMITED,25/9/2023 00:00:00,29/10/2023 00:00:00,P07-2024
,LEE VALLEY MARINA STANSTEAD,PREMISES RELATED EXPENDITURE,BUILDING REPAIRS & MAINTENANCE,2222,P123387-SERVICE-erase wasp nest next to slip way,10/03/2023 00:00,277902,160,VE0006,VERMINATE CITY & RURAL PEST CONTROL LTD,25/9/2023 00:00:00,29/10/2023 00:00:00,P07-2024
,LEE VALLEY MARINA STANSTEAD,PREMISES RELATED EXPENDITURE,BUILDING REPAIRS & MAINTENANCE,2222,P123418-SERVICE-BARRIER (original quote was just for gate),10/09/2023 00:00,278246,220,PS0429,PSL AUTOMATION,25/9/2023 00:00:00,29/10/2023 00:00:00,P07-2024
,LEE VALLEY MARINA STANSTEAD,PREMISES RELATED EXPENDITURE,BUILDING REPAIRS & MAINTENANCE,2222,P123418-SERVICE-Yrly service/maint agreemnt for gates/barrier,10/09/2023 00:00,278246,440,PS0429,PSL AUTOMATION,25/9/2023 00:00:00,29/10/2023 00:00:00,P07-2024
,LEE VALLEY MARINA STANSTEAD,PREMISES RELATED EXPENDITURE,BUILDING REPAIRS & MAINTENANCE,2222,Stanstyead- burny boat disposal,17/10/2023 00:00:00,278366,500,MO0041,CAPSER,25/9/2023 00:00:00,29/10/2023 00:00:00,P07-2024
,LEE VALLEY MARINA STANSTEAD,PREMISES RELATED EXPENDITURE,BUILDING REPAIRS & MAINTENANCE,2222,Stanstyead- burny boat disposal,17/10/2023 00:00:00,278366,-980,MO0041,CAPSER,25/9/2023 00:00:00,29/10/2023 00:00:00,P07-2024
,LEE VALLEY MARINA STANSTEAD,PREMISES RELATED EXPENDITURE,BUILDING REPAIRS & MAINTENANCE,2222,P123405-SERVICE-burny boat disposal,17/10/2023 00:00:00,278366,980,MO0041,CAPSER,25/9/2023 00:00:00,29/10/2023 00:00:00,P07-2024
,LEE VALLEY MARINA STANSTEAD,PREMISES RELATED EXPENDITURE,BUILDING REPAIRS & MAINTENANCE,2222,Stanstyead- burny boat disposal,17/10/2023 00:00:00,278366,480,MO0041,CAPSER,25/9/2023 00:00:00,29/10/2023 00:00:00,P07-2024
,LEE VALLEY MARINA STANSTEAD,PREMISES RELATED EXPENDITURE,BUILDING REPAIRS & MAINTENANCE,2222,"P123527-SERVICE-kitchen apps fridge, feezer, microwv",17/10/2023 00:00:00,278410,115.83,CU0759,CURRYS BUSINESS,25/9/2023 00:00:00,29/10/2023 00:00:00,P07-2024
,LEE VALLEY MARINA STANSTEAD,PREMISES RELATED EXPENDITURE,BUILDING REPAIRS & MAINTENANCE,2222,"P123527-SERVICE-kitchen apps fridge, feezer, microwv",17/10/2023 00:00:00,278411,490,CU0759,CURRYS BUSINESS,25/9/2023 00:00:00,29/10/2023 00:00:00,P07-2024
,LEE VALLEY MARINA STANSTEAD,PREMISES RELATED EXPENDITURE,BUILDING REPAIRS & MAINTENANCE,2222,"P123633-SERVICE-sheds,emerg light, pods+remedial stuff",17/10/2023 00:00:00,278433,2105,BR0018,BRADSHAW ELECTRICAL LIMITED,25/9/2023 00:00:00,29/10/2023 00:00:00,P07-2024
,LEE VALLEY MARINA STANSTEAD,PREMISES RELATED EXPENDITURE,BUILDING REPAIRS & MAINTENANCE,2222,P123570-SERVICE-caravan gate key,23/10/2023 00:00:00,278482,104.17,DE0013,DENNIS SECURITY CENTRE,25/9/2023 00:00:00,29/10/2023 00:00:00,P07-2024
,LEE VALLEY MARINA STANSTEAD,PREMISES RELATED EXPENDITURE,BUILDING REPAIRS & MAINTENANCE,2222,P123792-SERVICE-call out and repair of faulty sensor/battery,29/10/2023 00:00:00,279007,232.28,CH0088,CHUBB FIRE & SECURITY,25/9/2023 00:00:00,29/10/2023 00:00:00,P07-2024
,LEE VALLEY MARINA STANSTEAD,PREMISES RELATED EXPENDITURE,BUILDING REPAIRS & MAINTENANCE,2222,P123793-SERVICE-emerg lights instal and replace,29/10/2023 00:00:00,279022,440,BR0018,BRADSHAW ELECTRICAL LIMITED,25/9/2023 00:00:00,29/10/2023 00:00:00,P07-2024
,LEE VALLEY WATERWORKS CENTRE,PREMISES RELATED EXPENDITURE,BUILDING REPAIRS & MAINTENANCE,2222,P123336-SERVICE-Clear Drains at Waterworks Car Park,17/10/2023 00:00:00,278406,464,CO0550,CONVERT WATER LTD,25/9/2023 00:00:00,29/10/2023 00:00:00,P07-2024
,LEE VALLEY WATERWORKS CENTRE,PREMISES RELATED EXPENDITURE,BUILDING REPAIRS & MAINTENANCE,2222,P123592-SERVICE-WaterWorks PPM September 2023,17/10/2023 00:00:00,278575,626.6,CO0199,EQUANS FM LIMITED (frmlyENGIE FM LIMITED),25/9/2023 00:00:00,29/10/2023 00:00:00,P07-2024
,LEE VALLEY WATERWORKS CENTRE,PREMISES RELATED EXPENDITURE,BUILDING REPAIRS & MAINTENANCE,2222,P119672-SERVICE-Shutter Repairs at Waterworks,25/10/2023 00:00:00,278876,1341.12,GU0198,GUARDIAN INDUSTRIAL DOORS LIMITED,25/9/2023 00:00:00,29/10/2023 00:00:00,P07-2024
P&V,SOUTH AREA RANGERS,PREMISES RELATED EXPENDITURE,BUILDING REPAIRS & MAINTENANCE,2222,P123327-SERVICE-Pump Repairs at Waterworks Nature Reserve,29/10/2023 00:00:00,277778,149.36,CO0199,EQUANS FM LIMITED (frmlyENGIE FM LIMITED),25/9/2023 00:00:00,29/10/2023 00:00:00,P07-2024
P&V,WILDLIFE DISCOVERY CENTRE,PREMISES RELATED EXPENDITURE,BUILDING REPAIRS & MAINTENANCE,2222,P123769-SERVICE-Power Cut Call Out due to Vandalism - WDC,29/10/2023 00:00:00,278857,120,BR0018,BRADSHAW ELECTRICAL LIMITED,25/9/2023 00:00:00,29/10/2023 00:00:00,P07-2024
P&V,RIVER LEE COUNTRY PARK,PREMISES RELATED EXPENDITURE,BUILDING REPAIRS & MAINTENANCE,2222,P123569-SERVICE-Old Mill & Meadow toilets,17/10/2023 00:00:00,278484,852,CO0550,CONVERT WATER LTD,25/9/2023 00:00:00,29/10/2023 00:00:00,P07-2024
P&V,RIVER LEE COUNTRY PARK,PREMISES RELATED EXPENDITURE,BUILDING REPAIRS & MAINTENANCE,2222,P123629-SERVICE-De-scale Mains at Old Mill &Meadoiws Toilets,29/10/2023 00:00:00,278674,560,CO0550,CONVERT WATER LTD,25/9/2023 00:00:00,29/10/2023 00:00:00,P07-2024
P&V,RIVER LEE COUNTRY PARK,PREMISES RELATED EXPENDITURE,BUILDING REPAIRS & MAINTENANCE,2222,P123629-SERVICE-De-scale Mains at Old Mill &Meadoiws Toilets,29/10/2023 00:00:00,278674,148,CO0550,CONVERT WATER LTD,25/9/2023 00:00:00,29/10/2023 00:00:00,P07-2024
P&V,RIVER LEE COUNTRY PARK,PREMISES RELATED EXPENDITURE,BUILDING REPAIRS & MAINTENANCE,2222,P123730-SERVICE-Pump Out at Old Mill & Meadows Toilets,29/10/2023 00:00:00,278899,458,CO0550,CONVERT WATER LTD,25/9/2023 00:00:00,29/10/2023 00:00:00,P07-2024
,LV LEISURE CENTRE CAMPSITE,PREMISES RELATED EXPENDITURE,BUILDING REPAIRS & MAINTENANCE,2222,P123531-SERVICE-New hook up box,10/09/2023 00:00,278328,1690,BR0018,BRADSHAW ELECTRICAL LIMITED,25/9/2023 00:00:00,29/10/2023 00:00:00,P07-2024
,LV LEISURE CENTRE GOLF COURSE,PREMISES RELATED EXPENDITURE,BUILDING REPAIRS & MAINTENANCE,2222,P123296-SERVICE-Gas/Electric Repairs,10/03/2023 00:00,277786,600,SO0400,SOUTHERN GREEN SERVICES LIMITED,25/9/2023 00:00:00,29/10/2023 00:00:00,P07-2024
CEO,LVLC SERVICE CHARGE,PREMISES RELATED EXPENDITURE,BUILDING REPAIRS & MAINTENANCE,2222,P121726-SERVICE-Contract Sweep,10/11/2023 00:00,277954,300,SE0374,SELECT SWEEPER HIRE LTD,25/9/2023 00:00:00,29/10/2023 00:00:00,P07-2024
CEO,LVLC SERVICE CHARGE,PREMISES RELATED EXPENDITURE,BUILDING REPAIRS & MAINTENANCE,2222,P121726-SERVICE-Contract Sweep,25/10/2023 00:00:00,278835,300,SE0374,SELECT SWEEPER HIRE LTD,25/9/2023 00:00:00,29/10/2023 00:00:00,P07-2024
P&V,GUNPOWDER PARK,SUPPLIES AND SERVICES,FENCES/GATES ETC.,2231,P123211-SERVICE-Swan and Pike fence and rail repairs,23/10/2023 00:00:00,278594,890,RE0094,REACT 2 IT (BUILDING & REFURBISHMENT) LTD,25/9/2023 00:00:00,29/10/2023 00:00:00,P07-2024
P&V,MYDDELTON HOUSE GARDENS,PREMISES RELATED EXPENDITURE,CAR PARKS/ACCESS TRACKS,2235,P123187-SERVICE-Herbicide application -Car Park,17/10/2023 00:00:00,278467,395.16,GL0214,GLENDALE GROUNDS MANAGEMENT LIMITED,25/9/2023 00:00:00,29/10/2023 00:00:00,P07-2024
CEO,RESIDENTIAL ACCOMMODATION,EXPENDITURE FROM REPAIRS FUND,EXPENDITURE FROM REPAIRS FUND,2240,P123249-SERVICE-11 Picketts Lock Lane Refurbishment to Re-Let,10/03/2023 00:00,277897,4550,CA0165,CASTLES,25/9/2023 00:00:00,29/10/2023 00:00:00,P07-2024
CEO,COMMERCIAL ACCOMMODATION,PREMISES RELATED EXPENDITURE,EAST HALE ALLOTMENTS,2261,P121887-SERVICE-Allotment Bins,10/11/2023 00:00,278354,255.67,CL0037,VEOLIA ES (UK) LTD,25/9/2023 00:00:00,29/10/2023 00:00:00,P07-2024
CEO,COMMERCIAL ACCOMMODATION,PREMISES RELATED EXPENDITURE,EAST HALE ALLOTMENTS,2261,P121887-SERVICE-Allotment Bins,10/11/2023 00:00,278355,58.68,CL0037,VEOLIA ES (UK) LTD,25/9/2023 00:00:00,29/10/2023 00:00:00,P07-2024
CEO,COMMERCIAL ACCOMMODATION,PREMISES RELATED EXPENDITURE,EAST HALE ALLOTMENTS,2261,P122046-SERVICE-Grass Cutting,17/10/2023 00:00:00,278471,809.16,GL0214,GLENDALE GROUNDS MANAGEMENT LIMITED,25/9/2023 00:00:00,29/10/2023 00:00:00,P07-2024
P&V,MYDDELTON HOUSE,PREMISES RELATED EXPENDITURE,ENERGY COSTS (ELECTRICITY),2332,MD HSE-ELECTRIC SUPPLY-Sept23,23/10/2023 00:00:00,278670,2547.37,KE0007,KENT COUNTY COUNCIL (KCS),25/9/2023 00:00:00,29/10/2023 00:00:00,P07-2024
CEO,RESIDENTIAL ACCOMMODATION,PREMISES RELATED EXPENDITURE,ENERGY COSTS (ELECTRICITY),2332,Sep-23,25/10/2023 00:00:00,278404,30,EO0398,E-ON NEXT ENERGY LTD,25/9/2023 00:00:00,29/10/2023 00:00:00,P07-2024
CEO,RESIDENTIAL ACCOMMODATION,PREMISES RELATED EXPENDITURE,ENERGY COSTS (ELECTRICITY),2332,LV FORGE - ELECTRIC-12/09/23-11/10/23,25/10/2023 00:00:00,278589,15.01,EO0418,E-ON NEXT ENERGY LTD,25/9/2023 00:00:00,29/10/2023 00:00:00,P07-2024
CEO,RESIDENTIAL ACCOMMODATION,PREMISES RELATED EXPENDITURE,ENERGY COSTS (ELECTRICITY),2332,Sep-23,25/10/2023 00:00:00,278645,30.31,EO0419,E-ON NEXT ENERGY LTD,25/9/2023 00:00:00,29/10/2023 00:00:00,P07-2024
CEO,RESIDENTIAL ACCOMMODATION,PREMISES RELATED EXPENDITURE,ENERGY COSTS (ELECTRICITY),2332,01/06/22-09/06/22,25/10/2023 00:00:00,278831,8.07,EO0419,E-ON NEXT ENERGY LTD,25/9/2023 00:00:00,29/10/2023 00:00:00,P07-2024
CEO,RESIDENTIAL ACCOMMODATION,PREMISES RELATED EXPENDITURE,ENERGY COSTS (ELECTRICITY),2332,10/12/2023,25/10/2023 00:00:00,278834,5.21,EO0422,E-ON NEXT ENERGY LTD,25/9/2023 00:00:00,29/10/2023 00:00:00,P07-2024
CEO,COMMERCIAL ACCOMMODATION,PREMISES RELATED EXPENDITURE,ENERGY COSTS (ELECTRICITY),2332,Sep-23,10/11/2023 00:00,278399,110.26,EO0420,E-ON NEXT ENERGY LTD,25/9/2023 00:00:00,29/10/2023 00:00:00,P07-2024
,LEE VALLEY MARINA SPRINGFIELD,PREMISES RELATED EXPENDITURE,ENERGY COSTS (ELECTRICITY),2332,Springfield - -Electrc UTILITY-Sept23,24/10/2023 00:00:00,278662,3175.01,KE0007,KENT COUNTY COUNCIL (KCS),25/9/2023 00:00:00,29/10/2023 00:00:00,P07-2024
,LEE VALLEY WATERWORKS CENTRE,PREMISES RELATED EXPENDITURE,ENERGY COSTS (ELECTRICITY),2332,Waterworks-Electric-Sept23,23/10/2023 00:00:00,278630,1068.78,NP0123,NPOWER LIMITED,25/9/2023 00:00:00,29/10/2023 00:00:00,P07-2024
P&V,LEE VALLEY FARM HOLYFIELDHALL,PREMISES RELATED EXPENDITURE,ENERGY COSTS (ELECTRICITY),2332,Holyfield Farm- -Electric-Sept23-end 201,29/10/2023 00:00:00,278666,28.6,KE0007,KENT COUNTY COUNCIL (KCS),25/9/2023 00:00:00,29/10/2023 00:00:00,P07-2024
P&V,LEE VALLEY FARM HOLYFIELDHALL,PREMISES RELATED EXPENDITURE,ENERGY COSTS (ELECTRICITY),2332,Holyfield-electric-MPAN 202-06-08/23,29/10/2023 00:00:00,278705,87.72,KE0007,KENT COUNTY COUNCIL (KCS),25/9/2023 00:00:00,29/10/2023 00:00:00,P07-2024
,LEE VALLEY CAMPSITE,PREMISES RELATED EXPENDITURE,ENERGY COSTS (ELECTRICITY),2332,Sewardstpne-  Electric  UTILITY-Sept23,23/10/2023 00:00:00,278661,1882.06,KE0007,KENT COUNTY COUNCIL (KCS),25/9/2023 00:00:00,29/10/2023 00:00:00,P07-2024
,LEE VALLEY CAMPSITE,PREMISES RELATED EXPENDITURE,ENERGY COSTS (ELECTRICITY),2332,Sewardstone  -Electrc UTILITY-Sept23,23/10/2023 00:00:00,278663,3185.89,KE0007,KENT COUNTY COUNCIL (KCS),25/9/2023 00:00:00,29/10/2023 00:00:00,P07-2024
,LEE VALLEY CARAVAN PARK,PREMISES RELATED EXPENDITURE,ENERGY COSTS (ELECTRICITY),2332,DW- -Electrc UTILITY-Sept23,29/10/2023 00:00:00,278664,8860.8,KE0007,KENT COUNTY COUNCIL (KCS),25/9/2023 00:00:00,29/10/2023 00:00:00,P07-2024
P&V,EAST INDIA DOCK AND BOW CREEK,PREMISES RELATED EXPENDITURE,ENERGY COSTS (ELECTRICITY),2332,BOW CREEK-ELECTRIC SUPPLY-May23-July23,23/10/2023 00:00:00,276909,201.13,KE0007,KENT COUNTY COUNCIL (KCS),25/9/2023 00:00:00,29/10/2023 00:00:00,P07-2024
P&V,EAST INDIA DOCK AND BOW CREEK,PREMISES RELATED EXPENDITURE,ENERGY COSTS (ELECTRICITY),2332,Bow Creek  -Electrc UTILITY-Sept23,23/10/2023 00:00:00,278665,138,KE0007,KENT COUNTY COUNCIL (KCS),25/9/2023 00:00:00,29/10/2023 00:00:00,P07-2024
P&V,EAST INDIA DOCK AND BOW CREEK,PREMISES RELATED EXPENDITURE,ENERGY COSTS (ELECTRICITY),2332,Bow Creek-ELECTRIC UTILITY  - Sept23,23/10/2023 00:00:00,278667,150.98,KE0007,KENT COUNTY COUNCIL (KCS),25/9/2023 00:00:00,29/10/2023 00:00:00,P07-2024
P&V,EAST INDIA DOCK AND BOW CREEK,PREMISES RELATED EXPENDITURE,ENERGY COSTS (ELECTRICITY),2332,Refer to Comp 276908,23/10/2023 00:00:00,278723,-229.62,KE0007,KENT COUNTY COUNCIL (KCS),25/9/2023 00:00:00,29/10/2023 00:00:00,P07-2024
P&V,EAST INDIA DOCK AND BOW CREEK,PREMISES RELATED EXPENDITURE,ENERGY COSTS (ELECTRICITY),2332,Refer to Comp Ref 276909,23/10/2023 00:00:00,278724,-201.13,KE0007,KENT COUNTY COUNCIL (KCS),25/9/2023 00:00:00,29/10/2023 00:00:00,P07-2024
P&V,GUNPOWDER PARK,PREMISES RELATED EXPENDITURE,ENERGY COSTS (ELECTRICITY),2332,ContainmetnCell-electric-Jun-Aug23,10/03/2023 00:00,277729,111.37,KE0007,KENT COUNTY COUNCIL (KCS),25/9/2023 00:00:00,29/10/2023 00:00:00,P07-2024
P&V,GUNPOWDER PARK,PREMISES RELATED EXPENDITURE,ENERGY COSTS (ELECTRICITY),2332,Gunpowder-Electric utility -Sept23,23/10/2023 00:00:00,278671,539.05,KE0007,KENT COUNTY COUNCIL (KCS),25/9/2023 00:00:00,29/10/2023 00:00:00,P07-2024
P&V,QUEEN ELIZABETH OLYMPIC PARK,PREMISES RELATED EXPENDITURE,ENERGY COSTS (ELECTRICITY),2332,VELOPARK-E20-MPAN 5201-Sept 23,23/10/2023 00:00:00,278668,0.99,KE0007,KENT COUNTY COUNCIL (KCS),25/9/2023 00:00:00,29/10/2023 00:00:00,P07-2024
P&V,QUEEN ELIZABETH OLYMPIC PARK,PREMISES RELATED EXPENDITURE,ENERGY COSTS (ELECTRICITY),2332,VELOPARK-E20-MPAN 5201-Sept 23,23/10/2023 00:00:00,278668,84.84,KE0007,KENT COUNTY COUNCIL (KCS),25/9/2023 00:00:00,29/10/2023 00:00:00,P07-2024
P&V,QUEEN ELIZABETH OLYMPIC PARK,PREMISES RELATED EXPENDITURE,ENERGY COSTS (ELECTRICITY),2332,VELO-E20-MPAN 120-Sept 23,23/10/2023 00:00:00,278669,199.31,KE0007,KENT COUNTY COUNCIL (KCS),25/9/2023 00:00:00,29/10/2023 00:00:00,P07-2024
P&V,QUEEN ELIZABETH OLYMPIC PARK,PREMISES RELATED EXPENDITURE,ENERGY COSTS (ELECTRICITY),2332,VELOPARK-E20-MPAN 1202-Jul-Sept23,23/10/2023 00:00:00,278706,96.96,KE0007,KENT COUNTY COUNCIL (KCS),25/9/2023 00:00:00,29/10/2023 00:00:00,P07-2024
P&V,CAR PARK INCOME,PREMISES RELATED EXPENDITURE,ENERGY COSTS (ELECTRICITY),2332,Clayton Hill- Electric-Sept 23,23/10/2023 00:00:00,278627,32.72,NP0123,NPOWER LIMITED,25/9/2023 00:00:00,29/10/2023 00:00:00,P07-2024
P&V,CAR PARK INCOME,PREMISES RELATED EXPENDITURE,ENERGY COSTS (ELECTRICITY),2332,Cornmill Mead-Electric -Sep23,23/10/2023 00:00:00,278629,41.97,NP0123,NPOWER LIMITED,25/9/2023 00:00:00,29/10/2023 00:00:00,P07-2024
,LV LEISURE CENTRE CAMPSITE,PREMISES RELATED EXPENDITURE,ENERGY COSTS (ELECTRICITY),2332,Edm-Electric-Sept23,18/10/2023 00:00:00,278628,6952.47,NP0123,NPOWER LIMITED,25/9/2023 00:00:00,29/10/2023 00:00:00,P07-2024
CEO,COMMERCIAL ACCOMMODATION,PREMISES RELATED EXPENDITURE,ENERGY COSTS (GAS),2333,18/08/23-17/09/23,10/11/2023 00:00,277952,10.13,BR0654,BRITISH GAS TRADING LTD,25/9/2023 00:00:00,29/10/2023 00:00:00,P07-2024
,LEE VALLEY MARINA SPRINGFIELD,PREMISES RELATED EXPENDITURE,ENERGY COSTS (GAS),2333,S[ringfield -GAS UTILITY-Sept23,24/10/2023 00:00:00,278660,268.52,KE0007,KENT COUNTY COUNCIL (KCS),25/9/2023 00:00:00,29/10/2023 00:00:00,P07-2024
,LEE VALLEY MARINA STANSTEAD,PREMISES RELATED EXPENDITURE,ENERGY COSTS (GAS),2333,Stanstead - Gas utility-Sept 2023,23/10/2023 00:00:00,278655,121.2,KE0007,KENT COUNTY COUNCIL (KCS),25/9/2023 00:00:00,29/10/2023 00:00:00,P07-2024
,LEE VALLEY MARINA STANSTEAD,PREMISES RELATED EXPENDITURE,ENERGY COSTS (GAS),2333,STANSTEAD-GAS UTILITY-Sept 2023,23/10/2023 00:00:00,278656,144.3,KE0007,KENT COUNTY COUNCIL (KCS),25/9/2023 00:00:00,29/10/2023 00:00:00,P07-2024
,LEE VALLEY WATERWORKS CENTRE,PREMISES RELATED EXPENDITURE,ENERGY COSTS (GAS),2333,Waterworks-GAS UTILITY-Sept 23,23/10/2023 00:00:00,278659,657.97,KE0007,KENT COUNTY COUNCIL (KCS),25/9/2023 00:00:00,29/10/2023 00:00:00,P07-2024
,LEE VALLEY CAMPSITE,PREMISES RELATED EXPENDITURE,ENERGY COSTS (GAS),2333,sewardtone--GAS UTILITY-Sept23,23/10/2023 00:00:00,278658,591.44,KE0007,KENT COUNTY COUNCIL (KCS),25/9/2023 00:00:00,29/10/2023 00:00:00,P07-2024
,LEE VALLEY CAMPSITE,PREMISES RELATED EXPENDITURE,ENERGY COSTS (GAS),2333,18/09/23-17/10/23,29/10/2023 00:00:00,278836,9.91,BR0654,BRITISH GAS TRADING LTD,25/9/2023 00:00:00,29/10/2023 00:00:00,P07-2024
,LEE VALLEY CARAVAN PARK,PREMISES RELATED EXPENDITURE,ENERGY COSTS (GAS),2333,P123500-SERVICE-Mannual Order Of Gas,10/09/2023 00:00,278073,5184.17,AV0327,AVANTI GAS LIMITED,25/9/2023 00:00:00,29/10/2023 00:00:00,P07-2024
,LV LEISURE CENTRE CAMPSITE,PREMISES RELATED EXPENDITURE,ENERGY COSTS (GAS),2333,Edm- GAS UTILITY -Sept 2023,24/10/2023 00:00:00,278657,1171.18,KE0007,KENT COUNTY COUNCIL (KCS),25/9/2023 00:00:00,29/10/2023 00:00:00,P07-2024
,LEE VALLEY MARINA SPRINGFIELD,PREMISES RELATED EXPENDITURE,RENT (EXTERNAL),2442,Rent in Advance-Oct23-Mar24,10/03/2023 00:00,277901,200,TH0020,THAMES WATER UTILITIES LIMITED,25/9/2023 00:00:00,29/10/2023 00:00:00,P07-2024
P&V,KING GEORGE RESERVOIR SOUTH,PREMISES RELATED EXPENDITURE,RENT (EXTERNAL),2442,Rent in Advance-Oct23-Dec23,10/03/2023 00:00,277900,3375,TH0020,THAMES WATER UTILITIES LIMITED,25/9/2023 00:00:00,29/10/2023 00:00:00,P07-2024
P&V,MYDDELTON HOUSE,PREMISES RELATED EXPENDITURE,WATER,2555,Md House - Water usage-Sept23,23/10/2023 00:00:00,278672,1521.89,CA0625,CASTLE WATER LIMITED,25/9/2023 00:00:00,29/10/2023 00:00:00,P07-2024
,LEE VALLEY MARINA SPRINGFIELD,PREMISES RELATED EXPENDITURE,WATER,2555,Aug-23,10/03/2023 00:00,277872,4095.08,CA0625,CASTLE WATER LIMITED,25/9/2023 00:00:00,29/10/2023 00:00:00,P07-2024
,LEE VALLEY MARINA SPRINGFIELD,PREMISES RELATED EXPENDITURE,WATER,2555,Aug-23,10/03/2023 00:00,277872,2361.31,CA0625,CASTLE WATER LIMITED,25/9/2023 00:00:00,29/10/2023 00:00:00,P07-2024
,LEE VALLEY MARINA SPRINGFIELD,PREMISES RELATED EXPENDITURE,WATER,2555,Sep-23,10/10/2023 00:00,278337,1439.81,CA0625,CASTLE WATER LIMITED,25/9/2023 00:00:00,29/10/2023 00:00:00,P07-2024
,LEE VALLEY MARINA SPRINGFIELD,PREMISES RELATED EXPENDITURE,WATER,2555,Sep-23,10/10/2023 00:00,278337,2352.25,CA0625,CASTLE WATER LIMITED,25/9/2023 00:00:00,29/10/2023 00:00:00,P07-2024
,LEE VALLEY MARINA STANSTEAD,PREMISES RELATED EXPENDITURE,WATER,2555,Stanstead-water usage - Sept23,10/09/2023 00:00,278259,180.02,CA0625,CASTLE WATER LIMITED,25/9/2023 00:00:00,29/10/2023 00:00:00,P07-2024
,LEE VALLEY MARINA STANSTEAD,PREMISES RELATED EXPENDITURE,WATER,2555,Stanstead-water usage - Sept23,10/09/2023 00:00,278259,184.81,CA0625,CASTLE WATER LIMITED,25/9/2023 00:00:00,29/10/2023 00:00:00,P07-2024
,LEE VALLEY MARINA STANSTEAD,PREMISES RELATED EXPENDITURE,WATER,2555,Stanstead-  water adjustments,29/10/2023 00:00:00,278904,-66.27,CA0625,CASTLE WATER LIMITED,25/9/2023 00:00:00,29/10/2023 00:00:00,P07-2024
,LEE VALLEY MARINA STANSTEAD,PREMISES RELATED EXPENDITURE,WATER,2555,Stanstead-  water adjustments,29/10/2023 00:00:00,278904,-63.79,CA0625,CASTLE WATER LIMITED,25/9/2023 00:00:00,29/10/2023 00:00:00,P07-2024
,LEE VALLEY WATERWORKS CENTRE,PREMISES RELATED EXPENDITURE,WATER,2555,Waterworks-water usage - Sept23,10/10/2023 00:00,278261,123.61,CA0625,CASTLE WATER LIMITED,25/9/2023 00:00:00,29/10/2023 00:00:00,P07-2024
,LEE VALLEY CAMPSITE,PREMISES RELATED EXPENDITURE,WATER,2555,Sewardstone- Water usage-Sept 23,10/09/2023 00:00,278258,2133.86,CA0625,CASTLE WATER LIMITED,25/9/2023 00:00:00,29/10/2023 00:00:00,P07-2024
,LEE VALLEY CARAVAN PARK,PREMISES RELATED EXPENDITURE,WATER,2555,DW-water usage - Sept 23,10/09/2023 00:00,278260,3378.93,CA0625,CASTLE WATER LIMITED,25/9/2023 00:00:00,29/10/2023 00:00:00,P07-2024
,LEE VALLEY CARAVAN PARK,PREMISES RELATED EXPENDITURE,WATER,2555,DW-water usage - Sept 23,10/09/2023 00:00,278260,2031.81,CA0625,CASTLE WATER LIMITED,25/9/2023 00:00:00,29/10/2023 00:00:00,P07-2024
,LEE VALLEY CARAVAN PARK,PREMISES RELATED EXPENDITURE,WATER,2555,DW- water adjustments,29/10/2023 00:00:00,279024,-374.58,CA0625,CASTLE WATER LIMITED,25/9/2023 00:00:00,29/10/2023 00:00:00,P07-2024
,LEE VALLEY CARAVAN PARK,PREMISES RELATED EXPENDITURE,WATER,2555,DW- water adjustments,29/10/2023 00:00:00,279024,-215.98,CA0625,CASTLE WATER LIMITED,25/9/2023 00:00:00,29/10/2023 00:00:00,P07-2024
P&V,EAST INDIA DOCK AND BOW CREEK,PREMISES RELATED EXPENDITURE,WATER,2555,01/08/23-31/01/24,18/10/2023 00:00:00,278057,186.25,CA0625,CASTLE WATER LIMITED,25/9/2023 00:00:00,29/10/2023 00:00:00,P07-2024
P&V,EAST INDIA DOCK AND BOW CREEK,PREMISES RELATED EXPENDITURE,WATER,2555,01/08/23-31/01/24,18/10/2023 00:00:00,278651,-186.25,CA0625,CASTLE WATER LIMITED,25/9/2023 00:00:00,29/10/2023 00:00:00,P07-2024
P&V,EAST INDIA DOCK AND BOW CREEK,PREMISES RELATED EXPENDITURE,WATER,2555,01/08/23-31/01/24,18/10/2023 00:00:00,278652,31.18,CA0625,CASTLE WATER LIMITED,25/9/2023 00:00:00,29/10/2023 00:00:00,P07-2024
P&V,GUNPOWDER PARK,PREMISES RELATED EXPENDITURE,WATER,2555,01/08/23-31/01/24,10/03/2023 00:00,278059,567.38,CA0625,CASTLE WATER LIMITED,25/9/2023 00:00:00,29/10/2023 00:00:00,P07-2024
P&V,RIVER LEE COUNTRY PARK,PREMISES RELATED EXPENDITURE,WATER,2555,01/08/23-31/01/24,10/03/2023 00:00,278058,1110.73,CA0625,CASTLE WATER LIMITED,25/9/2023 00:00:00,29/10/2023 00:00:00,P07-2024
P&V,RIVER LEE COUNTRY PARK,PREMISES RELATED EXPENDITURE,WATER,2555,Sep-23,18/10/2023 00:00:00,278341,29.37,CA0625,CASTLE WATER LIMITED,25/9/2023 00:00:00,29/10/2023 00:00:00,P07-2024
P&V,RIVER LEE COUNTRY PARK,PREMISES RELATED EXPENDITURE,WATER,2555,Refer to comp 273794-WATER- NETHERFIELD,18/10/2023 00:00:00,278559,-177.08,CA0625,CASTLE WATER LIMITED,25/9/2023 00:00:00,29/10/2023 00:00:00,P07-2024
P&V,RIVER LEE COUNTRY PARK,PREMISES RELATED EXPENDITURE,WATER,2555,WATER- NETHERFIELD-0323-0923,18/10/2023 00:00:00,278560,129.03,CA0625,CASTLE WATER LIMITED,25/9/2023 00:00:00,29/10/2023 00:00:00,P07-2024
P&V,RIVER LEE COUNTRY PARK,PREMISES RELATED EXPENDITURE,WATER,2555,SHOWGROUND-WATER-Sept23,29/10/2023 00:00:00,279084,54.35,CA0625,CASTLE WATER LIMITED,25/9/2023 00:00:00,29/10/2023 00:00:00,P07-2024
P&V,FORMER LV LIDO SITE,PREMISES RELATED EXPENDITURE,WATER,2555,Sep-23,18/10/2023 00:00:00,278340,263.95,CA0625,CASTLE WATER LIMITED,25/9/2023 00:00:00,29/10/2023 00:00:00,P07-2024
P&V,FORMER LV LIDO SITE,PREMISES RELATED EXPENDITURE,WATER,2555,Sep-23,18/10/2023 00:00:00,278340,340.07,CA0625,CASTLE WATER LIMITED,25/9/2023 00:00:00,29/10/2023 00:00:00,P07-2024
,LV LEISURE CENTRE CAMPSITE,PREMISES RELATED EXPENDITURE,WATER,2555,Sep-23,10/12/2023 00:00,278338,42.45,CA0625,CASTLE WATER LIMITED,25/9/2023 00:00:00,29/10/2023 00:00:00,P07-2024
,LV LEISURE CENTRE CAMPSITE,PREMISES RELATED EXPENDITURE,WATER,2555,Sep-23,10/12/2023 00:00,278338,36.42,CA0625,CASTLE WATER LIMITED,25/9/2023 00:00:00,29/10/2023 00:00:00,P07-2024
,LV LEISURE CENTRE CAMPSITE,PREMISES RELATED EXPENDITURE,WATER,2555,Sep-23,10/12/2023 00:00,278339,578.05,CA0625,CASTLE WATER LIMITED,25/9/2023 00:00:00,29/10/2023 00:00:00,P07-2024
,LV LEISURE CENTRE CAMPSITE,PREMISES RELATED EXPENDITURE,WATER,2555,Sep-23,10/12/2023 00:00,278339,423.09,CA0625,CASTLE WATER LIMITED,25/9/2023 00:00:00,29/10/2023 00:00:00,P07-2024
,LEE VALLEY MARINA SPRINGFIELD,PREMISES RELATED EXPENDITURE,CLEANING & DOMESTIC SUPPLIES,2666,P123193-SERVICE-Site Cleaning August to november 23,10/10/2023 00:00,278249,1070.52,MA0015,MAYFAIR CLEANING COMPANY LIMITED,25/9/2023 00:00:00,29/10/2023 00:00:00,P07-2024
,LEE VALLEY MARINA SPRINGFIELD,PREMISES RELATED EXPENDITURE,CLEANING & DOMESTIC SUPPLIES,2666,P123685-SERVICE-Cleaning supplies,29/10/2023 00:00:00,278872,239.01,HY0043,HYGIENE SYSTEMS LTD,25/9/2023 00:00:00,29/10/2023 00:00:00,P07-2024
,LEE VALLEY MARINA STANSTEAD,PREMISES RELATED EXPENDITURE,CLEANING & DOMESTIC SUPPLIES,2666,P123632-SERVICE-cleaning,17/10/2023 00:00:00,278638,145,TR0632,TONYA RENNIE T/A TR SERVICES,25/9/2023 00:00:00,29/10/2023 00:00:00,P07-2024
,LEE VALLEY MARINA STANSTEAD,PREMISES RELATED EXPENDITURE,CLEANING & DOMESTIC SUPPLIES,2666,P123783-SERVICE-Tonya cleaning in marias absence Oct 23,29/10/2023 00:00:00,279012,85,TR0632,TONYA RENNIE T/A TR SERVICES,25/9/2023 00:00:00,29/10/2023 00:00:00,P07-2024
,LEE VALLEY CAMPSITE,PREMISES RELATED EXPENDITURE,CLEANING & DOMESTIC SUPPLIES,2666,P123437-SERVICE-Site cleaning materials,10/03/2023 00:00,277935,149.06,HY0043,HYGIENE SYSTEMS LTD,25/9/2023 00:00:00,29/10/2023 00:00:00,P07-2024
,LEE VALLEY CAMPSITE,PREMISES RELATED EXPENDITURE,CLEANING & DOMESTIC SUPPLIES,2666,P123437-SERVICE-Site cleaning materials,10/03/2023 00:00,277936,55.12,HY0043,HYGIENE SYSTEMS LTD,25/9/2023 00:00:00,29/10/2023 00:00:00,P07-2024
,LEE VALLEY CAMPSITE,PREMISES RELATED EXPENDITURE,CLEANING & DOMESTIC SUPPLIES,2666,P123437-SERVICE-Site cleaning materials,10/09/2023 00:00,278127,167.07,HY0043,HYGIENE SYSTEMS LTD,25/9/2023 00:00:00,29/10/2023 00:00:00,P07-2024
,LEE VALLEY CARAVAN PARK,PREMISES RELATED EXPENDITURE,CLEANING & DOMESTIC SUPPLIES,2666,P123407-SERVICE-Cleaning materials,10/09/2023 00:00,278075,219.48,HY0043,HYGIENE SYSTEMS LTD,25/9/2023 00:00:00,29/10/2023 00:00:00,P07-2024
,LEE VALLEY CARAVAN PARK,PREMISES RELATED EXPENDITURE,CLEANING & DOMESTIC SUPPLIES,2666,P123241-SERVICE-Cleaning materials,10/09/2023 00:00,278076,15.76,HY0043,HYGIENE SYSTEMS LTD,25/9/2023 00:00:00,29/10/2023 00:00:00,P07-2024
,LEE VALLEY CARAVAN PARK,PREMISES RELATED EXPENDITURE,CLEANING & DOMESTIC SUPPLIES,2666,P123407-SERVICE-Cleaning materials,17/10/2023 00:00:00,278376,10.2,HY0043,HYGIENE SYSTEMS LTD,25/9/2023 00:00:00,29/10/2023 00:00:00,P07-2024
,LEE VALLEY CARAVAN PARK,PREMISES RELATED EXPENDITURE,CLEANING & DOMESTIC SUPPLIES,2666,P123737-SERVICE-Various Cleaning Products,29/10/2023 00:00:00,279015,155.36,HY0043,HYGIENE SYSTEMS LTD,25/9/2023 00:00:00,29/10/2023 00:00:00,P07-2024
P&V,RIVER LEE COUNTRY PARK,PREMISES RELATED EXPENDITURE,CLEANING & DOMESTIC SUPPLIES,2666,P123361-SERVICE-1x 78285CP - Maxima Green Toilet Tissue 320 S,10/03/2023 00:00,277895,15.77,TH0008,JKL SOLUTIONS LTD,25/9/2023 00:00:00,29/10/2023 00:00:00,P07-2024
P&V,RIVER LEE COUNTRY PARK,PREMISES RELATED EXPENDITURE,CLEANING & DOMESTIC SUPPLIES,2666,P123361-SERVICE-1x CPD34619 - Carex Antibacterial Handwash 25,10/03/2023 00:00,277895,13.93,TH0008,JKL SOLUTIONS LTD,25/9/2023 00:00:00,29/10/2023 00:00:00,P07-2024
P&V,RIVER LEE COUNTRY PARK,PREMISES RELATED EXPENDITURE,CLEANING & DOMESTIC SUPPLIES,2666,P123361-SERVICE-6x VA00392 - Toilet Cleaner and Descaler 1 Li,10/03/2023 00:00,277895,14.58,TH0008,JKL SOLUTIONS LTD,25/9/2023 00:00:00,29/10/2023 00:00:00,P07-2024
P&V,RIVER LEE COUNTRY PARK,PREMISES RELATED EXPENDITURE,CLEANING & DOMESTIC SUPPLIES,2666,P123361-SERVICE-1x 2W04586 - Antibacterial Sanitiser Spray 75,10/03/2023 00:00,277895,13.98,TH0008,JKL SOLUTIONS LTD,25/9/2023 00:00:00,29/10/2023 00:00:00,P07-2024
P&V,RIVER LEE COUNTRY PARK,PREMISES RELATED EXPENDITURE,CLEANING & DOMESTIC SUPPLIES,2666,P123361-SERVICE-1x RK55947 - Windolene Glass and Shiny Surfac,10/03/2023 00:00,277895,14.94,TH0008,JKL SOLUTIONS LTD,25/9/2023 00:00:00,29/10/2023 00:00:00,P07-2024
P&V,RIVER LEE COUNTRY PARK,PREMISES RELATED EXPENDITURE,CLEANING & DOMESTIC SUPPLIES,2666,P123361-SERVICE-1x CX00377 - Sponge Back Scourer 140x70x40mm,10/03/2023 00:00,277895,3.74,TH0008,JKL SOLUTIONS LTD,25/9/2023 00:00:00,29/10/2023 00:00:00,P07-2024
,LV LEISURE CENTRE CAMPSITE,PREMISES RELATED EXPENDITURE,CLEANING & DOMESTIC SUPPLIES,2666,P123511-SERVICE-Cleaning supplies,17/10/2023 00:00:00,278422,177.97,HY0043,HYGIENE SYSTEMS LTD,25/9/2023 00:00:00,29/10/2023 00:00:00,P07-2024
CEO,COMMERCIAL ACCOMMODATION,TRANSPORT RELATED EXPENDITURE,TRANSPORT RUNNING EXPENSES,3333,P123754-SERVICE-Standing Charge & Gas LV Forge,29/10/2023 00:00:00,278400,36.89,CA0006,CALOR GAS LIMITED,25/9/2023 00:00:00,29/10/2023 00:00:00,P07-2024
P&V,LEE VALLEY FARM HOLYFIELDHALL,TRANSPORT RELATED EXPENDITURE,TRANSPORT RUNNING EXPENSES,3333,"P123432-SERVICE-2 x Tyres, Wheel Balance, Valves, Disposal",10/03/2023 00:00,277955,398,KB0006,CITY 1ST LTD (frmly KB TYRES LTD),25/9/2023 00:00:00,29/10/2023 00:00:00,P07-2024
P&V,LEE VALLEY FARM HOLYFIELDHALL,TRANSPORT RELATED EXPENDITURE,TRANSPORT RUNNING EXPENSES,3333,"P123431-SERVICE-4 x Tyres, Wheel Balance, Valves",10/03/2023 00:00,277956,584,KB0006,CITY 1ST LTD (frmly KB TYRES LTD),25/9/2023 00:00:00,29/10/2023 00:00:00,P07-2024
P&V,LEE VALLEY FARM HOLYFIELDHALL,TRANSPORT RELATED EXPENDITURE,TRANSPORT RUNNING EXPENSES,3333,P123503-SERVICE-Tractor Spares,10/09/2023 00:00,278114,108.44,OL0001,OLIVER AGRICULTURE LTD,25/9/2023 00:00:00,29/10/2023 00:00:00,P07-2024
P&V,LEE VALLEY FARM HOLYFIELDHALL,TRANSPORT RELATED EXPENDITURE,TRANSPORT RUNNING EXPENSES,3333,P121496-SERVICE-Workshop Sundries,10/09/2023 00:00,278135,39,GR0022,GROUP COMPONENTS LIMITED,25/9/2023 00:00:00,29/10/2023 00:00:00,P07-2024
P&V,LEE VALLEY FARM HOLYFIELDHALL,TRANSPORT RELATED EXPENDITURE,TRANSPORT RUNNING EXPENSES,3333,P122798-SERVICE-Hose Spares,10/10/2023 00:00,278398,610.38,HY0447,J W HYDRAULICS LTD,25/9/2023 00:00:00,29/10/2023 00:00:00,P07-2024
P&V,LEE VALLEY FARM HOLYFIELDHALL,TRANSPORT RELATED EXPENDITURE,TRANSPORT RUNNING EXPENSES,3333,P122798-SERVICE-Hose Spares,23/10/2023 00:00:00,278648,216.63,HY0447,J W HYDRAULICS LTD,25/9/2023 00:00:00,29/10/2023 00:00:00,P07-2024
P&V,LEE VALLEY FARM HOLYFIELDHALL,TRANSPORT RELATED EXPENDITURE,TRANSPORT RUNNING EXPENSES,3333,P123503-SERVICE-Tractor Spares,29/10/2023 00:00:00,278691,81.21,OL0001,OLIVER AGRICULTURE LTD,25/9/2023 00:00:00,29/10/2023 00:00:00,P07-2024
P&V,LEE VALLEY FARM HOLYFIELDHALL,TRANSPORT RELATED EXPENDITURE,TRANSPORT RUNNING EXPENSES,3333,P121504-SERVICE-Tractor Spares,29/10/2023 00:00:00,278843,194.1,OL0059,OLIVER LANDPOWER LIMITED,25/9/2023 00:00:00,29/10/2023 00:00:00,P07-2024
P&V,FISHERIES MANAGEMENT,TRANSPORT RELATED EXPENDITURE,VEHICLE FUEL,3335,ALLSTAR BUSINESS SOLUTIONS LTD,10/04/2023 00:00,278121,4.18,AR0035,ALLSTAR BUSINESS SOLUTIONS LTD,25/9/2023 00:00:00,29/10/2023 00:00:00,P07-2024
P&V,FISHERIES MANAGEMENT,TRANSPORT RELATED EXPENDITURE,VEHICLE FUEL,3335,ALLSTAR BUSINESS SOLUTIONS LTD,10/04/2023 00:00,278121,7.65,AR0035,ALLSTAR BUSINESS SOLUTIONS LTD,25/9/2023 00:00:00,29/10/2023 00:00:00,P07-2024
P&V,FISHERIES MANAGEMENT,TRANSPORT RELATED EXPENDITURE,VEHICLE FUEL,3335,ALLSTAR BUSINESS SOLUTIONS LTD,10/04/2023 00:00,278121,213.59,AR0035,ALLSTAR BUSINESS SOLUTIONS LTD,25/9/2023 00:00:00,29/10/2023 00:00:00,P07-2024
,LEE VALLEY MARINA STANSTEAD,TRANSPORT RELATED EXPENDITURE,VEHICLE FUEL,3335,ALLSTAR BUSINESS SOLUTIONS LTD,10/04/2023 00:00,278121,171.14,AR0035,ALLSTAR BUSINESS SOLUTIONS LTD,25/9/2023 00:00:00,29/10/2023 00:00:00,P07-2024
,LEE VALLEY MARINA STANSTEAD,TRANSPORT RELATED EXPENDITURE,VEHICLE FUEL,3335,ALLSTAR BUSINESS SOLUTIONS LTD,10/04/2023 00:00,278121,5.1,AR0035,ALLSTAR BUSINESS SOLUTIONS LTD,25/9/2023 00:00:00,29/10/2023 00:00:00,P07-2024
,LEE VALLEY MARINA STANSTEAD,TRANSPORT RELATED EXPENDITURE,VEHICLE FUEL,3335,ALLSTAR BUSINESS SOLUTIONS LTD,10/04/2023 00:00,278121,4.18,AR0035,ALLSTAR BUSINESS SOLUTIONS LTD,25/9/2023 00:00:00,29/10/2023 00:00:00,P07-2024
,LEE VALLEY MARINA STANSTEAD,TRANSPORT RELATED EXPENDITURE,VEHICLE FUEL,3335,ALLSTAR BUSINESS SOLUTIONS LTD,10/04/2023 00:00,278121,17.25,AR0035,ALLSTAR BUSINESS SOLUTIONS LTD,25/9/2023 00:00:00,29/10/2023 00:00:00,P07-2024
,STANSTEAD RECHARGEABLE WORKS,TRANSPORT RELATED EXPENDITURE,VEHICLE FUEL,3335,P123364-SERVICE-200ltrs white diesel,10/03/2023 00:00,277933,305.3,SP0543,SPEEDY FUELS LIMITED,25/9/2023 00:00:00,29/10/2023 00:00:00,P07-2024
P&V,LEE VALLEY FARM HOLYFIELDHALL,TRANSPORT RELATED EXPENDITURE,VEHICLE FUEL,3335,ALLSTAR BUSINESS SOLUTIONS LTD,10/04/2023 00:00,278121,17.25,AR0035,ALLSTAR BUSINESS SOLUTIONS LTD,25/9/2023 00:00:00,29/10/2023 00:00:00,P07-2024
P&V,LEE VALLEY FARM HOLYFIELDHALL,TRANSPORT RELATED EXPENDITURE,VEHICLE FUEL,3335,ALLSTAR BUSINESS SOLUTIONS LTD,10/04/2023 00:00,278121,7.65,AR0035,ALLSTAR BUSINESS SOLUTIONS LTD,25/9/2023 00:00:00,29/10/2023 00:00:00,P07-2024
P&V,LEE VALLEY FARM HOLYFIELDHALL,TRANSPORT RELATED EXPENDITURE,VEHICLE FUEL,3335,ALLSTAR BUSINESS SOLUTIONS LTD,10/04/2023 00:00,278121,6.27,AR0035,ALLSTAR BUSINESS SOLUTIONS LTD,25/9/2023 00:00:00,29/10/2023 00:00:00,P07-2024
P&V,LEE VALLEY FARM HOLYFIELDHALL,TRANSPORT RELATED EXPENDITURE,VEHICLE FUEL,3335,ALLSTAR BUSINESS SOLUTIONS LTD,10/04/2023 00:00,278121,231.21,AR0035,ALLSTAR BUSINESS SOLUTIONS LTD,25/9/2023 00:00:00,29/10/2023 00:00:00,P07-2024
,LEE VALLEY CAMPSITE,TRANSPORT RELATED EXPENDITURE,VEHICLE FUEL,3335,ALLSTAR BUSINESS SOLUTIONS LTD,10/04/2023 00:00,278121,5.1,AR0035,ALLSTAR BUSINESS SOLUTIONS LTD,25/9/2023 00:00:00,29/10/2023 00:00:00,P07-2024
,LEE VALLEY CAMPSITE,TRANSPORT RELATED EXPENDITURE,VEHICLE FUEL,3335,ALLSTAR BUSINESS SOLUTIONS LTD,10/04/2023 00:00,278121,107.03,AR0035,ALLSTAR BUSINESS SOLUTIONS LTD,25/9/2023 00:00:00,29/10/2023 00:00:00,P07-2024
,LEE VALLEY CAMPSITE,TRANSPORT RELATED EXPENDITURE,VEHICLE FUEL,3335,ALLSTAR BUSINESS SOLUTIONS LTD,10/04/2023 00:00,278121,4.18,AR0035,ALLSTAR BUSINESS SOLUTIONS LTD,25/9/2023 00:00:00,29/10/2023 00:00:00,P07-2024
,LEE VALLEY CARAVAN PARK,TRANSPORT RELATED EXPENDITURE,VEHICLE FUEL,3335,ALLSTAR BUSINESS SOLUTIONS LTD,10/04/2023 00:00,278121,17.25,AR0035,ALLSTAR BUSINESS SOLUTIONS LTD,25/9/2023 00:00:00,29/10/2023 00:00:00,P07-2024
,LEE VALLEY CARAVAN PARK,TRANSPORT RELATED EXPENDITURE,VEHICLE FUEL,3335,ALLSTAR BUSINESS SOLUTIONS LTD,10/04/2023 00:00,278121,5.1,AR0035,ALLSTAR BUSINESS SOLUTIONS LTD,25/9/2023 00:00:00,29/10/2023 00:00:00,P07-2024
,LEE VALLEY CARAVAN PARK,TRANSPORT RELATED EXPENDITURE,VEHICLE FUEL,3335,ALLSTAR BUSINESS SOLUTIONS LTD,10/04/2023 00:00,278121,4.18,AR0035,ALLSTAR BUSINESS SOLUTIONS LTD,25/9/2023 00:00:00,29/10/2023 00:00:00,P07-2024
,LEE VALLEY CARAVAN PARK,TRANSPORT RELATED EXPENDITURE,VEHICLE FUEL,3335,ALLSTAR BUSINESS SOLUTIONS LTD,10/04/2023 00:00,278121,180.31,AR0035,ALLSTAR BUSINESS SOLUTIONS LTD,25/9/2023 00:00:00,29/10/2023 00:00:00,P07-2024
P&V,MYDDELTON HOUSE GARDENS,TRANSPORT RELATED EXPENDITURE,VEHICLE FUEL,3335,ALLSTAR BUSINESS SOLUTIONS LTD,10/04/2023 00:00,278121,17.25,AR0035,ALLSTAR BUSINESS SOLUTIONS LTD,25/9/2023 00:00:00,29/10/2023 00:00:00,P07-2024
P&V,MYDDELTON HOUSE GARDENS,TRANSPORT RELATED EXPENDITURE,VEHICLE FUEL,3335,ALLSTAR BUSINESS SOLUTIONS LTD,10/04/2023 00:00,278121,2.09,AR0035,ALLSTAR BUSINESS SOLUTIONS LTD,25/9/2023 00:00:00,29/10/2023 00:00:00,P07-2024
P&V,SOUTH AREA RANGERS,TRANSPORT RELATED EXPENDITURE,VEHICLE FUEL,3335,ALLSTAR BUSINESS SOLUTIONS LTD,10/04/2023 00:00,278121,384.27,AR0035,ALLSTAR BUSINESS SOLUTIONS LTD,25/9/2023 00:00:00,29/10/2023 00:00:00,P07-2024
P&V,SOUTH AREA RANGERS,TRANSPORT RELATED EXPENDITURE,VEHICLE FUEL,3335,ALLSTAR BUSINESS SOLUTIONS LTD,10/04/2023 00:00,278121,10.45,AR0035,ALLSTAR BUSINESS SOLUTIONS LTD,25/9/2023 00:00:00,29/10/2023 00:00:00,P07-2024
P&V,SOUTH AREA RANGERS,TRANSPORT RELATED EXPENDITURE,VEHICLE FUEL,3335,ALLSTAR BUSINESS SOLUTIONS LTD,10/04/2023 00:00,278121,12.75,AR0035,ALLSTAR BUSINESS SOLUTIONS LTD,25/9/2023 00:00:00,29/10/2023 00:00:00,P07-2024
P&V,RIVER LEE COUNTRY PARK,TRANSPORT RELATED EXPENDITURE,VEHICLE FUEL,3335,ALLSTAR BUSINESS SOLUTIONS LTD,10/04/2023 00:00,278121,27.17,AR0035,ALLSTAR BUSINESS SOLUTIONS LTD,25/9/2023 00:00:00,29/10/2023 00:00:00,P07-2024
P&V,RIVER LEE COUNTRY PARK,TRANSPORT RELATED EXPENDITURE,VEHICLE FUEL,3335,ALLSTAR BUSINESS SOLUTIONS LTD,10/04/2023 00:00,278121,12.75,AR0035,ALLSTAR BUSINESS SOLUTIONS LTD,25/9/2023 00:00:00,29/10/2023 00:00:00,P07-2024
P&V,RIVER LEE COUNTRY PARK,TRANSPORT RELATED EXPENDITURE,VEHICLE FUEL,3335,ALLSTAR BUSINESS SOLUTIONS LTD,10/04/2023 00:00,278121,34.5,AR0035,ALLSTAR BUSINESS SOLUTIONS LTD,25/9/2023 00:00:00,29/10/2023 00:00:00,P07-2024
P&V,RIVER LEE COUNTRY PARK,TRANSPORT RELATED EXPENDITURE,VEHICLE FUEL,3335,ALLSTAR BUSINESS SOLUTIONS LTD,10/04/2023 00:00,278121,196.91,AR0035,ALLSTAR BUSINESS SOLUTIONS LTD,25/9/2023 00:00:00,29/10/2023 00:00:00,P07-2024
,LV LEISURE CENTRE CAMPSITE,TRANSPORT RELATED EXPENDITURE,VEHICLE FUEL,3335,ALLSTAR BUSINESS SOLUTIONS LTD,10/04/2023 00:00,278121,2.09,AR0035,ALLSTAR BUSINESS SOLUTIONS LTD,25/9/2023 00:00:00,29/10/2023 00:00:00,P07-2024
,LEE VALLEY MARINA SPRINGFIELD,TRANSPORT RELATED EXPENDITURE,VEHICLE REPAIRS & MAINTENANCE,3338,P123709-SERVICE-Hydraulic hoses for Tractor,29/10/2023 00:00:00,279083,939.42,PI0019,PIRTEK (LEYTON) - DAPPLEFLAIR LTD,25/9/2023 00:00:00,29/10/2023 00:00:00,P07-2024
P&V,NORTH AREA RANGERS,TRANSPORT RELATED EXPENDITURE,VEHICLE REPAIRS & MAINTENANCE,3338,P122784-SERVICE-Service Quad - EU55XXM,29/10/2023 00:00:00,277879,712.9,TU0006,P TUCKWELL LTD,25/9/2023 00:00:00,29/10/2023 00:00:00,P07-2024
P&V,NORTH AREA RANGERS,TRANSPORT RELATED EXPENDITURE,VEHICLE REPAIRS & MAINTENANCE,3338,P122784-SERVICE-Service Quad - EU55XXM,10/09/2023 00:00,278079,-712.9,TU0006,P TUCKWELL LTD,25/9/2023 00:00:00,29/10/2023 00:00:00,P07-2024
P&V,NORTH AREA RANGERS,TRANSPORT RELATED EXPENDITURE,VEHICLE REPAIRS & MAINTENANCE,3338,P122775-SERVICE-Stripping Logos to 8 Vehicles,25/10/2023 00:00:00,278805,560,TO0314,TOTALLY DYNAMIC NORTH LONDON,25/9/2023 00:00:00,29/10/2023 00:00:00,P07-2024
P&V,NORTH AREA RANGERS,TRANSPORT RELATED EXPENDITURE,VEHICLE REPAIRS & MAINTENANCE,3338,P122776-SERVICE-Apply Logos - 3 Vehicles,25/10/2023 00:00:00,278806,834,TO0314,TOTALLY DYNAMIC NORTH LONDON,25/9/2023 00:00:00,29/10/2023 00:00:00,P07-2024
P&V,NORTH AREA RANGERS,TRANSPORT RELATED EXPENDITURE,VEHICLE REPAIRS & MAINTENANCE,3338,P122776-SERVICE-Apply Logos - 3 Vehicles,25/10/2023 00:00:00,278806,619.5,TO0314,TOTALLY DYNAMIC NORTH LONDON,25/9/2023 00:00:00,29/10/2023 00:00:00,P07-2024
P&V,NORTH AREA RANGERS,TRANSPORT RELATED EXPENDITURE,VEHICLE REPAIRS & MAINTENANCE,3338,P123645-SERVICE-MOT - GK65MOF,24/10/2023 00:00:00,278807,45,AB0153,ABBEY SERVICE CENTRE,25/9/2023 00:00:00,29/10/2023 00:00:00,P07-2024
P&V,NORTH AREA RANGERS,TRANSPORT RELATED EXPENDITURE,VEHICLE REPAIRS & MAINTENANCE,3338,P123645-SERVICE-MOT - GK65MMU,24/10/2023 00:00:00,278808,45,AB0153,ABBEY SERVICE CENTRE,25/9/2023 00:00:00,29/10/2023 00:00:00,P07-2024
P&V,SOUTH AREA RANGERS,TRANSPORT RELATED EXPENDITURE,VEHICLE REPAIRS & MAINTENANCE,3338,P123505-SERVICE-The cost to supply and fit a logo and telepho,18/10/2023 00:00:00,278291,158,TO0314,TOTALLY DYNAMIC NORTH LONDON,25/9/2023 00:00:00,29/10/2023 00:00:00,P07-2024
P&V,RIVER LEE COUNTRY PARK,TRANSPORT RELATED EXPENDITURE,VEHICLE REPAIRS & MAINTENANCE,3338,P123442-SERVICE-Gator Service - XUV855D,10/03/2023 00:00,277885,564.06,TU0006,P TUCKWELL LTD,25/9/2023 00:00:00,29/10/2023 00:00:00,P07-2024
,LEE VALLEY MARINA SPRINGFIELD,SUPPLIES AND SERVICES,EQUIPMENT & MATERIALS,4111,P122645-SERVICE-Warning signs & safety equipment,10/03/2023 00:00,277746,20.14,SE0018,BRADY CORPORATION LIMITED/SETON,25/9/2023 00:00:00,29/10/2023 00:00:00,P07-2024
,LEE VALLEY MARINA SPRINGFIELD,SUPPLIES AND SERVICES,EQUIPMENT & MATERIALS,4111,P123578-SERVICE-Shipping cost,24/10/2023 00:00:00,278587,9.95,WE0172,WEL MEDICAL LIMITED,25/9/2023 00:00:00,29/10/2023 00:00:00,P07-2024
,LEE VALLEY MARINA SPRINGFIELD,SUPPLIES AND SERVICES,EQUIPMENT & MATERIALS,4111,P123578-SERVICE-Replacement Battery code 63032,24/10/2023 00:00:00,278587,223,WE0172,WEL MEDICAL LIMITED,25/9/2023 00:00:00,29/10/2023 00:00:00,P07-2024
,STANSTEAD RECHARGEABLE WORKS,SUPPLIES AND SERVICES,EQUIPMENT & MATERIALS,4111,P123458-SERVICE-blacking,10/10/2023 00:00,278147,1401,AQ0033,AQUAFAX LIMITED,25/9/2023 00:00:00,29/10/2023 00:00:00,P07-2024
,LEE VALLEY CAMPSITE,SUPPLIES AND SERVICES,EQUIPMENT & MATERIALS,4111,P122516-SERVICE-Site requipmenty & materials,29/10/2023 00:00:00,278879,107.54,SC0057,SCREWFIX DIRECT LTD,25/9/2023 00:00:00,29/10/2023 00:00:00,P07-2024
,LEE VALLEY CAMPSITE,SUPPLIES AND SERVICES,EQUIPMENT & MATERIALS,4111,P122516-SERVICE-Site requipmenty & materials,29/10/2023 00:00:00,278881,6.66,SC0057,SCREWFIX DIRECT LTD,25/9/2023 00:00:00,29/10/2023 00:00:00,P07-2024
,LEE VALLEY CARAVAN PARK,SUPPLIES AND SERVICES,EQUIPMENT & MATERIALS,4111,P123469-SERVICE-Supply/fit water heater Install Extra Sockets,10/09/2023 00:00,276827,377,BR0018,BRADSHAW ELECTRICAL LIMITED,25/9/2023 00:00:00,29/10/2023 00:00:00,P07-2024
,LEE VALLEY CARAVAN PARK,SUPPLIES AND SERVICES,EQUIPMENT & MATERIALS,4111,P123467-SERVICE-Install Power/Lighting in the Coumpound Shed,10/09/2023 00:00,277708,1585,BR0018,BRADSHAW ELECTRICAL LIMITED,25/9/2023 00:00:00,29/10/2023 00:00:00,P07-2024
,LEE VALLEY CARAVAN PARK,SUPPLIES AND SERVICES,EQUIPMENT & MATERIALS,4111,P123471-SERVICE-Replace faulty Chemical toilet sensor light,10/09/2023 00:00,277714,110,BR0018,BRADSHAW ELECTRICAL LIMITED,25/9/2023 00:00:00,29/10/2023 00:00:00,P07-2024
,LEE VALLEY CARAVAN PARK,SUPPLIES AND SERVICES,EQUIPMENT & MATERIALS,4111,P123656-SERVICE-New pull cord for alarm in Family Room,29/10/2023 00:00:00,278590,197,BR0018,BRADSHAW ELECTRICAL LIMITED,25/9/2023 00:00:00,29/10/2023 00:00:00,P07-2024
,LEE VALLEY CARAVAN PARK,SUPPLIES AND SERVICES,EQUIPMENT & MATERIALS,4111,P123461-SERVICE-Various materials for HH127 parking bay,18/10/2023 00:00:00,278591,1206.16,LE0012,LEASIDE TIMBER & BUILDERS MERCHANTS LTD,25/9/2023 00:00:00,29/10/2023 00:00:00,P07-2024
,LEE VALLEY CARAVAN PARK,SUPPLIES AND SERVICES,EQUIPMENT & MATERIALS,4111,P123668-SERVICE-Toilet Seat and Gloves,29/10/2023 00:00:00,278640,32.24,SC0057,SCREWFIX DIRECT LTD,25/9/2023 00:00:00,29/10/2023 00:00:00,P07-2024
,LEE VALLEY CARAVAN PARK,SUPPLIES AND SERVICES,EQUIPMENT & MATERIALS,4111,P123782-SERVICE-Latch for Cottage Gate,29/10/2023 00:00:00,278798,42.9,SC0057,SCREWFIX DIRECT LTD,25/9/2023 00:00:00,29/10/2023 00:00:00,P07-2024
,LEE VALLEY CARAVAN PARK,SUPPLIES AND SERVICES,EQUIPMENT & MATERIALS,4111,P123802-SERVICE-Install led Flood light wih Sensor Compound,29/10/2023 00:00:00,279028,490,BR0018,BRADSHAW ELECTRICAL LIMITED,25/9/2023 00:00:00,29/10/2023 00:00:00,P07-2024
P&V,MYDDELTON HOUSE GARDENS,SUPPLIES AND SERVICES,EQUIPMENT & MATERIALS,4111,P121912-SERVICE-pest control gardens 23/24,10/03/2023 00:00,277623,79.43,FA0149,FARGRO LIMITED,25/9/2023 00:00:00,29/10/2023 00:00:00,P07-2024
P&V,MYDDELTON HOUSE GARDENS,SUPPLIES AND SERVICES,EQUIPMENT & MATERIALS,4111,P123267-SERVICE-gardens machinery,29/10/2023 00:00:00,278729,547.51,AP0245,APS LIMITED,25/9/2023 00:00:00,29/10/2023 00:00:00,P07-2024
P&V,MYDDELTON HOUSE GARDENS,SUPPLIES AND SERVICES,EQUIPMENT & MATERIALS,4111,P123674-SERVICE-gardens supplies 2023 amazon,29/10/2023 00:00:00,278790,36.9,AM0406,AMAZON PAYMENTS UK LIMITED,25/9/2023 00:00:00,29/10/2023 00:00:00,P07-2024
P&V,MYDDELTON HOUSE GARDENS,SUPPLIES AND SERVICES,EQUIPMENT & MATERIALS,4111,P123674-SERVICE-gardens supplies 2023 amazon,29/10/2023 00:00:00,278791,25.37,AM0406,AMAZON PAYMENTS UK LIMITED,25/9/2023 00:00:00,29/10/2023 00:00:00,P07-2024
P&V,MYDDELTON HOUSE GARDENS,SUPPLIES AND SERVICES,EQUIPMENT & MATERIALS,4111,P123674-SERVICE-gardens supplies 2023 amazon,29/10/2023 00:00:00,278792,4.16,AM0406,AMAZON PAYMENTS UK LIMITED,25/9/2023 00:00:00,29/10/2023 00:00:00,P07-2024
P&V,MYDDELTON HOUSE GARDENS,SUPPLIES AND SERVICES,EQUIPMENT & MATERIALS,4111,P123674-SERVICE-gardens supplies 2023 amazon,29/10/2023 00:00:00,278793,6.16,AM0406,AMAZON PAYMENTS UK LIMITED,25/9/2023 00:00:00,29/10/2023 00:00:00,P07-2024
P&V,MYDDELTON HOUSE GARDENS,SUPPLIES AND SERVICES,EQUIPMENT & MATERIALS,4111,P123674-SERVICE-gardens supplies 2023 amazon,29/10/2023 00:00:00,278794,5.82,AM0406,AMAZON PAYMENTS UK LIMITED,25/9/2023 00:00:00,29/10/2023 00:00:00,P07-2024
P&V,MYDDELTON HOUSE GARDENS,SUPPLIES AND SERVICES,EQUIPMENT & MATERIALS,4111,P123674-SERVICE-gardens supplies 2023 amazon,29/10/2023 00:00:00,278795,6.37,AM0406,AMAZON PAYMENTS UK LIMITED,25/9/2023 00:00:00,29/10/2023 00:00:00,P07-2024
P&V,MYDDELTON HOUSE GARDENS,SUPPLIES AND SERVICES,EQUIPMENT & MATERIALS,4111,P123674-SERVICE-gardens supplies 2023 amazon,29/10/2023 00:00:00,278796,35.77,AM0406,AMAZON PAYMENTS UK LIMITED,25/9/2023 00:00:00,29/10/2023 00:00:00,P07-2024
P&V,MYDDLETON HSE HERITAGE CENTRE,SUPPLIES AND SERVICES,EQUIPMENT & MATERIALS,4111,P123481-SERVICE-vc uniform 2023,17/10/2023 00:00:00,278295,27.5,DI0017,DIRECT BOOT & SHOE SUPPLIES,25/9/2023 00:00:00,29/10/2023 00:00:00,P07-2024
P&V,MYDDLETON HSE HERITAGE CENTRE,SUPPLIES AND SERVICES,EQUIPMENT & MATERIALS,4111,P123415-SERVICE-Bar Apron with Sewn Logo - OV109,10/09/2023 00:00,278335,65,DI0017,DIRECT BOOT & SHOE SUPPLIES,25/9/2023 00:00:00,29/10/2023 00:00:00,P07-2024
P&V,MYDDLETON HSE HERITAGE CENTRE,SUPPLIES AND SERVICES,EQUIPMENT & MATERIALS,4111,P123705-SERVICE-Carrage,29/10/2023 00:00:00,278842,9.95,WE0172,WEL MEDICAL LIMITED,25/9/2023 00:00:00,29/10/2023 00:00:00,P07-2024
P&V,MYDDLETON HSE HERITAGE CENTRE,SUPPLIES AND SERVICES,EQUIPMENT & MATERIALS,4111,P123705-SERVICE-1 x Disposal Battery Li-ion for i-PAD SP1 & S,29/10/2023 00:00:00,278842,223,WE0172,WEL MEDICAL LIMITED,25/9/2023 00:00:00,29/10/2023 00:00:00,P07-2024
P&V,MYDDLETON HSE HERITAGE CENTRE,SUPPLIES AND SERVICES,EQUIPMENT & MATERIALS,4111,"P123705-SERVICE-2 x Electrode Pads, Standard Disposable for i",29/10/2023 00:00:00,278842,119.9,WE0172,WEL MEDICAL LIMITED,25/9/2023 00:00:00,29/10/2023 00:00:00,P07-2024
P&V,NORTH AREA RANGERS,SUPPLIES AND SERVICES,EQUIPMENT & MATERIALS,4111,P123242-SERVICE-Tree Paint - Orange x2,10/03/2023 00:00,277883,10.9,TU0006,P TUCKWELL LTD,25/9/2023 00:00:00,29/10/2023 00:00:00,P07-2024
P&V,NORTH AREA RANGERS,SUPPLIES AND SERVICES,EQUIPMENT & MATERIALS,4111,P123242-SERVICE-Tree Paint - Yellow x2,10/03/2023 00:00,277883,9.5,TU0006,P TUCKWELL LTD,25/9/2023 00:00:00,29/10/2023 00:00:00,P07-2024
P&V,NORTH AREA RANGERS,SUPPLIES AND SERVICES,EQUIPMENT & MATERIALS,4111,P123242-SERVICE-Tree Paint - Blue x2,10/03/2023 00:00,277883,9.5,TU0006,P TUCKWELL LTD,25/9/2023 00:00:00,29/10/2023 00:00:00,P07-2024
P&V,NORTH AREA RANGERS,SUPPLIES AND SERVICES,EQUIPMENT & MATERIALS,4111,P123242-SERVICE-Saw,10/03/2023 00:00,277883,113.84,TU0006,P TUCKWELL LTD,25/9/2023 00:00:00,29/10/2023 00:00:00,P07-2024
P&V,NORTH AREA RANGERS,SUPPLIES AND SERVICES,EQUIPMENT & MATERIALS,4111,P123242-SERVICE-Tree Paint - Green x2,10/03/2023 00:00,277883,9.5,TU0006,P TUCKWELL LTD,25/9/2023 00:00:00,29/10/2023 00:00:00,P07-2024
P&V,NORTH AREA RANGERS,SUPPLIES AND SERVICES,EQUIPMENT & MATERIALS,4111,P123242-SERVICE-Tree Paint - Pink x2,10/03/2023 00:00,277883,10.9,TU0006,P TUCKWELL LTD,25/9/2023 00:00:00,29/10/2023 00:00:00,P07-2024
P&V,SOUTH AREA RANGERS,SUPPLIES AND SERVICES,EQUIPMENT & MATERIALS,4111,"P123180-SERVICE-STIHL HS82RCE 24"" PETROL hedgetrimmer",25/10/2023 00:00:00,277905,449.17,AP0245,APS LIMITED,25/9/2023 00:00:00,29/10/2023 00:00:00,P07-2024
P&V,SOUTH AREA RANGERS,SUPPLIES AND SERVICES,EQUIPMENT & MATERIALS,4111,P123641-SERVICE-3x AED Battery,24/10/2023 00:00:00,278812,669,WE0172,WEL MEDICAL LIMITED,25/9/2023 00:00:00,29/10/2023 00:00:00,P07-2024
P&V,SOUTH AREA RANGERS,SUPPLIES AND SERVICES,EQUIPMENT & MATERIALS,4111,P123641-SERVICE-Delivery,24/10/2023 00:00:00,278812,9.95,WE0172,WEL MEDICAL LIMITED,25/9/2023 00:00:00,29/10/2023 00:00:00,P07-2024
P&V,SOUTH AREA RANGERS,SUPPLIES AND SERVICES,EQUIPMENT & MATERIALS,4111,P123659-SERVICE-40x 2 Stroke Oil Pods,29/10/2023 00:00:00,279018,110,AP0245,APS LIMITED,25/9/2023 00:00:00,29/10/2023 00:00:00,P07-2024
P&V,SOUTH AREA RANGERS,SUPPLIES AND SERVICES,EQUIPMENT & MATERIALS,4111,P123661-SERVICE-2x Sthil Clearing Saw Deflector,29/10/2023 00:00:00,279019,44.12,AP0245,APS LIMITED,25/9/2023 00:00:00,29/10/2023 00:00:00,P07-2024
P&V,WILDLIFE DISCOVERY CENTRE,SUPPLIES AND SERVICES,EQUIPMENT & MATERIALS,4111,P123644-SERVICE-2x Safety Safety Step Ups,24/10/2023 00:00:00,278707,119.98,SE0018,BRADY CORPORATION LIMITED/SETON,25/9/2023 00:00:00,29/10/2023 00:00:00,P07-2024
P&V,WILDLIFE DISCOVERY CENTRE,SUPPLIES AND SERVICES,EQUIPMENT & MATERIALS,4111,P123644-SERVICE-Delivery,24/10/2023 00:00:00,278707,6.95,SE0018,BRADY CORPORATION LIMITED/SETON,25/9/2023 00:00:00,29/10/2023 00:00:00,P07-2024
P&V,SPORT AND LEISURE,SUPPLIES AND SERVICES,EQUIPMENT & MATERIALS,4111,P123746-SERVICE-KAIMENG Electric Standing Desk,29/10/2023 00:00:00,279049,165.82,AM0406,AMAZON PAYMENTS UK LIMITED,25/9/2023 00:00:00,29/10/2023 00:00:00,P07-2024
P&V,VOLUNTEERS (L&E),SUPPLIES AND SERVICES,EQUIPMENT & MATERIALS,4111,P123657-SERVICE-KF01567 Q-Connect Combination Badge 54x90mm (,29/10/2023 00:00:00,278804,16.08,TH0008,JKL SOLUTIONS LTD,25/9/2023 00:00:00,29/10/2023 00:00:00,P07-2024
P&V,THREE MILLS,SUPPLIES AND SERVICES,EQUIPMENT & MATERIALS,4111,P122748-SERVICE-Playground Repairs at Three Mills,18/10/2023 00:00:00,278289,105,AR0291,ARD PLAYGROUNDS,25/9/2023 00:00:00,29/10/2023 00:00:00,P07-2024
P&V,THREE MILLS,SUPPLIES AND SERVICES,EQUIPMENT & MATERIALS,4111,P122748-SERVICE-Playground Repairs at Three Mills,18/10/2023 00:00:00,278289,1458,AR0291,ARD PLAYGROUNDS,25/9/2023 00:00:00,29/10/2023 00:00:00,P07-2024
P&V,THREE MILLS,SUPPLIES AND SERVICES,EQUIPMENT & MATERIALS,4111,P122748-SERVICE-Playground Repairs at Three Mills,23/10/2023 00:00:00,278692,373.5,AR0291,ARD PLAYGROUNDS,25/9/2023 00:00:00,29/10/2023 00:00:00,P07-2024
P&V,THREE MILLS,SUPPLIES AND SERVICES,EQUIPMENT & MATERIALS,4111,P122748-SERVICE-Playground Repairs at Three Mills,23/10/2023 00:00:00,278692,302.5,AR0291,ARD PLAYGROUNDS,25/9/2023 00:00:00,29/10/2023 00:00:00,P07-2024
,LV LEISURE CENTRE CAMPSITE,SUPPLIES AND SERVICES,EQUIPMENT & MATERIALS,4111,P123581-SERVICE-tokens for washers and dyers,10/11/2023 00:00,278091,104.1,AL0434,ALLSOP & FRANCIS,25/9/2023 00:00:00,29/10/2023 00:00:00,P07-2024
,LV LEISURE CENTRE CAMPSITE,SUPPLIES AND SERVICES,EQUIPMENT & MATERIALS,4111,P123562-SERVICE-4 stroke oil,10/11/2023 00:00,278104,15.4,SC0057,SCREWFIX DIRECT LTD,25/9/2023 00:00:00,29/10/2023 00:00:00,P07-2024
,LV LEISURE CENTRE CAMPSITE,SUPPLIES AND SERVICES,EQUIPMENT & MATERIALS,4111,P123599-SERVICE-Handsets and mixer shower heads,23/10/2023 00:00:00,278377,39.95,SC0057,SCREWFIX DIRECT LTD,25/9/2023 00:00:00,29/10/2023 00:00:00,P07-2024
,LV LEISURE CENTRE CAMPSITE,SUPPLIES AND SERVICES,EQUIPMENT & MATERIALS,4111,P123600-SERVICE-Spill kit and trousers,23/10/2023 00:00:00,278378,105.82,SC0057,SCREWFIX DIRECT LTD,25/9/2023 00:00:00,29/10/2023 00:00:00,P07-2024
,LV LEISURE CENTRE CAMPSITE,SUPPLIES AND SERVICES,EQUIPMENT & MATERIALS,4111,P123676-SERVICE-Batteries for grab bag,23/10/2023 00:00:00,278379,33.34,BQ0164,TRADE UK ACCOUNT,25/9/2023 00:00:00,29/10/2023 00:00:00,P07-2024
,LV LEISURE CENTRE CAMPSITE,SUPPLIES AND SERVICES,EQUIPMENT & MATERIALS,4111,P123678-SERVICE-Intruder and hold up alarm,23/10/2023 00:00:00,278472,480,RV0035,RVTV SECURITY GROUP LTD,25/9/2023 00:00:00,29/10/2023 00:00:00,P07-2024
,LV LEISURE CENTRE CAMPSITE,SUPPLIES AND SERVICES,EQUIPMENT & MATERIALS,4111,P123679-SERVICE-Fire alarm,24/10/2023 00:00:00,278477,280,RV0035,RVTV SECURITY GROUP LTD,25/9/2023 00:00:00,29/10/2023 00:00:00,P07-2024
,LV LEISURE CENTRE CAMPSITE,SUPPLIES AND SERVICES,EQUIPMENT & MATERIALS,4111,P123672-SERVICE-Deionised water,23/10/2023 00:00:00,278565,13.17,BQ0164,TRADE UK ACCOUNT,25/9/2023 00:00:00,29/10/2023 00:00:00,P07-2024
,LV LEISURE CENTRE CAMPSITE,SUPPLIES AND SERVICES,EQUIPMENT & MATERIALS,4111,P123671-SERVICE-Forestry helmet,23/10/2023 00:00:00,278566,29.99,SC0057,SCREWFIX DIRECT LTD,25/9/2023 00:00:00,29/10/2023 00:00:00,P07-2024
,LV LEISURE CENTRE CAMPSITE,SUPPLIES AND SERVICES,EQUIPMENT & MATERIALS,4111,Edm-Dwalt Boots,23/10/2023 00:00:00,278567,34.99,SC0057,SCREWFIX DIRECT LTD,25/9/2023 00:00:00,29/10/2023 00:00:00,P07-2024
,LV LEISURE CENTRE CAMPSITE,SUPPLIES AND SERVICES,EQUIPMENT & MATERIALS,4111,Edm-Dwalt Boots,23/10/2023 00:00:00,278567,-46.82,SC0057,SCREWFIX DIRECT LTD,25/9/2023 00:00:00,29/10/2023 00:00:00,P07-2024
,LV LEISURE CENTRE CAMPSITE,SUPPLIES AND SERVICES,EQUIPMENT & MATERIALS,4111,P123670-SERVICE-Boots and harness,23/10/2023 00:00:00,278567,46.82,SC0057,SCREWFIX DIRECT LTD,25/9/2023 00:00:00,29/10/2023 00:00:00,P07-2024
,LV LEISURE CENTRE CAMPSITE,SUPPLIES AND SERVICES,EQUIPMENT & MATERIALS,4111,Edm-Dwalt Boots,23/10/2023 00:00:00,278567,11.83,SC0057,SCREWFIX DIRECT LTD,25/9/2023 00:00:00,29/10/2023 00:00:00,P07-2024
,LV LEISURE CENTRE CAMPSITE,SUPPLIES AND SERVICES,EQUIPMENT & MATERIALS,4111,Edm-plate washers,23/10/2023 00:00:00,278608,56.3,SC0057,SCREWFIX DIRECT LTD,25/9/2023 00:00:00,29/10/2023 00:00:00,P07-2024
,LV LEISURE CENTRE CAMPSITE,SUPPLIES AND SERVICES,EQUIPMENT & MATERIALS,4111,"P123669-SERVICE-boots,rail bracketsconnector washers",23/10/2023 00:00:00,278608,96.29,SC0057,SCREWFIX DIRECT LTD,25/9/2023 00:00:00,29/10/2023 00:00:00,P07-2024
,LV LEISURE CENTRE CAMPSITE,SUPPLIES AND SERVICES,EQUIPMENT & MATERIALS,4111,Edm-plate washers,23/10/2023 00:00:00,278608,-96.29,SC0057,SCREWFIX DIRECT LTD,25/9/2023 00:00:00,29/10/2023 00:00:00,P07-2024
,LV LEISURE CENTRE CAMPSITE,SUPPLIES AND SERVICES,EQUIPMENT & MATERIALS,4111,Edm-plate washers,23/10/2023 00:00:00,278608,39.99,SC0057,SCREWFIX DIRECT LTD,25/9/2023 00:00:00,29/10/2023 00:00:00,P07-2024
,LV LEISURE CENTRE GOLF COURSE,SUPPLIES AND SERVICES,EQUIPMENT & MATERIALS,4111,P123066-SERVICE-EC GYard Compressor,10/03/2023 00:00,277647,600,AI0500,AIR ENERGY LIMITED,25/9/2023 00:00:00,29/10/2023 00:00:00,P07-2024
,LV LEISURE CENTRE GOLF COURSE,SUPPLIES AND SERVICES,EQUIPMENT & MATERIALS,4111,P123299-SERVICE-AED Sign,10/03/2023 00:00,277710,80,SL0528,SLAM SIGNS LTD,25/9/2023 00:00:00,29/10/2023 00:00:00,P07-2024
,LV LEISURE CENTRE GOLF COURSE,SUPPLIES AND SERVICES,EQUIPMENT & MATERIALS,4111,P123455-SERVICE-Mains Repair & Electrical Testing,10/03/2023 00:00,278118,758.61,SJ0635,SJS IRRIGATION,25/9/2023 00:00:00,29/10/2023 00:00:00,P07-2024
,LV LEISURE CENTRE GOLF COURSE,SUPPLIES AND SERVICES,EQUIPMENT & MATERIALS,4111,P123758-SERVICE-Lake Balls,29/10/2023 00:00:00,278850,558.6,GR0144,BARRY GRIFFITHS,25/9/2023 00:00:00,29/10/2023 00:00:00,P07-2024
,LV LEISURE CENTRE GOLF COURSE,SUPPLIES AND SERVICES,EQUIPMENT & MATERIALS,4111,P123787-SERVICE-Cushman Tyre,29/10/2023 00:00:00,279026,30,FA0294,FARM TYRE SERVICES,25/9/2023 00:00:00,29/10/2023 00:00:00,P07-2024
,LEE VALLEY CAMPSITE,SUPPLIES AND SERVICES,EQUIPMENT MAINTENANCE,4112,"P123416-SERVICE-mens A block showers , supply & fit new push",10/09/2023 00:00,277784,1235,SO0400,SOUTHERN GREEN SERVICES LIMITED,25/9/2023 00:00:00,29/10/2023 00:00:00,P07-2024
,LEE VALLEY CAMPSITE,SUPPLIES AND SERVICES,EQUIPMENT MAINTENANCE,4112,P123435-SERVICE-distribution board vandalism,10/03/2023 00:00,277908,880,BR0018,BRADSHAW ELECTRICAL LIMITED,25/9/2023 00:00:00,29/10/2023 00:00:00,P07-2024
,LEE VALLEY CAMPSITE,SUPPLIES AND SERVICES,EQUIPMENT MAINTENANCE,4112,P123436-SERVICE-HH22 Callout Electric failure,10/03/2023 00:00,277973,130,BR0018,BRADSHAW ELECTRICAL LIMITED,25/9/2023 00:00:00,29/10/2023 00:00:00,P07-2024
,LEE VALLEY CAMPSITE,SUPPLIES AND SERVICES,EQUIPMENT MAINTENANCE,4112,P123614-SERVICE-small tyre,23/10/2023 00:00:00,278610,105,FA0294,FARM TYRE SERVICES,25/9/2023 00:00:00,29/10/2023 00:00:00,P07-2024
,LEE VALLEY CAMPSITE,SUPPLIES AND SERVICES,EQUIPMENT MAINTENANCE,4112,P123614-SERVICE-3x inner tubes,23/10/2023 00:00:00,278611,80,FA0294,FARM TYRE SERVICES,25/9/2023 00:00:00,29/10/2023 00:00:00,P07-2024
,LEE VALLEY CAMPSITE,SUPPLIES AND SERVICES,EQUIPMENT MAINTENANCE,4112,P123797-SERVICE-Electric tripping HH22,29/10/2023 00:00:00,278858,120,BR0018,BRADSHAW ELECTRICAL LIMITED,25/9/2023 00:00:00,29/10/2023 00:00:00,P07-2024
,LEE VALLEY CARAVAN PARK,SUPPLIES AND SERVICES,EQUIPMENT MAINTENANCE,4112,P122969-SERVICE-The Country - Main Bathroom Repairs,10/03/2023 00:00,276805,730,SO0400,SOUTHERN GREEN SERVICES LIMITED,25/9/2023 00:00:00,29/10/2023 00:00:00,P07-2024
,LEE VALLEY CARAVAN PARK,SUPPLIES AND SERVICES,EQUIPMENT MAINTENANCE,4112,P123466-SERVICE-Replaced Broken cord Disabled Alarm,10/09/2023 00:00,277707,135,BR0018,BRADSHAW ELECTRICAL LIMITED,25/9/2023 00:00:00,29/10/2023 00:00:00,P07-2024
,LEE VALLEY CARAVAN PARK,SUPPLIES AND SERVICES,EQUIPMENT MAINTENANCE,4112,P123468-SERVICE-Connect Hot Tub in river Cottage,10/09/2023 00:00,277713,125,BR0018,BRADSHAW ELECTRICAL LIMITED,25/9/2023 00:00:00,29/10/2023 00:00:00,P07-2024
,LEE VALLEY CARAVAN PARK,SUPPLIES AND SERVICES,EQUIPMENT MAINTENANCE,4112,P123041-SERVICE-Left hand dryer needs replacementdoor switch,10/09/2023 00:00,278092,219.59,AL0434,ALLSOP & FRANCIS,25/9/2023 00:00:00,29/10/2023 00:00:00,P07-2024
,LEE VALLEY CARAVAN PARK,SUPPLIES AND SERVICES,EQUIPMENT MAINTENANCE,4112,P122777-SERVICE-Washing Machine Door Repair,10/09/2023 00:00,278093,236.61,AL0434,ALLSOP & FRANCIS,25/9/2023 00:00:00,29/10/2023 00:00:00,P07-2024
,LEE VALLEY CARAVAN PARK,SUPPLIES AND SERVICES,EQUIPMENT MAINTENANCE,4112,P123496-SERVICE-Supply/Install -1st Barrier Boom,10/09/2023 00:00,278095,720,AU0245,AUTO-MATE SYSTEMS LIMITED,25/9/2023 00:00:00,29/10/2023 00:00:00,P07-2024
,LEE VALLEY CARAVAN PARK,SUPPLIES AND SERVICES,EQUIPMENT MAINTENANCE,4112,P123557-SERVICE-Tanker Call OUt To Empty Pump Station,17/10/2023 00:00:00,278250,1478,CO0550,CONVERT WATER LTD,25/9/2023 00:00:00,29/10/2023 00:00:00,P07-2024
,LEE VALLEY CARAVAN PARK,SUPPLIES AND SERVICES,EQUIPMENT MAINTENANCE,4112,P122223-SERVICE-Annual Fire Extingisher Servicing,17/10/2023 00:00:00,278408,384.16,TJ0009,T.J.FIRE & SECURITY,25/9/2023 00:00:00,29/10/2023 00:00:00,P07-2024
P&V,MYDDELTON HOUSE GARDENS,SUPPLIES AND SERVICES,EQUIPMENT MAINTENANCE,4112,P123170-SERVICE-car park machine repair,29/10/2023 00:00:00,278848,258,PA0317,FLOWBIRD SMART CITY UK LTD (FRMLYPARKEON LTD),25/9/2023 00:00:00,29/10/2023 00:00:00,P07-2024
P&V,MYDDELTON HOUSE GARDENS,SUPPLIES AND SERVICES,EQUIPMENT MAINTENANCE,4112,P123410-SERVICE-Blower Parts & Labour,29/10/2023 00:00:00,278875,79.08,BR0143,GEORGE BROWNS LTD,25/9/2023 00:00:00,29/10/2023 00:00:00,P07-2024
P&V,RIVER LEE COUNTRY PARK,SUPPLIES AND SERVICES,EQUIPMENT MAINTENANCE,4112,P122569-SERVICE-Brushcutter A (Sthil) - Service,23/10/2023 00:00:00,276409,100,NA0168,NAZEING GARDEN MACHINERY,25/9/2023 00:00:00,29/10/2023 00:00:00,P07-2024
P&V,RIVER LEE COUNTRY PARK,SUPPLIES AND SERVICES,EQUIPMENT MAINTENANCE,4112,P122569-SERVICE-Brushcutter Service,23/10/2023 00:00:00,276409,222,NA0168,NAZEING GARDEN MACHINERY,25/9/2023 00:00:00,29/10/2023 00:00:00,P07-2024
P&V,RIVER LEE COUNTRY PARK,SUPPLIES AND SERVICES,EQUIPMENT MAINTENANCE,4112,P122569-SERVICE-Brushcutter C (Sthil) - Repairs,23/10/2023 00:00:00,276409,100,NA0168,NAZEING GARDEN MACHINERY,25/9/2023 00:00:00,29/10/2023 00:00:00,P07-2024
P&V,RIVER LEE COUNTRY PARK,SUPPLIES AND SERVICES,EQUIPMENT MAINTENANCE,4112,P122569-SERVICE-Brushcutter C (Sthil) - Service,23/10/2023 00:00:00,276409,100,NA0168,NAZEING GARDEN MACHINERY,25/9/2023 00:00:00,29/10/2023 00:00:00,P07-2024
P&V,RIVER LEE COUNTRY PARK,SUPPLIES AND SERVICES,EQUIPMENT MAINTENANCE,4112,P123144-SERVICE-40x Flail Tooth - BE08018,10/10/2023 00:00,278257,328,TR0039,TRACMASTER LTD,25/9/2023 00:00:00,29/10/2023 00:00:00,P07-2024
P&V,RIVER LEE COUNTRY PARK,SUPPLIES AND SERVICES,EQUIPMENT MAINTENANCE,4112,"P123453-SERVICE-3x Nut for above adjuster 312.11080	",25/10/2023 00:00:00,278603,3.36,TR0039,TRACMASTER LTD,25/9/2023 00:00:00,29/10/2023 00:00:00,P07-2024
P&V,RIVER LEE COUNTRY PARK,SUPPLIES AND SERVICES,EQUIPMENT MAINTENANCE,4112,P123453-SERVICE-2x Blade for Duplex Scythe  59058659T,25/10/2023 00:00:00,278603,298,TR0039,TRACMASTER LTD,25/9/2023 00:00:00,29/10/2023 00:00:00,P07-2024
P&V,RIVER LEE COUNTRY PARK,SUPPLIES AND SERVICES,EQUIPMENT MAINTENANCE,4112,P123453-SERVICE-3x Blade Guide for Power Scythe 592.51404,25/10/2023 00:00:00,278603,77.4,TR0039,TRACMASTER LTD,25/9/2023 00:00:00,29/10/2023 00:00:00,P07-2024
P&V,RIVER LEE COUNTRY PARK,SUPPLIES AND SERVICES,EQUIPMENT MAINTENANCE,4112,P123453-SERVICE-10x Washer 314.21083,25/10/2023 00:00:00,278603,14,TR0039,TRACMASTER LTD,25/9/2023 00:00:00,29/10/2023 00:00:00,P07-2024
P&V,RIVER LEE COUNTRY PARK,SUPPLIES AND SERVICES,EQUIPMENT MAINTENANCE,4112,"P123453-SERVICE-2x Blade for Power Scythe 53"" 590.48906",25/10/2023 00:00:00,278603,283.6,TR0039,TRACMASTER LTD,25/9/2023 00:00:00,29/10/2023 00:00:00,P07-2024
P&V,RIVER LEE COUNTRY PARK,SUPPLIES AND SERVICES,EQUIPMENT MAINTENANCE,4112,P123453-SERVICE-10x Blade Section for Power Scythe 563.50696,25/10/2023 00:00:00,278603,48,TR0039,TRACMASTER LTD,25/9/2023 00:00:00,29/10/2023 00:00:00,P07-2024
P&V,RIVER LEE COUNTRY PARK,SUPPLIES AND SERVICES,EQUIPMENT MAINTENANCE,4112,P123453-SERVICE-40x Rivet for Blade Section 331.12608,25/10/2023 00:00:00,278603,24,TR0039,TRACMASTER LTD,25/9/2023 00:00:00,29/10/2023 00:00:00,P07-2024
P&V,RIVER LEE COUNTRY PARK,SUPPLIES AND SERVICES,EQUIPMENT MAINTENANCE,4112,P123453-SERVICE-Delivery,25/10/2023 00:00:00,278603,7.95,TR0039,TRACMASTER LTD,25/9/2023 00:00:00,29/10/2023 00:00:00,P07-2024
P&V,RIVER LEE COUNTRY PARK,SUPPLIES AND SERVICES,EQUIPMENT MAINTENANCE,4112,P123453-SERVICE-3x Adjuster Bolt for above guide 311.12151,25/10/2023 00:00:00,278603,3.6,TR0039,TRACMASTER LTD,25/9/2023 00:00:00,29/10/2023 00:00:00,P07-2024
,LV LEISURE CENTRE CAMPSITE,SUPPLIES AND SERVICES,EQUIPMENT MAINTENANCE,4112,P123532-SERVICE-3m cables for buggies,10/09/2023 00:00,278327,149.8,BR0018,BRADSHAW ELECTRICAL LIMITED,25/9/2023 00:00:00,29/10/2023 00:00:00,P07-2024
R&B,INFORMATION TECHNOLOGY,SUPPLIES AND SERVICES,IT CORE SYSTEMS,4113,P123430-SERVICE-Payroll Services - 22/250 1 days consultancy,10/03/2023 00:00,250840,950,PA0453,PAYROLL BUSINESS SOLUTIONS LTD,25/9/2023 00:00:00,29/10/2023 00:00:00,P07-2024
R&B,INFORMATION TECHNOLOGY,SUPPLIES AND SERVICES,IT CORE SYSTEMS,4113,P123430-SERVICE-Payroll Services - 22/250 1 days consultancy,10/03/2023 00:00,277875,-950,PA0453,PAYROLL BUSINESS SOLUTIONS LTD,25/9/2023 00:00:00,29/10/2023 00:00:00,P07-2024
R&B,INFORMATION TECHNOLOGY,SUPPLIES AND SERVICES,IT CORE SYSTEMS,4113,P121421-SERVICE-CIPHR Payroll April 2023 - March 2024 @ 569.,10/03/2023 00:00,278086,569.58,CI0721,CIPHR,25/9/2023 00:00:00,29/10/2023 00:00:00,P07-2024
R&B,INFORMATION TECHNOLOGY,SUPPLIES AND SERVICES,IT CORE SYSTEMS,4113,P121892-SERVICE-Support & Data Apr 23 - Mar 24,10/10/2023 00:00,278254,171.29,CY0653,CYBERTILL,25/9/2023 00:00:00,29/10/2023 00:00:00,P07-2024
R&B,INFORMATION TECHNOLOGY,SUPPLIES AND SERVICES,IT CORE SYSTEMS,4113,P121193-SERVICE-Gema parks Campsite monthly subs April 2023 -,10/11/2023 00:00,278420,605,NE0218,NETGUIDES LIMITED,25/9/2023 00:00:00,29/10/2023 00:00:00,P07-2024
R&B,INFORMATION TECHNOLOGY,SUPPLIES AND SERVICES,IT CORE SYSTEMS,4113,"P121499-SERVICE-Efin monthly managed fees @ 1,466.82",10/11/2023 00:00,278432,1466.82,CE0021,ADVANCED BUSINESS SOLUTIONS,25/9/2023 00:00:00,29/10/2023 00:00:00,P07-2024
R&B,INFORMATION TECHNOLOGY,SUPPLIES AND SERVICES,IT CORE SYSTEMS,4113,P123753-SERVICE-PAYware Ocius pos Quarterly service fee for 8,29/10/2023 00:00:00,278868,828.24,CO0440,VERIFONE SERVICES UK & IRELAND LTD,25/9/2023 00:00:00,29/10/2023 00:00:00,P07-2024
R&B,INFORMATION TECHNOLOGY,SUPPLIES AND SERVICES,IT CORE SYSTEMS,4113,P123753-SERVICE-PAYware Ocius pos Quarterly service fee for 8,29/10/2023 00:00:00,278869,118.32,CO0440,VERIFONE SERVICES UK & IRELAND LTD,25/9/2023 00:00:00,29/10/2023 00:00:00,P07-2024
R&B,INFORMATION TECHNOLOGY,SUPPLIES AND SERVICES,IT NETWORK & TELECOMS COSTS,4114,P121817-SERVICE-Monthly SIP charges Apr 2023 - Mar 2024,10/10/2023 00:00,278248,159.22,FR0131,VOICEFLEX LTD,25/9/2023 00:00:00,29/10/2023 00:00:00,P07-2024
R&B,INFORMATION TECHNOLOGY,SUPPLIES AND SERVICES,IT NETWORK & TELECOMS COSTS,4114,P121559-SERVICE-Campsites Circuits 1GB for Public WiFi - Apri,10/09/2023 00:00,278293,835,PP0200,PPSNET LIMITED,25/9/2023 00:00:00,29/10/2023 00:00:00,P07-2024
R&B,INFORMATION TECHNOLOGY,SUPPLIES AND SERVICES,IT NETWORK & TELECOMS COSTS,4114,P123526-SERVICE-CallSwitch Licence & Calls Aug 2023,10/09/2023 00:00,278298,862.66,IQ0022,IQUAL,25/9/2023 00:00:00,29/10/2023 00:00:00,P07-2024
R&B,INFORMATION TECHNOLOGY,SUPPLIES AND SERVICES,IT NETWORK & TELECOMS COSTS,4114,IT-Md House Regrade,29/10/2023 00:00:00,279045,29.5,ZE0007,ZEN INTERNET LTD,25/9/2023 00:00:00,29/10/2023 00:00:00,P07-2024
R&B,INFORMATION TECHNOLOGY,SUPPLIES AND SERVICES,IT HARDWARE & SOFTWARE COSTS,4116,P123404-SERVICE-Installation of Cybertill on 2 x new devices,10/11/2023 00:00,278090,390,CY0653,CYBERTILL,25/9/2023 00:00:00,29/10/2023 00:00:00,P07-2024
R&B,INFORMATION TECHNOLOGY,SUPPLIES AND SERVICES,IT HARDWARE & SOFTWARE COSTS,4116,"P122462-SERVICE-Maintenance, Support and Managed Service Cont",10/10/2023 00:00,278288,742.29,WI0209,WIFI SPARK LIMITED,25/9/2023 00:00:00,29/10/2023 00:00:00,P07-2024
R&B,INFORMATION TECHNOLOGY,SUPPLIES AND SERVICES,IT HARDWARE & SOFTWARE COSTS,4116,P123639-SERVICE-USB C Charger for Dell XPS 13 7378 2-in-1,24/10/2023 00:00:00,278676,27.49,AM0406,AMAZON PAYMENTS UK LIMITED,25/9/2023 00:00:00,29/10/2023 00:00:00,P07-2024
R&B,INFORMATION TECHNOLOGY,SUPPLIES AND SERVICES,IT HARDWARE & SOFTWARE COSTS,4116,P123681-SERVICE-Dymo D1 Label Tape 40913 9mm x 7 Black on Whi,24/10/2023 00:00:00,278797,24.98,AM0406,AMAZON PAYMENTS UK LIMITED,25/9/2023 00:00:00,29/10/2023 00:00:00,P07-2024
R&B,INFORMATION TECHNOLOGY,SUPPLIES AND SERVICES,IT HARDWARE & SOFTWARE COSTS,4116,P122122-SERVICE-Mimecast S1 6 monthly payment includes:,25/10/2023 00:00:00,278871,853,IQ0022,IQUAL,25/9/2023 00:00:00,29/10/2023 00:00:00,P07-2024
R&B,INFORMATION TECHNOLOGY,SUPPLIES AND SERVICES,IT HARDWARE & SOFTWARE COSTS,4116,P123398-SERVICE-Logitech- Logitech H150 Stereo Headset,29/10/2023 00:00:00,279060,75.92,CC0711,CCS MEDIA LIMITED,25/9/2023 00:00:00,29/10/2023 00:00:00,P07-2024
R&B,INFORMATION TECHNOLOGY,SUPPLIES AND SERVICES,IT MAINTENANCE AGREEMENTS,4119,P121793-SERVICE-Digiticket monthly ticketing service,10/11/2023 00:00,278418,612,DI0304,DIGITAL TICKETING SYSTEMS LTD (DIGITICKETS),25/9/2023 00:00:00,29/10/2023 00:00:00,P07-2024
R&B,INFORMATION TECHNOLOGY,SUPPLIES AND SERVICES,IT MAINTENANCE AGREEMENTS,4119,P123748-SERVICE-Off-site backup & disaster recovery -  Annual,25/10/2023 00:00:00,278870,4680,IQ0022,IQUAL,25/9/2023 00:00:00,29/10/2023 00:00:00,P07-2024
R&B,INFORMATION TECHNOLOGY,SUPPLIES AND SERVICES,IT MAINTENANCE AGREEMENTS,4119,P123620-SERVICE-Service Desk Entity to support the subscriber,29/10/2023 00:00:00,279058,1495,RE0354,RENOVOTEC LTD,25/9/2023 00:00:00,29/10/2023 00:00:00,P07-2024
P&V,RIVER LEE COUNTRY PARK,SUPPLIES AND SERVICES,MATERIALS (COUNTERS),4123,P123732-SERVICE-Visitor Counter at Cadmore Lane,25/10/2023 00:00:00,278884,350,HE0418,HEALTHMATIC LTD,25/9/2023 00:00:00,29/10/2023 00:00:00,P07-2024
P&V,SOUTH AREA RANGERS,SUPPLIES AND SERVICES,MATERIALS (LOCKS),4124,P123642-SERVICE-3x Combi Locks,17/10/2023 00:00:00,278425,63.98,SC0057,SCREWFIX DIRECT LTD,25/9/2023 00:00:00,29/10/2023 00:00:00,P07-2024
,LEE VALLEY CARAVAN PARK,SUPPLIES AND SERVICES,MATERIALS (GROUNDS MAINT),4125,P123652-SERVICE-Various Materials for Cottage Drive Way,29/10/2023 00:00:00,279078,1061.68,LE0012,LEASIDE TIMBER & BUILDERS MERCHANTS LTD,25/9/2023 00:00:00,29/10/2023 00:00:00,P07-2024
,LV LEISURE CENTRE GOLF COURSE,SUPPLIES AND SERVICES,MATERIALS (GROUNDS MAINT),4125,P123298-SERVICE-Extra 20T Bunker Sand,10/03/2023 00:00,277733,1159,MR0420,MR AMENITY LTD,25/9/2023 00:00:00,29/10/2023 00:00:00,P07-2024
,LV LEISURE CENTRE GOLF COURSE,SUPPLIES AND SERVICES,MATERIALS (GROUNDS MAINT),4125,P123297-SERVICE-1 x Instrata Elite Fungicide,10/03/2023 00:00,277734,600,MR0420,MR AMENITY LTD,25/9/2023 00:00:00,29/10/2023 00:00:00,P07-2024
,LV LEISURE CENTRE GOLF COURSE,SUPPLIES AND SERVICES,MATERIALS (GROUNDS MAINT),4125,P123154-SERVICE-Decks & Blades Jacobson Reelmaster,10/03/2023 00:00,277877,1582.41,CA0698,CAMBRIDGE GOLF COMPANY,25/9/2023 00:00:00,29/10/2023 00:00:00,P07-2024
,LV LEISURE CENTRE GOLF COURSE,SUPPLIES AND SERVICES,MATERIALS (GROUNDS MAINT),4125,P123472-SERVICE-Blades & Screws Jacobson,10/09/2023 00:00,278324,257.73,DO0027,ERNEST DOE & SONS LTD,25/9/2023 00:00:00,29/10/2023 00:00:00,P07-2024
,LV LEISURE CENTRE GOLF COURSE,SUPPLIES AND SERVICES,MATERIALS (GROUNDS MAINT),4125,P123622-SERVICE-Mower  tyre,23/10/2023 00:00:00,278631,160,FA0294,FARM TYRE SERVICES,25/9/2023 00:00:00,29/10/2023 00:00:00,P07-2024
,LEE VALLEY CARAVAN PARK,SUPPLIES AND SERVICES,MATERIALS (PLANTS & SHRUBS),4126,DW--various plants,29/10/2023 00:00:00,278685,111.13,CL0093,CLOCKHOUSE NURSERY,25/9/2023 00:00:00,29/10/2023 00:00:00,P07-2024
,LEE VALLEY CARAVAN PARK,SUPPLIES AND SERVICES,MATERIALS (PLANTS & SHRUBS),4126,DW--various plants,29/10/2023 00:00:00,278685,-136.13,CL0093,CLOCKHOUSE NURSERY,25/9/2023 00:00:00,29/10/2023 00:00:00,P07-2024
,LEE VALLEY CARAVAN PARK,SUPPLIES AND SERVICES,MATERIALS (PLANTS & SHRUBS),4126,DW--various plants,29/10/2023 00:00:00,278685,25,CL0093,CLOCKHOUSE NURSERY,25/9/2023 00:00:00,29/10/2023 00:00:00,P07-2024
,LEE VALLEY CARAVAN PARK,SUPPLIES AND SERVICES,MATERIALS (PLANTS & SHRUBS),4126,P123563-SERVICE-Various Plants,29/10/2023 00:00:00,278685,136.13,CL0093,CLOCKHOUSE NURSERY,25/9/2023 00:00:00,29/10/2023 00:00:00,P07-2024
,LEE VALLEY CARAVAN PARK,SUPPLIES AND SERVICES,MATERIALS (PLANTS & SHRUBS),4126,DW- various plants,29/10/2023 00:00:00,279057,30.91,CL0093,CLOCKHOUSE NURSERY,25/9/2023 00:00:00,29/10/2023 00:00:00,P07-2024
,LEE VALLEY CARAVAN PARK,SUPPLIES AND SERVICES,MATERIALS (PLANTS & SHRUBS),4126,P123563-SERVICE-Various Plants,29/10/2023 00:00:00,279057,201.84,CL0093,CLOCKHOUSE NURSERY,25/9/2023 00:00:00,29/10/2023 00:00:00,P07-2024
,LEE VALLEY CARAVAN PARK,SUPPLIES AND SERVICES,MATERIALS (PLANTS & SHRUBS),4126,DW- various plants,29/10/2023 00:00:00,279057,-201.84,CL0093,CLOCKHOUSE NURSERY,25/9/2023 00:00:00,29/10/2023 00:00:00,P07-2024
,LEE VALLEY CARAVAN PARK,SUPPLIES AND SERVICES,MATERIALS (PLANTS & SHRUBS),4126,DW- various plants,29/10/2023 00:00:00,279057,170.93,CL0093,CLOCKHOUSE NURSERY,25/9/2023 00:00:00,29/10/2023 00:00:00,P07-2024
P&V,MYDDELTON HOUSE GARDENS,SUPPLIES AND SERVICES,MATERIALS (PLANTS & SHRUBS),4126,P123332-SERVICE-gardens order,10/03/2023 00:00,277911,44.68,CL0093,CLOCKHOUSE NURSERY,25/9/2023 00:00:00,29/10/2023 00:00:00,P07-2024
P&V,MYDDELTON HOUSE GARDENS,SUPPLIES AND SERVICES,MATERIALS (PLANTS & SHRUBS),4126,MD Garden-garden orders,10/03/2023 00:00,277911,-44.68,CL0093,CLOCKHOUSE NURSERY,25/9/2023 00:00:00,29/10/2023 00:00:00,P07-2024
P&V,MYDDELTON HOUSE GARDENS,SUPPLIES AND SERVICES,MATERIALS (PLANTS & SHRUBS),4126,MD Garden-garden orders,10/03/2023 00:00,277911,22.86,CL0093,CLOCKHOUSE NURSERY,25/9/2023 00:00:00,29/10/2023 00:00:00,P07-2024
P&V,MYDDELTON HOUSE GARDENS,SUPPLIES AND SERVICES,MATERIALS (PLANTS & SHRUBS),4126,MD Garden-garden orders,10/03/2023 00:00,277911,21.82,CL0093,CLOCKHOUSE NURSERY,25/9/2023 00:00:00,29/10/2023 00:00:00,P07-2024
P&V,MYDDELTON HOUSE GARDENS,SUPPLIES AND SERVICES,MATERIALS (PLANTS & SHRUBS),4126,P123294-SERVICE-garden plants order sept 23,10/03/2023 00:00,277912,97.13,CL0093,CLOCKHOUSE NURSERY,25/9/2023 00:00:00,29/10/2023 00:00:00,P07-2024
P&V,MYDDELTON HOUSE GARDENS,SUPPLIES AND SERVICES,MATERIALS (PLANTS & SHRUBS),4126,P123777-SERVICE-gardens order oct 23,29/10/2023 00:00:00,278685,201.84,CL0093,CLOCKHOUSE NURSERY,25/9/2023 00:00:00,29/10/2023 00:00:00,P07-2024
P&V,MYDDELTON HOUSE GARDENS,SUPPLIES AND SERVICES,MATERIALS (PLANTS & SHRUBS),4126,SAINSBURYS PUMPKIN,29/10/2023 00:00:00,279020,39.35,FI0001,DIRECTOR OF FINANCE - CASH,25/9/2023 00:00:00,29/10/2023 00:00:00,P07-2024
,LEE VALLEY MARINA SPRINGFIELD,SUPPLIES AND SERVICES,MATERIALS (TOOLS & PLANT),4127,P123208-SERVICE-MAKITA DGA519Z 18V LXT 125MM BRUSHLESS X-LOCK,10/10/2023 00:00,277415,156.99,IN0011,INDUSTRIAL TOOL SUPPLIES (LONDON) LTD,25/9/2023 00:00:00,29/10/2023 00:00:00,P07-2024
,LEE VALLEY MARINA SPRINGFIELD,SUPPLIES AND SERVICES,MATERIALS (TOOLS & PLANT),4127,P123208-SERVICE-MAKITA DGA519Z 18V LXT 125MM BRUSHLESS X-LOCK,10/10/2023 00:00,277667,139.99,IN0011,INDUSTRIAL TOOL SUPPLIES (LONDON) LTD,25/9/2023 00:00:00,29/10/2023 00:00:00,P07-2024
,LEE VALLEY MARINA SPRINGFIELD,SUPPLIES AND SERVICES,MATERIALS (TOOLS & PLANT),4127,P120301-SERVICE-Makita B04555 Palm Sander,10/10/2023 00:00,278380,-3,IN0011,INDUSTRIAL TOOL SUPPLIES (LONDON) LTD,25/9/2023 00:00:00,29/10/2023 00:00:00,P07-2024
,LEE VALLEY MARINA SPRINGFIELD,SUPPLIES AND SERVICES,MATERIALS (TOOLS & PLANT),4127,P123208-SERVICE-MAKITA DGA519Z 18V LXT 125MM BRUSHLESS X-LOCK,10/10/2023 00:00,278380,-156.99,IN0011,INDUSTRIAL TOOL SUPPLIES (LONDON) LTD,25/9/2023 00:00:00,29/10/2023 00:00:00,P07-2024
,LEE VALLEY MARINA SPRINGFIELD,SUPPLIES AND SERVICES,MATERIALS (TOOLS & PLANT),4127,P123747-SERVICE-To supply drill bits  & equipment as requsted,25/10/2023 00:00:00,278886,158.37,IN0011,INDUSTRIAL TOOL SUPPLIES (LONDON) LTD,25/9/2023 00:00:00,29/10/2023 00:00:00,P07-2024
,STANSTEAD RECHARGEABLE WORKS,SUPPLIES AND SERVICES,MATERIALS (TOOLS & PLANT),4127,P123459-SERVICE-drill & Hole cutter,10/10/2023 00:00,278126,178.78,SC0057,SCREWFIX DIRECT LTD,25/9/2023 00:00:00,29/10/2023 00:00:00,P07-2024
,STANSTEAD RECHARGEABLE WORKS,SUPPLIES AND SERVICES,MATERIALS (TOOLS & PLANT),4127,P123516-SERVICE-2hrs puddle welding,17/10/2023 00:00:00,278373,100,EN0309,PRH ENGINEERING LIMITED,25/9/2023 00:00:00,29/10/2023 00:00:00,P07-2024
,STANSTEAD RECHARGEABLE WORKS,SUPPLIES AND SERVICES,MATERIALS (TOOLS & PLANT),4127,P123515-SERVICE-100 anodes,17/10/2023 00:00:00,278374,3500,EN0309,PRH ENGINEERING LIMITED,25/9/2023 00:00:00,29/10/2023 00:00:00,P07-2024
,STANSTEAD RECHARGEABLE WORKS,SUPPLIES AND SERVICES,MATERIALS (TOOLS & PLANT),4127,P123583-SERVICE-2xtyres trailer,17/10/2023 00:00:00,278487,415,KB0006,CITY 1ST LTD (frmly KB TYRES LTD),25/9/2023 00:00:00,29/10/2023 00:00:00,P07-2024
,STANSTEAD RECHARGEABLE WORKS,SUPPLIES AND SERVICES,MATERIALS (TOOLS & PLANT),4127,Stanstead- workshop items /shoes,25/10/2023 00:00:00,278878,-236.45,SC0057,SCREWFIX DIRECT LTD,25/9/2023 00:00:00,29/10/2023 00:00:00,P07-2024
,STANSTEAD RECHARGEABLE WORKS,SUPPLIES AND SERVICES,MATERIALS (TOOLS & PLANT),4127,P123718-SERVICE-workshop items + boots for JJ,25/10/2023 00:00:00,278878,236.45,SC0057,SCREWFIX DIRECT LTD,25/9/2023 00:00:00,29/10/2023 00:00:00,P07-2024
,STANSTEAD RECHARGEABLE WORKS,SUPPLIES AND SERVICES,MATERIALS (TOOLS & PLANT),4127,Stanstead- workshop items /shoes,25/10/2023 00:00:00,278878,178.46,SC0057,SCREWFIX DIRECT LTD,25/9/2023 00:00:00,29/10/2023 00:00:00,P07-2024
,STANSTEAD RECHARGEABLE WORKS,SUPPLIES AND SERVICES,MATERIALS (TOOLS & PLANT),4127,Stanstead- workshop items /shoes,25/10/2023 00:00:00,278878,57.99,SC0057,SCREWFIX DIRECT LTD,25/9/2023 00:00:00,29/10/2023 00:00:00,P07-2024
,SPRINGFIELD RECHARGEABLE WORKS,SUPPLIES AND SERVICES,MATERIALS (ENG OTHER),4130,P123350-SERVICE-To provide insurance @ 15%,24/10/2023 00:00:00,278562,210,BA0339,BALDWINS CRANE HIRE LTD,25/9/2023 00:00:00,29/10/2023 00:00:00,P07-2024
,SPRINGFIELD RECHARGEABLE WORKS,SUPPLIES AND SERVICES,MATERIALS (ENG OTHER),4130,P123350-SERVICE-To Hire 120 ton crane on 3/10/2023,24/10/2023 00:00:00,278562,1400,BA0339,BALDWINS CRANE HIRE LTD,25/9/2023 00:00:00,29/10/2023 00:00:00,P07-2024
,STANSTEAD RECHARGEABLE WORKS,SUPPLIES AND SERVICES,MATERIALS (ENG OTHER),4130,P123490-SERVICE-birch - 4 steel rods for customer,10/09/2023 00:00,278247,35,BI0666,BIRCH ENGINEERING (CUFFLEY) LTD,25/9/2023 00:00:00,29/10/2023 00:00:00,P07-2024
,STANSTEAD RECHARGEABLE WORKS,SUPPLIES AND SERVICES,MATERIALS (ENG OTHER),4130,P123419-SERVICE-2xmapp gas cylinders (JJ),17/10/2023 00:00:00,278478,26.44,HO0349,HOMETREND SUPPLIES LTD,25/9/2023 00:00:00,29/10/2023 00:00:00,P07-2024
,STANSTEAD RECHARGEABLE WORKS,SUPPLIES AND SERVICES,MATERIALS (ENG OTHER),4130,P123646-SERVICE-orings,25/10/2023 00:00:00,278712,43.32,AM0406,AMAZON PAYMENTS UK LIMITED,25/9/2023 00:00:00,29/10/2023 00:00:00,P07-2024
,LEE VALLEY CARAVAN PARK,SUPPLIES AND SERVICES,MATERIALS (ENG OTHER),4130,P123413-SERVICE-6 signs and postage,10/09/2023 00:00,278290,118,SL0528,SLAM SIGNS LTD,25/9/2023 00:00:00,29/10/2023 00:00:00,P07-2024
,LEE VALLEY CARAVAN PARK,SUPPLIES AND SERVICES,MATERIALS (ENG OTHER),4130,P123667-SERVICE-19 A5 High Tack Stickers Dibond board,29/10/2023 00:00:00,278609,57,SL0528,SLAM SIGNS LTD,25/9/2023 00:00:00,29/10/2023 00:00:00,P07-2024
P&V,LEE VALLEY FARM HOLYFIELDHALL,SUPPLIES AND SERVICES,FEED,4133,P123540-SERVICE-Prime Rearer,10/09/2023 00:00,278148,2098.98,BO0246,FOR FARMERS UK LTD,25/9/2023 00:00:00,29/10/2023 00:00:00,P07-2024
P&V,LEE VALLEY FARM HOLYFIELDHALL,SUPPLIES AND SERVICES,SEEDS,4135,P123433-SERVICE-Seed Tests,10/03/2023 00:00,277931,60,HA0013,HARLOW AGRICULTURAL MERCHANTS,25/9/2023 00:00:00,29/10/2023 00:00:00,P07-2024
P&V,LEE VALLEY FARM HOLYFIELDHALL,SUPPLIES AND SERVICES,SEEDS,4135,P123694-SERVICE-Winter Wheat,24/10/2023 00:00:00,278371,11160,HA0013,HARLOW AGRICULTURAL MERCHANTS,25/9/2023 00:00:00,29/10/2023 00:00:00,P07-2024
P&V,LEE VALLEY FARM HOLYFIELDHALL,SUPPLIES AND SERVICES,SPRAYS,4136,P123695-SERVICE-Bayer Roundup/De Sangosse,23/10/2023 00:00:00,278372,1948.2,HA0013,HARLOW AGRICULTURAL MERCHANTS,25/9/2023 00:00:00,29/10/2023 00:00:00,P07-2024
P&V,LEE VALLEY FARM HOLYFIELDHALL,SUPPLIES AND SERVICES,SPRAYS,4136,P123830-SERVICE-Sprays,29/10/2023 00:00:00,278896,10111.6,HA0013,HARLOW AGRICULTURAL MERCHANTS,25/9/2023 00:00:00,29/10/2023 00:00:00,P07-2024
P&V,LEE VALLEY FARM HOLYFIELDHALL,SUPPLIES AND SERVICES,DAIRY SUNDRIES,4138,P123831-SERVICE-20 Cattle to Thame Market,29/10/2023 00:00:00,279089,360,WI0201,WILKINSON BROTHERS,25/9/2023 00:00:00,29/10/2023 00:00:00,P07-2024
,LV CAMPSITE CARAVAN SALES,SUPPLIES AND SERVICES,CARAVAN PURCHASES,4171,372-Delta Superior Deluxe,10/03/2023 00:00,277639,-54173.19,UK0086,THE UK CARAVAN CENTRE,25/9/2023 00:00:00,29/10/2023 00:00:00,P07-2024
,LV CAMPSITE CARAVAN SALES,SUPPLIES AND SERVICES,CARAVAN PURCHASES,4171,372-Delta Superior Deluxe,10/03/2023 00:00,277639,10539.23,UK0086,THE UK CARAVAN CENTRE,25/9/2023 00:00:00,29/10/2023 00:00:00,P07-2024
,LV CAMPSITE CARAVAN SALES,SUPPLIES AND SERVICES,CARAVAN PURCHASES,4171,372-Delta Superior Deluxe,10/03/2023 00:00,277639,43633.96,UK0086,THE UK CARAVAN CENTRE,25/9/2023 00:00:00,29/10/2023 00:00:00,P07-2024
,LV CAMPSITE CARAVAN SALES,SUPPLIES AND SERVICES,CARAVAN PURCHASES,4171,P121294-SERVICE-DW 125 Delta Superior 40x14,10/03/2023 00:00,277639,54173.19,UK0086,THE UK CARAVAN CENTRE,25/9/2023 00:00:00,29/10/2023 00:00:00,P07-2024
,LV CAMPSITE CARAVAN SALES,SUPPLIES AND SERVICES,DECKING PURCHASES,4173,P122556-SERVICE-58 DW Decking Extension,10/03/2023 00:00,277716,4409,WI0352,WILDWOOD OF MAYFIELD LTD,25/9/2023 00:00:00,29/10/2023 00:00:00,P07-2024
,LV CAMPSITE CARAVAN SALES,SUPPLIES AND SERVICES,DECKING PURCHASES,4173,P122659-SERVICE-33 SC Decking Panrucker,10/03/2023 00:00,277717,4930,WI0352,WILDWOOD OF MAYFIELD LTD,25/9/2023 00:00:00,29/10/2023 00:00:00,P07-2024
,LV CAMPSITE CARAVAN SALES,SUPPLIES AND SERVICES,MISCELLANEOUS CARAVAN COSTS,4174,P123451-SERVICE- HH40 SC Hook Up & Connect Electric,10/03/2023 00:00,277712,336.25,BR0018,BRADSHAW ELECTRICAL LIMITED,25/9/2023 00:00:00,29/10/2023 00:00:00,P07-2024
,LV CAMPSITE CARAVAN SALES,SUPPLIES AND SERVICES,MISCELLANEOUS CARAVAN COSTS,4174,P123096-SERVICE-DW 126 Air Con,10/09/2023 00:00,278279,1600,CI0770,CITIPOST POWER,25/9/2023 00:00:00,29/10/2023 00:00:00,P07-2024
,LV CAMPSITE CARAVAN SALES,SUPPLIES AND SERVICES,MISCELLANEOUS CARAVAN COSTS,4174,"P123483-SERVICE-Aerial Connections DW 127, 126, 124, 123",10/09/2023 00:00,278292,503.99,AS0343,ASCENT AERIALS,25/9/2023 00:00:00,29/10/2023 00:00:00,P07-2024
,LV CAMPSITE CARAVAN SALES,SUPPLIES AND SERVICES,MISCELLANEOUS CARAVAN COSTS,4174,"P123624-SERVICE-Introduction sales SC 21 DW 27, 30, 55",23/10/2023 00:00:00,278637,4000,RA0356,RAINBOW ESTATE AGENTS (SE) LTD,25/9/2023 00:00:00,29/10/2023 00:00:00,P07-2024
,LV CAMPSITE CARAVAN SALES,SUPPLIES AND SERVICES,MISCELLANEOUS CARAVAN COSTS,4174,P123757-SERVICE-DW HH15 Disconnect Electiric,25/10/2023 00:00:00,278690,60,BR0018,BRADSHAW ELECTRICAL LIMITED,25/9/2023 00:00:00,29/10/2023 00:00:00,P07-2024
,LV CAMPSITE CARAVAN SALES,SUPPLIES AND SERVICES,MISCELLANEOUS CARAVAN COSTS,4174,P123096-SERVICE-DW 124 Air Con,25/10/2023 00:00:00,278844,1600,CI0770,CITIPOST POWER,25/9/2023 00:00:00,29/10/2023 00:00:00,P07-2024
,LV CAMPSITE CARAVAN SALES,SUPPLIES AND SERVICES,MISCELLANEOUS CARAVAN COSTS,4174,P123096-SERVICE-SC 40 Air Con,29/10/2023 00:00:00,279080,1600,CI0770,CITIPOST POWER,25/9/2023 00:00:00,29/10/2023 00:00:00,P07-2024
,LEE VALLEY CARAVAN PARK,SUPPLIES AND SERVICES,MISCELLANEOUS CARAVAN COSTS,4174,P123408-SERVICE-2 sets of decking steps,10/03/2023 00:00,277972,1868.44,CL0557,CLASSACT LIMITED,25/9/2023 00:00:00,29/10/2023 00:00:00,P07-2024
,LEE VALLEY CARAVAN PARK,SUPPLIES AND SERVICES,CONSUMABLES - LODGES,4181,P123470-SERVICE-Temp Fix and New Switch Hamilton Fridge,10/09/2023 00:00,277715,132,BR0018,BRADSHAW ELECTRICAL LIMITED,25/9/2023 00:00:00,29/10/2023 00:00:00,P07-2024
,LEE VALLEY MARINA SPRINGFIELD,SUPPLIES AND SERVICES,CLOTHING & UNIFORMS,4225,P123534-SERVICE-To supply PPE,10/11/2023 00:00,278426,173.71,SA0008,SAFETEC DIRECT LTD,25/9/2023 00:00:00,29/10/2023 00:00:00,P07-2024
P&V,MYDDELTON HOUSE GARDENS,SUPPLIES AND SERVICES,CLOTHING & UNIFORMS,4225,P123238-SERVICE-gary gardener new work shoes,17/10/2023 00:00:00,278333,34.95,DI0017,DIRECT BOOT & SHOE SUPPLIES,25/9/2023 00:00:00,29/10/2023 00:00:00,P07-2024
P&V,MYDDELTON HOUSE GARDENS,SUPPLIES AND SERVICES,CLOTHING & UNIFORMS,4225,P123631-SERVICE-gardens uniform order oct 23,29/10/2023 00:00:00,278856,34.95,DI0017,DIRECT BOOT & SHOE SUPPLIES,25/9/2023 00:00:00,29/10/2023 00:00:00,P07-2024
P&V,NORTH AREA RANGERS,SUPPLIES AND SERVICES,CLOTHING & UNIFORMS,4225,P123399-SERVICE-2x Chainsaw Wellies,10/03/2023 00:00,277880,181.9,TU0006,P TUCKWELL LTD,25/9/2023 00:00:00,29/10/2023 00:00:00,P07-2024
P&V,NORTH AREA RANGERS,SUPPLIES AND SERVICES,CLOTHING & UNIFORMS,4225,P123399-SERVICE-Delivery,10/03/2023 00:00,277880,10,TU0006,P TUCKWELL LTD,25/9/2023 00:00:00,29/10/2023 00:00:00,P07-2024
P&V,NORTH AREA RANGERS,SUPPLIES AND SERVICES,CLOTHING & UNIFORMS,4225,P123386-SERVICE-2x Safety Boots,10/03/2023 00:00,277881,154.2,TU0006,P TUCKWELL LTD,25/9/2023 00:00:00,29/10/2023 00:00:00,P07-2024
P&V,NORTH AREA RANGERS,SUPPLIES AND SERVICES,CLOTHING & UNIFORMS,4225,P123386-SERVICE-2x Chainsaw Boots,10/03/2023 00:00,277881,430,TU0006,P TUCKWELL LTD,25/9/2023 00:00:00,29/10/2023 00:00:00,P07-2024
P&V,NORTH AREA RANGERS,SUPPLIES AND SERVICES,CLOTHING & UNIFORMS,4225,P123242-SERVICE-uniform - Boots,10/03/2023 00:00,277883,66,TU0006,P TUCKWELL LTD,25/9/2023 00:00:00,29/10/2023 00:00:00,P07-2024
P&V,NORTH AREA RANGERS,SUPPLIES AND SERVICES,CLOTHING & UNIFORMS,4225,P123242-SERVICE-Boots - Size 10.5,10/03/2023 00:00,277883,235.8,TU0006,P TUCKWELL LTD,25/9/2023 00:00:00,29/10/2023 00:00:00,P07-2024
P&V,NORTH AREA RANGERS,SUPPLIES AND SERVICES,CLOTHING & UNIFORMS,4225,P123242-SERVICE-Chainsaw Gloves,10/03/2023 00:00,277883,20,TU0006,P TUCKWELL LTD,25/9/2023 00:00:00,29/10/2023 00:00:00,P07-2024
P&V,NORTH AREA RANGERS,SUPPLIES AND SERVICES,CLOTHING & UNIFORMS,4225,P123242-SERVICE-Gloves x 18,10/03/2023 00:00,277883,62.1,TU0006,P TUCKWELL LTD,25/9/2023 00:00:00,29/10/2023 00:00:00,P07-2024
P&V,NORTH AREA RANGERS,SUPPLIES AND SERVICES,CLOTHING & UNIFORMS,4225,P123242-SERVICE-Chainsaw Trousers,10/03/2023 00:00,277883,310,TU0006,P TUCKWELL LTD,25/9/2023 00:00:00,29/10/2023 00:00:00,P07-2024
P&V,NORTH AREA RANGERS,SUPPLIES AND SERVICES,CLOTHING & UNIFORMS,4225,Rangers-uniform,10/03/2023 00:00,277883,8.2,TU0006,P TUCKWELL LTD,25/9/2023 00:00:00,29/10/2023 00:00:00,P07-2024
P&V,NORTH AREA RANGERS,SUPPLIES AND SERVICES,CLOTHING & UNIFORMS,4225,Rangers-uniform,10/03/2023 00:00,277883,-310,TU0006,P TUCKWELL LTD,25/9/2023 00:00:00,29/10/2023 00:00:00,P07-2024
P&V,NORTH AREA RANGERS,SUPPLIES AND SERVICES,CLOTHING & UNIFORMS,4225,Rangers-uniform,10/03/2023 00:00,277883,301.8,TU0006,P TUCKWELL LTD,25/9/2023 00:00:00,29/10/2023 00:00:00,P07-2024
P&V,NORTH AREA RANGERS,SUPPLIES AND SERVICES,CLOTHING & UNIFORMS,4225,P123386-SERVICE-2x Safety Boots,10/03/2023 00:00,277884,154.2,TU0006,P TUCKWELL LTD,25/9/2023 00:00:00,29/10/2023 00:00:00,P07-2024
P&V,NORTH AREA RANGERS,SUPPLIES AND SERVICES,CLOTHING & UNIFORMS,4225,Refer to Comp Ref 277880,10/09/2023 00:00,278080,181.9,TU0006,P TUCKWELL LTD,25/9/2023 00:00:00,29/10/2023 00:00:00,P07-2024
P&V,NORTH AREA RANGERS,SUPPLIES AND SERVICES,CLOTHING & UNIFORMS,4225,Refer to Comp Ref 277880,10/09/2023 00:00,278080,-90.95,TU0006,P TUCKWELL LTD,25/9/2023 00:00:00,29/10/2023 00:00:00,P07-2024
P&V,NORTH AREA RANGERS,SUPPLIES AND SERVICES,CLOTHING & UNIFORMS,4225,P123399-SERVICE-2x Chainsaw Wellies,10/09/2023 00:00,278080,-181.9,TU0006,P TUCKWELL LTD,25/9/2023 00:00:00,29/10/2023 00:00:00,P07-2024
P&V,NORTH AREA RANGERS,SUPPLIES AND SERVICES,CLOTHING & UNIFORMS,4225,Refer to Comp Ref 277880,10/09/2023 00:00,278080,-90.95,TU0006,P TUCKWELL LTD,25/9/2023 00:00:00,29/10/2023 00:00:00,P07-2024
P&V,NORTH AREA RANGERS,SUPPLIES AND SERVICES,CLOTHING & UNIFORMS,4225,P123386-SERVICE-2x Safety Boots,17/10/2023 00:00:00,278081,-154.2,TU0006,P TUCKWELL LTD,25/9/2023 00:00:00,29/10/2023 00:00:00,P07-2024
,LV LEISURE CENTRE CAMPSITE,SUPPLIES AND SERVICES,CLOTHING & UNIFORMS,4225,P123744-SERVICE-Deans safety work trousers,25/10/2023 00:00:00,278819,28.33,SC0057,SCREWFIX DIRECT LTD,25/9/2023 00:00:00,29/10/2023 00:00:00,P07-2024
,LEE VALLEY MARINA SPRINGFIELD,SUPPLIES AND SERVICES,OFFICE EXPENSES,4311,P122643-SERVICE-To supply items as requested,10/11/2023 00:00,278363,169.99,TH0008,JKL SOLUTIONS LTD,25/9/2023 00:00:00,29/10/2023 00:00:00,P07-2024
,LEE VALLEY MARINA SPRINGFIELD,SUPPLIES AND SERVICES,OFFICE EXPENSES,4311,P123535-SERVICE-To supply items as requested,24/10/2023 00:00:00,278416,220.77,TH0008,JKL SOLUTIONS LTD,25/9/2023 00:00:00,29/10/2023 00:00:00,P07-2024
,LEE VALLEY MARINA STANSTEAD,SUPPLIES AND SERVICES,OFFICE EXPENSES,4311,P123489-SERVICE-till rolls,10/09/2023 00:00,278303,68.84,TH0008,JKL SOLUTIONS LTD,25/9/2023 00:00:00,29/10/2023 00:00:00,P07-2024
,LEE VALLEY CAMPSITE,SUPPLIES AND SERVICES,OFFICE EXPENSES,4311,P123125-SERVICE-Stationery,17/10/2023 00:00:00,278364,44.74,TH0008,JKL SOLUTIONS LTD,25/9/2023 00:00:00,29/10/2023 00:00:00,P07-2024
,LEE VALLEY CAMPSITE,SUPPLIES AND SERVICES,OFFICE EXPENSES,4311,P123813-SERVICE-Site hotel TV Licence,29/10/2023 00:00:00,279074,159,TV0648,TV LICENSING-COMMERCIAL,25/9/2023 00:00:00,29/10/2023 00:00:00,P07-2024
,LEE VALLEY CARAVAN PARK,SUPPLIES AND SERVICES,OFFICE EXPENSES,4311,P123561-SERVICE-Various Stationery Items,23/10/2023 00:00:00,278481,40.21,TH0008,JKL SOLUTIONS LTD,25/9/2023 00:00:00,29/10/2023 00:00:00,P07-2024
P&V,WILDLIFE DISCOVERY CENTRE,SUPPLIES AND SERVICES,OFFICE EXPENSES,4311,P123692-SERVICE-1x Q-Connect 10 Digit Calculator - KF11507,29/10/2023 00:00:00,279036,6.6,TH0008,JKL SOLUTIONS LTD,25/9/2023 00:00:00,29/10/2023 00:00:00,P07-2024
P&V,WILDLIFE DISCOVERY CENTRE,SUPPLIES AND SERVICES,OFFICE EXPENSES,4311,P123692-SERVICE-1x Thermal Till Roll 80mmx80mm White- RE10606,29/10/2023 00:00:00,279036,36.2,TH0008,JKL SOLUTIONS LTD,25/9/2023 00:00:00,29/10/2023 00:00:00,P07-2024
P&V,RIVER LEE COUNTRY PARK,SUPPLIES AND SERVICES,OFFICE EXPENSES,4311,P123361-SERVICE-1x BZ11835 - Yorkshire Tea Soft Water Tea Bag,10/03/2023 00:00,277895,17.44,TH0008,JKL SOLUTIONS LTD,25/9/2023 00:00:00,29/10/2023 00:00:00,P07-2024
P&V,RIVER LEE COUNTRY PARK,SUPPLIES AND SERVICES,OFFICE EXPENSES,4311,P123361-SERVICE-1x AU99486 - Semi-Skimmed Milk Pots,10/03/2023 00:00,277895,7.53,TH0008,JKL SOLUTIONS LTD,25/9/2023 00:00:00,29/10/2023 00:00:00,P07-2024
,LV LEISURE CENTRE CAMPSITE,SUPPLIES AND SERVICES,OFFICE EXPENSES,4311,P123717-SERVICE-Water filter,29/10/2023 00:00:00,278903,126.5,RI0176,RIJO 42 INGREDIENTS LIMITED,25/9/2023 00:00:00,29/10/2023 00:00:00,P07-2024
,LV LEISURE CENTRE CAMPSITE,SUPPLIES AND SERVICES,OFFICE EXPENSES,4311,P123760-SERVICE-Printer paper and till rolls,29/10/2023 00:00:00,279034,124.1,TH0008,JKL SOLUTIONS LTD,25/9/2023 00:00:00,29/10/2023 00:00:00,P07-2024
R&B,INFORMATION TECHNOLOGY,SUPPLIES AND SERVICES,PHOTOCOPYING,4314,IT-Quarterly charge-04/06/-03/09/23,10/03/2023 00:00,277766,550.64,KO0071,KONICA MINOLTA BUSINESS SOLUTIONS ( UK) LTD,25/9/2023 00:00:00,29/10/2023 00:00:00,P07-2024
R&B,INFORMATION TECHNOLOGY,SUPPLIES AND SERVICES,PHOTOCOPYING,4314,IT-QUARTERLY CHARGE-140723-131023,17/10/2023 00:00:00,278463,404.35,KO0071,KONICA MINOLTA BUSINESS SOLUTIONS ( UK) LTD,25/9/2023 00:00:00,29/10/2023 00:00:00,P07-2024
R&B,INFORMATION TECHNOLOGY,SUPPLIES AND SERVICES,PHOTOCOPYING,4314,IT-QUARTERLY CHARGE-141023-130124,17/10/2023 00:00:00,278464,459.6,KO0071,KONICA MINOLTA BUSINESS SOLUTIONS ( UK) LTD,25/9/2023 00:00:00,29/10/2023 00:00:00,P07-2024
R&B,HUMAN RESOURCES,SUPPLIES AND SERVICES,PERIODICALS & REFERENCE BOOKS,4332,P123584-SERVICE-XpertHR Subs Sep 23 to March 24,17/10/2023 00:00:00,278488,1155,VI0074,VINE HR LIMITED,25/9/2023 00:00:00,29/10/2023 00:00:00,P07-2024
P&V,LEE VALLEY FARM HOLYFIELDHALL,SUPPLIES AND SERVICES,SUBSCRIPTIONS,4334,P123698-SERVICE-NRoSO Membership J Painter,29/10/2023 00:00:00,278604,32,BA0667,BASIS REGISTRATION LTD,25/9/2023 00:00:00,29/10/2023 00:00:00,P07-2024
P&V,MYDDELTON HOUSE,SUPPLIES AND SERVICES,POSTAGE & MAILING,4445,Royal Mail,17/10/2023 00:00:00,278572,1.93,PI0021,PITNEY BOWES PURCHASE POWER,25/9/2023 00:00:00,29/10/2023 00:00:00,P07-2024
R&B,INFORMATION TECHNOLOGY,SUPPLIES AND SERVICES,TELEPHONES (OFFICE),4481,Md Hse-Regrade,10/03/2023 00:00,278078,29.5,ZE0007,ZEN INTERNET LTD,25/9/2023 00:00:00,29/10/2023 00:00:00,P07-2024
R&B,INFORMATION TECHNOLOGY,SUPPLIES AND SERVICES,TELEPHONES (OFFICE),4481,IT-Telephone Chg-Sept23,10/10/2023 00:00,278387,1616.09,ID0002,DAISY COMMUNICATIONS LTD,25/9/2023 00:00:00,29/10/2023 00:00:00,P07-2024
R&B,INFORMATION TECHNOLOGY,SUPPLIES AND SERVICES,TELEPHONES (OFFICE),4481,IT-FIBRE PRO MONTHLY CHARGE,17/10/2023 00:00:00,278568,38,ZE0007,ZEN INTERNET LTD,25/9/2023 00:00:00,29/10/2023 00:00:00,P07-2024
R&B,INFORMATION TECHNOLOGY,SUPPLIES AND SERVICES,TELEPHONES (OFFICE),4481,Monthly serv charge,17/10/2023 00:00:00,278607,31.32,ZE0007,ZEN INTERNET LTD,25/9/2023 00:00:00,29/10/2023 00:00:00,P07-2024
R&B,INFORMATION TECHNOLOGY,SUPPLIES AND SERVICES,TELEPHONES (MOBILE),4484,Sep-23,10/03/2023 00:00,278056,938.71,VO0010,VODAFONE  LIMITED (CORPORATE),25/9/2023 00:00:00,29/10/2023 00:00:00,P07-2024
R&B,INFORMATION TECHNOLOGY,SUPPLIES AND SERVICES,TELEPHONES (MOBILE),4484,IT-Monthly Mobile Charges,25/10/2023 00:00:00,278838,938.35,VO0010,VODAFONE  LIMITED (CORPORATE),25/9/2023 00:00:00,29/10/2023 00:00:00,P07-2024
P&V,EVENTS MANAGEMENT (PR),SUPPLIES AND SERVICES,SUBSISTENCE,4501,P123447-SERVICE-LVRPA food vouchers and guest food vouchers a,10/10/2023 00:00,278390,308.48,FI0193,FIVE STAR CATERING LTD,25/9/2023 00:00:00,29/10/2023 00:00:00,P07-2024
R&B,DEMOCRATIC REPRESENTATION & MA,SUPPLIES AND SERVICES,MEMBERS EXPENSES,4502,P123686-SERVICE-2 x UHF Radio System with Handheld Microphone,29/10/2023 00:00:00,279041,792,OL0105,OLD BARN AUDIO,25/9/2023 00:00:00,29/10/2023 00:00:00,P07-2024
R&B,DEMOCRATIC REPRESENTATION & MA,SUPPLIES AND SERVICES,MEMBERS EXPENSES,4502,P123686-SERVICE-Cabling,29/10/2023 00:00:00,279041,18.46,OL0105,OLD BARN AUDIO,25/9/2023 00:00:00,29/10/2023 00:00:00,P07-2024
R&B,DEMOCRATIC REPRESENTATION & MA,SUPPLIES AND SERVICES,MEMBERS EXPENSES,4502,P123686-SERVICE-1 x Audio Mixer,29/10/2023 00:00:00,279041,68.25,OL0105,OLD BARN AUDIO,25/9/2023 00:00:00,29/10/2023 00:00:00,P07-2024
R&B,DEMOCRATIC REPRESENTATION & MA,SUPPLIES AND SERVICES,MEMBERS EXPENSES,4502,P123686-SERVICE-Desk Top Microphone Stand,29/10/2023 00:00:00,279041,8.4,OL0105,OLD BARN AUDIO,25/9/2023 00:00:00,29/10/2023 00:00:00,P07-2024
R&B,DEMOCRATIC REPRESENTATION & MA,SUPPLIES AND SERVICES,MEMBERS EXPENSES,4502,P123686-SERVICE-Labour to Install and Amend Software for 2 x,29/10/2023 00:00:00,279041,495,OL0105,OLD BARN AUDIO,25/9/2023 00:00:00,29/10/2023 00:00:00,P07-2024
,LV LEISURE CENTRE GOLF COURSE,SUPPLIES AND SERVICES,MARKETING,4603,P123452-SERVICE-Golf Customer Discount Cards,10/03/2023 00:00,277957,45.25,SO0582,SOLOPRESS,25/9/2023 00:00:00,29/10/2023 00:00:00,P07-2024
,LEE VALLEY WATERWORKS CENTRE,SUPPLIES AND SERVICES,PEST CONTROL,4625,P123776-SERVICE-Pest Control - WaterWorks - Oct - Dec,29/10/2023 00:00:00,278445,165,VE0006,VERMINATE CITY & RURAL PEST CONTROL LTD,25/9/2023 00:00:00,29/10/2023 00:00:00,P07-2024
P&V,LEE VALLEY FARM HOLYFIELDHALL,SUPPLIES AND SERVICES,PEST CONTROL,4625,P123697-SERVICE-Rats & Mice Control,23/10/2023 00:00:00,278392,285,VE0006,VERMINATE CITY & RURAL PEST CONTROL LTD,25/9/2023 00:00:00,29/10/2023 00:00:00,P07-2024
P&V,LEE VALLEY FARM HOLYFIELDHALL,SUPPLIES AND SERVICES,PEST CONTROL,4625,P123697-SERVICE-Rats & Mice Control,23/10/2023 00:00:00,278442,125,VE0006,VERMINATE CITY & RURAL PEST CONTROL LTD,25/9/2023 00:00:00,29/10/2023 00:00:00,P07-2024
,LEE VALLEY MARINA SPRINGFIELD,SUPPLIES AND SERVICES,MERCHANT PROCESSING CHARGES,4641,Monthy Fee,10/11/2023 00:00,278427,30,WO0338,WORLDPAY,25/9/2023 00:00:00,29/10/2023 00:00:00,P07-2024
,LEE VALLEY MARINA SPRINGFIELD,SUPPLIES AND SERVICES,MERCHANT PROCESSING CHARGES,4641,Monthly Fee,29/10/2023 00:00:00,279085,30,WO0338,WORLDPAY,25/9/2023 00:00:00,29/10/2023 00:00:00,P07-2024
,LEE VALLEY MARINA STANSTEAD,SUPPLIES AND SERVICES,MERCHANT PROCESSING CHARGES,4641,Monthy Fee,10/11/2023 00:00,278427,30,WO0338,WORLDPAY,25/9/2023 00:00:00,29/10/2023 00:00:00,P07-2024
,LEE VALLEY MARINA STANSTEAD,SUPPLIES AND SERVICES,MERCHANT PROCESSING CHARGES,4641,Monthly Fee,29/10/2023 00:00:00,279085,30,WO0338,WORLDPAY,25/9/2023 00:00:00,29/10/2023 00:00:00,P07-2024
P&V,MYDDELTON HOUSE,SUPPLIES AND SERVICES,CASH COLLECTIONS,4642,P123804-SERVICE-Myddelton House 5 & 29/9/23,29/10/2023 00:00:00,278417,24.86,SE0692,SECURITY PLUS LTD,25/9/2023 00:00:00,29/10/2023 00:00:00,P07-2024
P&V,MYDDELTON HOUSE,SUPPLIES AND SERVICES,CASH COLLECTIONS,4642,"P123804-SERVICE-Dobbs Weir campsite 6,9,20 & 27/9/23",29/10/2023 00:00:00,278417,49.72,SE0692,SECURITY PLUS LTD,25/9/2023 00:00:00,29/10/2023 00:00:00,P07-2024
P&V,MYDDELTON HOUSE,SUPPLIES AND SERVICES,CASH COLLECTIONS,4642,CASH COLLECTION-Sept 2023,29/10/2023 00:00:00,278417,-49.72,SE0692,SECURITY PLUS LTD,25/9/2023 00:00:00,29/10/2023 00:00:00,P07-2024
,LEE VALLEY MARINA SPRINGFIELD,SUPPLIES AND SERVICES,CASH COLLECTIONS,4642,P123804-SERVICE-Stanstead marina 13 & 27/9/23,29/10/2023 00:00:00,278417,24.86,SE0692,SECURITY PLUS LTD,25/9/2023 00:00:00,29/10/2023 00:00:00,P07-2024
,LEE VALLEY MARINA STANSTEAD,SUPPLIES AND SERVICES,CASH COLLECTIONS,4642,P123804-SERVICE-Springfield Marina 13 & 27/9/23,29/10/2023 00:00:00,278417,24.86,SE0692,SECURITY PLUS LTD,25/9/2023 00:00:00,29/10/2023 00:00:00,P07-2024
,LEE VALLEY CAMPSITE,SUPPLIES AND SERVICES,CASH COLLECTIONS,4642,"P123804-SERVICE-Sewardstone campsite 6,9,20 &27/9/23",29/10/2023 00:00:00,278417,49.72,SE0692,SECURITY PLUS LTD,25/9/2023 00:00:00,29/10/2023 00:00:00,P07-2024
,LEE VALLEY CARAVAN PARK,SUPPLIES AND SERVICES,CASH COLLECTIONS,4642,CASH COLLECTION-Sept 2023,29/10/2023 00:00:00,278417,49.72,SE0692,SECURITY PLUS LTD,25/9/2023 00:00:00,29/10/2023 00:00:00,P07-2024
,LV LEISURE CENTRE CAMPSITE,SUPPLIES AND SERVICES,CASH COLLECTIONS,4642,"P123804-SERVICE-Edmondton 6,13,20 7 27/9/23",29/10/2023 00:00:00,278417,49.72,SE0692,SECURITY PLUS LTD,25/9/2023 00:00:00,29/10/2023 00:00:00,P07-2024
,LEE VALLEY MARINA STANSTEAD,SUPPLIES AND SERVICES,SECURITY,4650,P123406-SERVICE-barrier arm not closing fully call out,10/03/2023 00:00,276811,130,PS0429,PSL AUTOMATION,25/9/2023 00:00:00,29/10/2023 00:00:00,P07-2024
,LEE VALLEY MARINA STANSTEAD,SUPPLIES AND SERVICES,SECURITY,4650,P123068-SERVICE-additional cctv marina office,17/10/2023 00:00:00,278388,1005,RV0035,RVTV SECURITY GROUP LTD,25/9/2023 00:00:00,29/10/2023 00:00:00,P07-2024
P&V,NORTH AREA RANGERS,SUPPLIES AND SERVICES,SECURITY,4650,P122126-SERVICE-Security - North of Park,23/10/2023 00:00:00,277958,6053.2,PA0059,PARKGUARD LTD,25/9/2023 00:00:00,29/10/2023 00:00:00,P07-2024
P&V,NORTH AREA RANGERS,SUPPLIES AND SERVICES,SECURITY,4650,P123446-SERVICE-Add Security at Glen Faba,10/09/2023 00:00,278116,440,PA0059,PARKGUARD LTD,25/9/2023 00:00:00,29/10/2023 00:00:00,P07-2024
P&V,NORTH AREA RANGERS,SUPPLIES AND SERVICES,SECURITY,4650,P123446-SERVICE-Add Security at Glen Faba,10/09/2023 00:00,278116,440,PA0059,PARKGUARD LTD,25/9/2023 00:00:00,29/10/2023 00:00:00,P07-2024
P&V,SOUTH AREA RANGERS,SUPPLIES AND SERVICES,SECURITY,4650,P122127-SERVICE-Security - South of Park,23/10/2023 00:00:00,277959,10125.65,PA0059,PARKGUARD LTD,25/9/2023 00:00:00,29/10/2023 00:00:00,P07-2024
P&V,RIVER LEE COUNTRY PARK,SUPPLIES AND SERVICES,SECURITY,4650,P123853-SERVICE-Out of hours call service,29/10/2023 00:00:00,278277,327.81,TE0585,TENDRING DISTRICT COUNCIL,25/9/2023 00:00:00,29/10/2023 00:00:00,P07-2024
,LV LEISURE CENTRE CAMPSITE,SUPPLIES AND SERVICES,SECURITY,4650,P123454-SERVICE-ENTRY BARRIER REAPIR,10/10/2023 00:00,278113,95,DE0013,DENNIS SECURITY CENTRE,25/9/2023 00:00:00,29/10/2023 00:00:00,P07-2024
,LV LEISURE CENTRE CAMPSITE,SUPPLIES AND SERVICES,SECURITY,4650,P123401-SERVICE-repaier exit barrier arm,23/10/2023 00:00:00,278642,595,DE0013,DENNIS SECURITY CENTRE,25/9/2023 00:00:00,29/10/2023 00:00:00,P07-2024
CEO,LVLC SERVICE CHARGE,SUPPLIES AND SERVICES,SECURITY,4650,P121975-SERVICE-Security,10/11/2023 00:00,278245,1390.32,PA0059,PARKGUARD LTD,25/9/2023 00:00:00,29/10/2023 00:00:00,P07-2024
CEO,PR/COMMUNICATIONS,SUPPLIES AND SERVICES,CUTTINGS SERVICE,4663,P123474-SERVICE-Media database & monitoring service - 1 Oct 2,10/03/2023 00:00,278136,8500,AI0507,AI MEDIA DATA LIMITED,25/9/2023 00:00:00,29/10/2023 00:00:00,P07-2024
CEO,LEGAL SERVICES,SUPPLIES AND SERVICES,OFFSITE ARCHIVED STORAGE,4667,P123852-SERVICE-Off site storage 1/9/23 to 30/9/23,29/10/2023 00:00:00,278306,376.6,DA0154,RESTORE PLC,25/9/2023 00:00:00,29/10/2023 00:00:00,P07-2024
,LEE VALLEY CAMPSITE,SUPPLIES AND SERVICES,ENTERTAINMENT & OTHER LICENCES,4711,P123595-SERVICE-Premises licence 23/24,17/10/2023 00:00:00,278401,180,EP0025,EPPING FOREST DISTRICT COUNCIL,25/9/2023 00:00:00,29/10/2023 00:00:00,P07-2024
P&V,LEE VALLEY FARM HOLYFIELDHALL,THIRD PARTY PAYMENTS,VETERINARY SERVICES,4718,P123696-SERVICE-Vets,23/10/2023 00:00:00,278375,46.64,HA0443,HAMPDEN VETERINARY HOSPITAL,25/9/2023 00:00:00,29/10/2023 00:00:00,P07-2024
P&V,YOUTH AND SCHOOLS,SUPPLIES AND SERVICES,ACTIVITIES (SCHOOLS),4725,"P123425-SERVICE-Hire of Chapman, Walters Room and Tallis room",10/03/2023 00:00,277974,1835.33,WA0108,WALTHAM ABBEY PAROCHIAL CHURCH COUNCIL,25/9/2023 00:00:00,29/10/2023 00:00:00,P07-2024
P&V,MYDDLETON HSE HERITAGE CENTRE,SUPPLIES AND SERVICES,NET CATERING PURCHASES,4777,P123024-SERVICE-Food & Drink order wk com 21/08/2023,28/9/2023 00:00:00,277445,740.87,360001,BIDFOOD,25/9/2023 00:00:00,29/10/2023 00:00:00,P07-2024
P&V,MYDDLETON HSE HERITAGE CENTRE,SUPPLIES AND SERVICES,NET CATERING PURCHASES,4777,BTR- food/drinks,28/9/2023 00:00:00,277445,558.11,360001,BIDFOOD,25/9/2023 00:00:00,29/10/2023 00:00:00,P07-2024
P&V,MYDDLETON HSE HERITAGE CENTRE,SUPPLIES AND SERVICES,NET CATERING PURCHASES,4777,BTR- food/drinks,28/9/2023 00:00:00,277445,182.76,360001,BIDFOOD,25/9/2023 00:00:00,29/10/2023 00:00:00,P07-2024
P&V,MYDDLETON HSE HERITAGE CENTRE,SUPPLIES AND SERVICES,NET CATERING PURCHASES,4777,BTR- food/drinks,28/9/2023 00:00:00,277445,-740.87,360001,BIDFOOD,25/9/2023 00:00:00,29/10/2023 00:00:00,P07-2024
P&V,MYDDLETON HSE HERITAGE CENTRE,SUPPLIES AND SERVICES,NET CATERING PURCHASES,4777,BTR-food/drinks,28/9/2023 00:00:00,277692,69.19,360001,BIDFOOD,25/9/2023 00:00:00,29/10/2023 00:00:00,P07-2024
P&V,MYDDLETON HSE HERITAGE CENTRE,SUPPLIES AND SERVICES,NET CATERING PURCHASES,4777,BTR-food/drinks,28/9/2023 00:00:00,277692,178.62,360001,BIDFOOD,25/9/2023 00:00:00,29/10/2023 00:00:00,P07-2024
P&V,MYDDLETON HSE HERITAGE CENTRE,SUPPLIES AND SERVICES,NET CATERING PURCHASES,4777,BTR-food/drinks,28/9/2023 00:00:00,277692,-247.81,360001,BIDFOOD,25/9/2023 00:00:00,29/10/2023 00:00:00,P07-2024
P&V,MYDDLETON HSE HERITAGE CENTRE,SUPPLIES AND SERVICES,NET CATERING PURCHASES,4777,P123025-SERVICE-Food & Drink order wk 28.08.2023,28/9/2023 00:00:00,277692,247.81,360001,BIDFOOD,25/9/2023 00:00:00,29/10/2023 00:00:00,P07-2024
P&V,MYDDLETON HSE HERITAGE CENTRE,SUPPLIES AND SERVICES,NET CATERING PURCHASES,4777,P123024-SERVICE-Food & Drink order wk com 21/08/2023,28/9/2023 00:00:00,277692,150.56,360001,BIDFOOD,25/9/2023 00:00:00,29/10/2023 00:00:00,P07-2024
P&V,MYDDLETON HSE HERITAGE CENTRE,SUPPLIES AND SERVICES,NET CATERING PURCHASES,4777,P123024-SERVICE-Food & Drink order wk com 21/08/2023,28/9/2023 00:00:00,277693,-67.17,360001,BIDFOOD,25/9/2023 00:00:00,29/10/2023 00:00:00,P07-2024
P&V,MYDDLETON HSE HERITAGE CENTRE,SUPPLIES AND SERVICES,NET CATERING PURCHASES,4777,BTR-food/drinks,28/9/2023 00:00:00,277694,-292.7,360001,BIDFOOD,25/9/2023 00:00:00,29/10/2023 00:00:00,P07-2024
P&V,MYDDLETON HSE HERITAGE CENTRE,SUPPLIES AND SERVICES,NET CATERING PURCHASES,4777,BTR-food/drinks,28/9/2023 00:00:00,277694,181.63,360001,BIDFOOD,25/9/2023 00:00:00,29/10/2023 00:00:00,P07-2024
P&V,MYDDLETON HSE HERITAGE CENTRE,SUPPLIES AND SERVICES,NET CATERING PURCHASES,4777,BTR-food/drinks,28/9/2023 00:00:00,277694,111.07,360001,BIDFOOD,25/9/2023 00:00:00,29/10/2023 00:00:00,P07-2024
P&V,MYDDLETON HSE HERITAGE CENTRE,SUPPLIES AND SERVICES,NET CATERING PURCHASES,4777,P123025-SERVICE-Food & Drink order wk 28.08.2023,28/9/2023 00:00:00,277694,292.7,360001,BIDFOOD,25/9/2023 00:00:00,29/10/2023 00:00:00,P07-2024
P&V,MYDDLETON HSE HERITAGE CENTRE,SUPPLIES AND SERVICES,NET CATERING PURCHASES,4777,P123024-SERVICE-Food & Drink order wk com 21/08/2023,28/9/2023 00:00:00,277694,67.17,360001,BIDFOOD,25/9/2023 00:00:00,29/10/2023 00:00:00,P07-2024
P&V,MYDDLETON HSE HERITAGE CENTRE,SUPPLIES AND SERVICES,NET CATERING PURCHASES,4777,BTR-food/drinks,28/9/2023 00:00:00,277780,111.45,360001,BIDFOOD,25/9/2023 00:00:00,29/10/2023 00:00:00,P07-2024
P&V,MYDDLETON HSE HERITAGE CENTRE,SUPPLIES AND SERVICES,NET CATERING PURCHASES,4777,BTR-food/drinks,28/9/2023 00:00:00,277780,-218.77,360001,BIDFOOD,25/9/2023 00:00:00,29/10/2023 00:00:00,P07-2024
P&V,MYDDLETON HSE HERITAGE CENTRE,SUPPLIES AND SERVICES,NET CATERING PURCHASES,4777,P123025-SERVICE-Food & Drink order wk 28.08.2023,28/9/2023 00:00:00,277780,218.77,360001,BIDFOOD,25/9/2023 00:00:00,29/10/2023 00:00:00,P07-2024
P&V,MYDDLETON HSE HERITAGE CENTRE,SUPPLIES AND SERVICES,NET CATERING PURCHASES,4777,BTR-food/drinks,28/9/2023 00:00:00,277780,107.32,360001,BIDFOOD,25/9/2023 00:00:00,29/10/2023 00:00:00,P07-2024
P&V,MYDDLETON HSE HERITAGE CENTRE,SUPPLIES AND SERVICES,NET CATERING PURCHASES,4777,P123025-SERVICE-Food & Drink order wk 28.08.2023,28/9/2023 00:00:00,277904,240.72,360001,BIDFOOD,25/9/2023 00:00:00,29/10/2023 00:00:00,P07-2024
P&V,MYDDLETON HSE HERITAGE CENTRE,SUPPLIES AND SERVICES,NET CATERING PURCHASES,4777,BTR-food /drinks,28/9/2023 00:00:00,277904,117.03,360001,BIDFOOD,25/9/2023 00:00:00,29/10/2023 00:00:00,P07-2024
P&V,MYDDLETON HSE HERITAGE CENTRE,SUPPLIES AND SERVICES,NET CATERING PURCHASES,4777,P123026-SERVICE-Food and drink order 04/09/2023,28/9/2023 00:00:00,277904,193.46,360001,BIDFOOD,25/9/2023 00:00:00,29/10/2023 00:00:00,P07-2024
P&V,MYDDLETON HSE HERITAGE CENTRE,SUPPLIES AND SERVICES,NET CATERING PURCHASES,4777,BTR-food /drinks,28/9/2023 00:00:00,277904,76.43,360001,BIDFOOD,25/9/2023 00:00:00,29/10/2023 00:00:00,P07-2024
P&V,MYDDLETON HSE HERITAGE CENTRE,SUPPLIES AND SERVICES,NET CATERING PURCHASES,4777,BTR-food /drinks,28/9/2023 00:00:00,277904,-193.46,360001,BIDFOOD,25/9/2023 00:00:00,29/10/2023 00:00:00,P07-2024
P&V,MYDDLETON HSE HERITAGE CENTRE,SUPPLIES AND SERVICES,NET CATERING PURCHASES,4777,SAINSBURYS-BREAD,10/03/2023 00:00,277969,11.12,FI0001,DIRECTOR OF FINANCE - CASH,25/9/2023 00:00:00,29/10/2023 00:00:00,P07-2024
P&V,MYDDLETON HSE HERITAGE CENTRE,SUPPLIES AND SERVICES,NET CATERING PURCHASES,4777,TESCO-TOMATOES,10/03/2023 00:00,277969,2.55,FI0001,DIRECTOR OF FINANCE - CASH,25/9/2023 00:00:00,29/10/2023 00:00:00,P07-2024
P&V,MYDDLETON HSE HERITAGE CENTRE,SUPPLIES AND SERVICES,NET CATERING PURCHASES,4777,TESCO-POTATOES/BREAD,10/03/2023 00:00,277969,13.31,FI0001,DIRECTOR OF FINANCE - CASH,25/9/2023 00:00:00,29/10/2023 00:00:00,P07-2024
P&V,MYDDLETON HSE HERITAGE CENTRE,SUPPLIES AND SERVICES,NET CATERING PURCHASES,4777,TESCO-POTATOES,10/03/2023 00:00,277969,3.9,FI0001,DIRECTOR OF FINANCE - CASH,25/9/2023 00:00:00,29/10/2023 00:00:00,P07-2024
P&V,MYDDLETON HSE HERITAGE CENTRE,SUPPLIES AND SERVICES,NET CATERING PURCHASES,4777,TESCO-POTATOES/BREAD,10/03/2023 00:00,277969,10.6,FI0001,DIRECTOR OF FINANCE - CASH,25/9/2023 00:00:00,29/10/2023 00:00:00,P07-2024
P&V,MYDDLETON HSE HERITAGE CENTRE,SUPPLIES AND SERVICES,NET CATERING PURCHASES,4777,TESCO-LETTUCE/BREAD,10/03/2023 00:00,277969,1.65,FI0001,DIRECTOR OF FINANCE - CASH,25/9/2023 00:00:00,29/10/2023 00:00:00,P07-2024
P&V,MYDDLETON HSE HERITAGE CENTRE,SUPPLIES AND SERVICES,NET CATERING PURCHASES,4777,P123026-SERVICE-Food and drink order 04/09/2023,10/03/2023 00:00,278107,186.74,360001,BIDFOOD,25/9/2023 00:00:00,29/10/2023 00:00:00,P07-2024
P&V,MYDDLETON HSE HERITAGE CENTRE,SUPPLIES AND SERVICES,NET CATERING PURCHASES,4777,BTR-food/drinks,10/03/2023 00:00,278108,144.67,360001,BIDFOOD,25/9/2023 00:00:00,29/10/2023 00:00:00,P07-2024
P&V,MYDDLETON HSE HERITAGE CENTRE,SUPPLIES AND SERVICES,NET CATERING PURCHASES,4777,BTR-food/drinks,10/03/2023 00:00,278108,69.06,360001,BIDFOOD,25/9/2023 00:00:00,29/10/2023 00:00:00,P07-2024
P&V,MYDDLETON HSE HERITAGE CENTRE,SUPPLIES AND SERVICES,NET CATERING PURCHASES,4777,BTR-food/drinks,10/03/2023 00:00,278108,-213.73,360001,BIDFOOD,25/9/2023 00:00:00,29/10/2023 00:00:00,P07-2024
P&V,MYDDLETON HSE HERITAGE CENTRE,SUPPLIES AND SERVICES,NET CATERING PURCHASES,4777,P123026-SERVICE-Food and drink order 04/09/2023,10/03/2023 00:00,278108,213.73,360001,BIDFOOD,25/9/2023 00:00:00,29/10/2023 00:00:00,P07-2024
P&V,MYDDLETON HSE HERITAGE CENTRE,SUPPLIES AND SERVICES,NET CATERING PURCHASES,4777,BTR-fod and drinks,10/03/2023 00:00,278120,84.22,360001,BIDFOOD,25/9/2023 00:00:00,29/10/2023 00:00:00,P07-2024
P&V,MYDDLETON HSE HERITAGE CENTRE,SUPPLIES AND SERVICES,NET CATERING PURCHASES,4777,P123482-SERVICE-food/drinks order oct 23,10/03/2023 00:00,278120,20.56,360001,BIDFOOD,25/9/2023 00:00:00,29/10/2023 00:00:00,P07-2024
P&V,MYDDLETON HSE HERITAGE CENTRE,SUPPLIES AND SERVICES,NET CATERING PURCHASES,4777,BTR-fod and drinks,10/03/2023 00:00,278120,-406.07,360001,BIDFOOD,25/9/2023 00:00:00,29/10/2023 00:00:00,P07-2024
P&V,MYDDLETON HSE HERITAGE CENTRE,SUPPLIES AND SERVICES,NET CATERING PURCHASES,4777,P123026-SERVICE-Food and drink order 04/09/2023,10/03/2023 00:00,278120,406.07,360001,BIDFOOD,25/9/2023 00:00:00,29/10/2023 00:00:00,P07-2024
P&V,MYDDLETON HSE HERITAGE CENTRE,SUPPLIES AND SERVICES,NET CATERING PURCHASES,4777,BTR-fod and drinks,10/03/2023 00:00,278120,321.85,360001,BIDFOOD,25/9/2023 00:00:00,29/10/2023 00:00:00,P07-2024
P&V,MYDDLETON HSE HERITAGE CENTRE,SUPPLIES AND SERVICES,NET CATERING PURCHASES,4777,BTR-food/drinks,17/10/2023 00:00:00,278273,227.47,360001,BIDFOOD,25/9/2023 00:00:00,29/10/2023 00:00:00,P07-2024
P&V,MYDDLETON HSE HERITAGE CENTRE,SUPPLIES AND SERVICES,NET CATERING PURCHASES,4777,P123482-SERVICE-food/drinks order oct 23,17/10/2023 00:00:00,278273,300.41,360001,BIDFOOD,25/9/2023 00:00:00,29/10/2023 00:00:00,P07-2024
P&V,MYDDLETON HSE HERITAGE CENTRE,SUPPLIES AND SERVICES,NET CATERING PURCHASES,4777,BTR-food/drinks,17/10/2023 00:00:00,278273,-300.41,360001,BIDFOOD,25/9/2023 00:00:00,29/10/2023 00:00:00,P07-2024
P&V,MYDDLETON HSE HERITAGE CENTRE,SUPPLIES AND SERVICES,NET CATERING PURCHASES,4777,BTR-food/drinks,17/10/2023 00:00:00,278273,72.94,360001,BIDFOOD,25/9/2023 00:00:00,29/10/2023 00:00:00,P07-2024
P&V,MYDDLETON HSE HERITAGE CENTRE,SUPPLIES AND SERVICES,NET CATERING PURCHASES,4777,BTR-food/drinks,17/10/2023 00:00:00,278386,303.74,360001,BIDFOOD,25/9/2023 00:00:00,29/10/2023 00:00:00,P07-2024
P&V,MYDDLETON HSE HERITAGE CENTRE,SUPPLIES AND SERVICES,NET CATERING PURCHASES,4777,BTR-food/drinks,17/10/2023 00:00:00,278386,-316.13,360001,BIDFOOD,25/9/2023 00:00:00,29/10/2023 00:00:00,P07-2024
P&V,MYDDLETON HSE HERITAGE CENTRE,SUPPLIES AND SERVICES,NET CATERING PURCHASES,4777,BTR-food/drinks,17/10/2023 00:00:00,278386,12.39,360001,BIDFOOD,25/9/2023 00:00:00,29/10/2023 00:00:00,P07-2024
P&V,MYDDLETON HSE HERITAGE CENTRE,SUPPLIES AND SERVICES,NET CATERING PURCHASES,4777,P123482-SERVICE-food/drinks order oct 23,17/10/2023 00:00:00,278386,316.13,360001,BIDFOOD,25/9/2023 00:00:00,29/10/2023 00:00:00,P07-2024
P&V,MYDDLETON HSE HERITAGE CENTRE,SUPPLIES AND SERVICES,NET CATERING PURCHASES,4777,P123482-SERVICE-food/drinks order oct 23,17/10/2023 00:00:00,278435,-46.78,360001,BIDFOOD,25/9/2023 00:00:00,29/10/2023 00:00:00,P07-2024
P&V,MYDDLETON HSE HERITAGE CENTRE,SUPPLIES AND SERVICES,NET CATERING PURCHASES,4777,BTR-food/drinks,17/10/2023 00:00:00,278462,-409.68,360001,BIDFOOD,25/9/2023 00:00:00,29/10/2023 00:00:00,P07-2024
P&V,MYDDLETON HSE HERITAGE CENTRE,SUPPLIES AND SERVICES,NET CATERING PURCHASES,4777,BTR-food/drinks,17/10/2023 00:00:00,278462,146.72,360001,BIDFOOD,25/9/2023 00:00:00,29/10/2023 00:00:00,P07-2024
P&V,MYDDLETON HSE HERITAGE CENTRE,SUPPLIES AND SERVICES,NET CATERING PURCHASES,4777,BTR-food/drinks,17/10/2023 00:00:00,278462,259.96,360001,BIDFOOD,25/9/2023 00:00:00,29/10/2023 00:00:00,P07-2024
P&V,MYDDLETON HSE HERITAGE CENTRE,SUPPLIES AND SERVICES,NET CATERING PURCHASES,4777,P123482-SERVICE-food/drinks order oct 23,17/10/2023 00:00:00,278462,409.68,360001,BIDFOOD,25/9/2023 00:00:00,29/10/2023 00:00:00,P07-2024
P&V,MYDDLETON HSE HERITAGE CENTRE,SUPPLIES AND SERVICES,NET CATERING PURCHASES,4777,P123648-SERVICE-food/drink order october 23,17/10/2023 00:00:00,278462,247.11,360001,BIDFOOD,25/9/2023 00:00:00,29/10/2023 00:00:00,P07-2024
P&V,MYDDLETON HSE HERITAGE CENTRE,SUPPLIES AND SERVICES,NET CATERING PURCHASES,4777,BTR- food/drinks,25/10/2023 00:00:00,278644,-409.62,360001,BIDFOOD,25/9/2023 00:00:00,29/10/2023 00:00:00,P07-2024
P&V,MYDDLETON HSE HERITAGE CENTRE,SUPPLIES AND SERVICES,NET CATERING PURCHASES,4777,P123648-SERVICE-food/drink order october 23,25/10/2023 00:00:00,278644,409.62,360001,BIDFOOD,25/9/2023 00:00:00,29/10/2023 00:00:00,P07-2024
P&V,MYDDLETON HSE HERITAGE CENTRE,SUPPLIES AND SERVICES,NET CATERING PURCHASES,4777,BTR- food/drinks,25/10/2023 00:00:00,278644,321.82,360001,BIDFOOD,25/9/2023 00:00:00,29/10/2023 00:00:00,P07-2024
P&V,MYDDLETON HSE HERITAGE CENTRE,SUPPLIES AND SERVICES,NET CATERING PURCHASES,4777,BTR- food/drinks,25/10/2023 00:00:00,278644,87.8,360001,BIDFOOD,25/9/2023 00:00:00,29/10/2023 00:00:00,P07-2024
,LEE VALLEY MARINA SPRINGFIELD,SUPPLIES AND SERVICES,TRADING AC - EXTERNAL PURCHASE,4875,P123375-SERVICE-Chandlery Stock - fenders and gas fittings,26/9/2023 00:00:00,277886,32.55,AQ0033,AQUAFAX LIMITED,25/9/2023 00:00:00,29/10/2023 00:00:00,P07-2024
,LEE VALLEY MARINA SPRINGFIELD,SUPPLIES AND SERVICES,TRADING AC - EXTERNAL PURCHASE,4875,P123375-SERVICE-Chandlery Stock - fenders and gas fittings,26/9/2023 00:00:00,277887,55.14,AQ0033,AQUAFAX LIMITED,25/9/2023 00:00:00,29/10/2023 00:00:00,P07-2024
,LEE VALLEY MARINA SPRINGFIELD,SUPPLIES AND SERVICES,TRADING AC - EXTERNAL PURCHASE,4875,P123375-SERVICE-Chandlery Stock - fenders and gas fittings,26/9/2023 00:00:00,277888,939.45,AQ0033,AQUAFAX LIMITED,25/9/2023 00:00:00,29/10/2023 00:00:00,P07-2024
,LEE VALLEY MARINA SPRINGFIELD,SUPPLIES AND SERVICES,TRADING AC - EXTERNAL PURCHASE,4875,P123375-SERVICE-Chandlery Stock - fenders and gas fittings,26/9/2023 00:00:00,277889,24.96,AQ0033,AQUAFAX LIMITED,25/9/2023 00:00:00,29/10/2023 00:00:00,P07-2024
,LEE VALLEY MARINA SPRINGFIELD,SUPPLIES AND SERVICES,TRADING AC - EXTERNAL PURCHASE,4875,P123353-SERVICE-Specially discounted chandlery order,10/09/2023 00:00,277892,1831.83,MI0200,MIDLAND CHANDLERS LIMITED,25/9/2023 00:00:00,29/10/2023 00:00:00,P07-2024
,LEE VALLEY MARINA SPRINGFIELD,SUPPLIES AND SERVICES,TRADING AC - EXTERNAL PURCHASE,4875,P123360-SERVICE-Anodes,26/9/2023 00:00:00,277893,1715,MI0200,MIDLAND CHANDLERS LIMITED,25/9/2023 00:00:00,29/10/2023 00:00:00,P07-2024
,LEE VALLEY MARINA SPRINGFIELD,SUPPLIES AND SERVICES,TRADING AC - EXTERNAL PURCHASE,4875,P123330-SERVICE-Gas and coal,26/9/2023 00:00:00,277914,1682.75,SM0664,KG SMITH & SON,25/9/2023 00:00:00,29/10/2023 00:00:00,P07-2024
,LEE VALLEY MARINA SPRINGFIELD,SUPPLIES AND SERVICES,TRADING AC - EXTERNAL PURCHASE,4875,Springfield-Chandlery stock,26/9/2023 00:00:00,277914,1152.75,SM0664,KG SMITH & SON,25/9/2023 00:00:00,29/10/2023 00:00:00,P07-2024
,LEE VALLEY MARINA SPRINGFIELD,SUPPLIES AND SERVICES,TRADING AC - EXTERNAL PURCHASE,4875,Springfield-Chandlery stock,26/9/2023 00:00:00,277914,530,SM0664,KG SMITH & SON,25/9/2023 00:00:00,29/10/2023 00:00:00,P07-2024
,LEE VALLEY MARINA SPRINGFIELD,SUPPLIES AND SERVICES,TRADING AC - EXTERNAL PURCHASE,4875,Springfield-Chandlery stock,26/9/2023 00:00:00,277914,-1682.75,SM0664,KG SMITH & SON,25/9/2023 00:00:00,29/10/2023 00:00:00,P07-2024
,LEE VALLEY MARINA SPRINGFIELD,SUPPLIES AND SERVICES,TRADING AC - EXTERNAL PURCHASE,4875,P123353-SERVICE-Specially discounted chandlery order,10/09/2023 00:00,278100,34.04,MI0200,MIDLAND CHANDLERS LIMITED,25/9/2023 00:00:00,29/10/2023 00:00:00,P07-2024
,LEE VALLEY MARINA SPRINGFIELD,SUPPLIES AND SERVICES,TRADING AC - EXTERNAL PURCHASE,4875,P123353-SERVICE-Specially discounted chandlery order,10/09/2023 00:00,278101,-181.59,MI0200,MIDLAND CHANDLERS LIMITED,25/9/2023 00:00:00,29/10/2023 00:00:00,P07-2024
,LEE VALLEY MARINA SPRINGFIELD,SUPPLIES AND SERVICES,TRADING AC - EXTERNAL PURCHASE,4875,P123353-SERVICE-Specially discounted chandlery order,10/09/2023 00:00,278102,315.94,MI0200,MIDLAND CHANDLERS LIMITED,25/9/2023 00:00:00,29/10/2023 00:00:00,P07-2024
,LEE VALLEY MARINA SPRINGFIELD,SUPPLIES AND SERVICES,TRADING AC - EXTERNAL PURCHASE,4875,P123445-SERVICE-Filters,10/03/2023 00:00,278124,97.37,EP0353,E P BARRUS LTD,25/9/2023 00:00:00,29/10/2023 00:00:00,P07-2024
,LEE VALLEY MARINA SPRINGFIELD,SUPPLIES AND SERVICES,TRADING AC - EXTERNAL PURCHASE,4875,P123353-SERVICE-Specially discounted chandlery order,10/09/2023 00:00,278125,94.97,MI0200,MIDLAND CHANDLERS LIMITED,25/9/2023 00:00:00,29/10/2023 00:00:00,P07-2024
,LEE VALLEY MARINA SPRINGFIELD,SUPPLIES AND SERVICES,TRADING AC - EXTERNAL PURCHASE,4875,P123477-SERVICE-Paint,10/09/2023 00:00,278251,822.99,CR0651,CRAFTMASTER PAINTS,25/9/2023 00:00:00,29/10/2023 00:00:00,P07-2024
,LEE VALLEY MARINA SPRINGFIELD,SUPPLIES AND SERVICES,TRADING AC - EXTERNAL PURCHASE,4875,P123487-SERVICE-Plumbing and electrical supplies,10/09/2023 00:00,278274,220.73,AQ0033,AQUAFAX LIMITED,25/9/2023 00:00:00,29/10/2023 00:00:00,P07-2024
,LEE VALLEY MARINA SPRINGFIELD,SUPPLIES AND SERVICES,TRADING AC - EXTERNAL PURCHASE,4875,P123486-SERVICE-Filters and electrical goods,10/09/2023 00:00,278275,300.28,AS0036,ASAP SUPPLIES,25/9/2023 00:00:00,29/10/2023 00:00:00,P07-2024
,LEE VALLEY MARINA SPRINGFIELD,SUPPLIES AND SERVICES,TRADING AC - EXTERNAL PURCHASE,4875,P123488-SERVICE-Chandlery Stock,10/09/2023 00:00,278276,1143.1,MI0200,MIDLAND CHANDLERS LIMITED,25/9/2023 00:00:00,29/10/2023 00:00:00,P07-2024
,LEE VALLEY MARINA SPRINGFIELD,SUPPLIES AND SERVICES,TRADING AC - EXTERNAL PURCHASE,4875,P123487-SERVICE-Plumbing and electrical supplies,10/09/2023 00:00,278282,13.88,AQ0033,AQUAFAX LIMITED,25/9/2023 00:00:00,29/10/2023 00:00:00,P07-2024
,LEE VALLEY MARINA SPRINGFIELD,SUPPLIES AND SERVICES,TRADING AC - EXTERNAL PURCHASE,4875,P123486-SERVICE-Filters and electrical goods,10/09/2023 00:00,278283,4.53,AS0036,ASAP SUPPLIES,25/9/2023 00:00:00,29/10/2023 00:00:00,P07-2024
,LEE VALLEY MARINA SPRINGFIELD,SUPPLIES AND SERVICES,TRADING AC - EXTERNAL PURCHASE,4875,P123414-SERVICE-Batteries,10/09/2023 00:00,278286,1831.74,EC0394,MANBAT LTD T/AS,25/9/2023 00:00:00,29/10/2023 00:00:00,P07-2024
,LEE VALLEY MARINA SPRINGFIELD,SUPPLIES AND SERVICES,TRADING AC - EXTERNAL PURCHASE,4875,P123541-SERVICE-Painting supplies,10/11/2023 00:00,278407,801.18,CE0510,CENTURION EUROPE LIMITED,25/9/2023 00:00:00,29/10/2023 00:00:00,P07-2024
,LEE VALLEY MARINA SPRINGFIELD,SUPPLIES AND SERVICES,TRADING AC - EXTERNAL PURCHASE,4875,P123554-SERVICE-Chandlery Stock,10/11/2023 00:00,278409,383.6,MI0200,MIDLAND CHANDLERS LIMITED,25/9/2023 00:00:00,29/10/2023 00:00:00,P07-2024
,LEE VALLEY MARINA SPRINGFIELD,SUPPLIES AND SERVICES,TRADING AC - EXTERNAL PURCHASE,4875,P123439-SERVICE-Blacking for hulls,10/11/2023 00:00,278421,2750.8,SM0658,SML PAINTS AND COATINGS,25/9/2023 00:00:00,29/10/2023 00:00:00,P07-2024
,LEE VALLEY MARINA SPRINGFIELD,SUPPLIES AND SERVICES,TRADING AC - EXTERNAL PURCHASE,4875,P122558-SERVICE-General chandlery stock,10/11/2023 00:00,278428,-163.32,MI0200,MIDLAND CHANDLERS LIMITED,25/9/2023 00:00:00,29/10/2023 00:00:00,P07-2024
,LEE VALLEY MARINA SPRINGFIELD,SUPPLIES AND SERVICES,TRADING AC - EXTERNAL PURCHASE,4875,P122558-SERVICE-General chandlery stock,10/11/2023 00:00,278429,163.32,MI0200,MIDLAND CHANDLERS LIMITED,25/9/2023 00:00:00,29/10/2023 00:00:00,P07-2024
,LEE VALLEY MARINA SPRINGFIELD,SUPPLIES AND SERVICES,TRADING AC - EXTERNAL PURCHASE,4875,P123488-SERVICE-Chandlery Stock,10/11/2023 00:00,278430,36.76,MI0200,MIDLAND CHANDLERS LIMITED,25/9/2023 00:00:00,29/10/2023 00:00:00,P07-2024
,LEE VALLEY MARINA SPRINGFIELD,SUPPLIES AND SERVICES,TRADING AC - EXTERNAL PURCHASE,4875,P123353-SERVICE-Specially discounted chandlery order,17/10/2023 00:00:00,278480,81.6,MI0200,MIDLAND CHANDLERS LIMITED,25/9/2023 00:00:00,29/10/2023 00:00:00,P07-2024
,LEE VALLEY MARINA SPRINGFIELD,SUPPLIES AND SERVICES,TRADING AC - EXTERNAL PURCHASE,4875,P123488-SERVICE-Chandlery Stock,17/10/2023 00:00:00,278570,25.4,MI0200,MIDLAND CHANDLERS LIMITED,25/9/2023 00:00:00,29/10/2023 00:00:00,P07-2024
,LEE VALLEY MARINA SPRINGFIELD,SUPPLIES AND SERVICES,TRADING AC - EXTERNAL PURCHASE,4875,P123610-SERVICE-Electric and gas supplies,17/10/2023 00:00:00,278606,927.2,AQ0033,AQUAFAX LIMITED,25/9/2023 00:00:00,29/10/2023 00:00:00,P07-2024
,LEE VALLEY MARINA SPRINGFIELD,SUPPLIES AND SERVICES,TRADING AC - EXTERNAL PURCHASE,4875,P123621-SERVICE-Chandlery Stock,17/10/2023 00:00:00,278633,550.37,MI0200,MIDLAND CHANDLERS LIMITED,25/9/2023 00:00:00,29/10/2023 00:00:00,P07-2024
,LEE VALLEY MARINA SPRINGFIELD,SUPPLIES AND SERVICES,TRADING AC - EXTERNAL PURCHASE,4875,P123610-SERVICE-Electric and gas supplies,17/10/2023 00:00:00,278635,12.77,AQ0033,AQUAFAX LIMITED,25/9/2023 00:00:00,29/10/2023 00:00:00,P07-2024
,LEE VALLEY MARINA SPRINGFIELD,SUPPLIES AND SERVICES,TRADING AC - EXTERNAL PURCHASE,4875,P123621-SERVICE-Chandlery Stock additional items,23/10/2023 00:00:00,278678,46.68,MI0200,MIDLAND CHANDLERS LIMITED,25/9/2023 00:00:00,29/10/2023 00:00:00,P07-2024
,LEE VALLEY MARINA SPRINGFIELD,SUPPLIES AND SERVICES,TRADING AC - EXTERNAL PURCHASE,4875,P123353-SERVICE-Specially discounted chandlery order,23/10/2023 00:00:00,278679,62.24,MI0200,MIDLAND CHANDLERS LIMITED,25/9/2023 00:00:00,29/10/2023 00:00:00,P07-2024
,LEE VALLEY MARINA SPRINGFIELD,SUPPLIES AND SERVICES,TRADING AC - EXTERNAL PURCHASE,4875,P123353-SERVICE-Specially discounted chandlery order,23/10/2023 00:00:00,278680,-62.24,MI0200,MIDLAND CHANDLERS LIMITED,25/9/2023 00:00:00,29/10/2023 00:00:00,P07-2024
,LEE VALLEY MARINA SPRINGFIELD,SUPPLIES AND SERVICES,TRADING AC - EXTERNAL PURCHASE,4875,P123610-SERVICE-Electric and gas supplies,23/10/2023 00:00:00,278681,3.61,AQ0033,AQUAFAX LIMITED,25/9/2023 00:00:00,29/10/2023 00:00:00,P07-2024
,LEE VALLEY MARINA SPRINGFIELD,SUPPLIES AND SERVICES,TRADING AC - EXTERNAL PURCHASE,4875,P123734-SERVICE-Electrical and gas fittings,25/10/2023 00:00:00,278839,158.37,AQ0033,AQUAFAX LIMITED,25/9/2023 00:00:00,29/10/2023 00:00:00,P07-2024
,LEE VALLEY MARINA SPRINGFIELD,SUPPLIES AND SERVICES,TRADING AC - EXTERNAL PURCHASE,4875,"P123693-SERVICE-Diesel 9,000l @ .8455 per litre",25/10/2023 00:00:00,278840,7609.5,SP0543,SPEEDY FUELS LIMITED,25/9/2023 00:00:00,29/10/2023 00:00:00,P07-2024
,LEE VALLEY MARINA SPRINGFIELD,SUPPLIES AND SERVICES,TRADING AC - EXTERNAL PURCHASE,4875,P123716-SERVICE-Chandlery Stock,29/10/2023 00:00:00,278841,900.36,MI0200,MIDLAND CHANDLERS LIMITED,25/9/2023 00:00:00,29/10/2023 00:00:00,P07-2024
,LEE VALLEY MARINA SPRINGFIELD,SUPPLIES AND SERVICES,TRADING AC - EXTERNAL PURCHASE,4875,P123734-SERVICE-Electrical and gas fittings,25/10/2023 00:00:00,278894,24.9,AQ0033,AQUAFAX LIMITED,25/9/2023 00:00:00,29/10/2023 00:00:00,P07-2024
,LEE VALLEY MARINA SPRINGFIELD,SUPPLIES AND SERVICES,TRADING AC - EXTERNAL PURCHASE,4875,Springfield-Chandlery stock,29/10/2023 00:00:00,278906,-2478.5,SM0664,KG SMITH & SON,25/9/2023 00:00:00,29/10/2023 00:00:00,P07-2024
,LEE VALLEY MARINA SPRINGFIELD,SUPPLIES AND SERVICES,TRADING AC - EXTERNAL PURCHASE,4875,Springfield-Chandlery stock,29/10/2023 00:00:00,278906,848.5,SM0664,KG SMITH & SON,25/9/2023 00:00:00,29/10/2023 00:00:00,P07-2024
,LEE VALLEY MARINA SPRINGFIELD,SUPPLIES AND SERVICES,TRADING AC - EXTERNAL PURCHASE,4875,Springfield-Chandlery stock,29/10/2023 00:00:00,278906,1630,SM0664,KG SMITH & SON,25/9/2023 00:00:00,29/10/2023 00:00:00,P07-2024
,LEE VALLEY MARINA SPRINGFIELD,SUPPLIES AND SERVICES,TRADING AC - EXTERNAL PURCHASE,4875,P123555-SERVICE-Coal heatlogs and gas,29/10/2023 00:00:00,278906,2478.5,SM0664,KG SMITH & SON,25/9/2023 00:00:00,29/10/2023 00:00:00,P07-2024
,LEE VALLEY MARINA SPRINGFIELD,SUPPLIES AND SERVICES,TRADING AC - EXTERNAL PURCHASE,4875,P123579-SERVICE-To supply 230 meters of 19/38 timber,29/10/2023 00:00:00,279013,158.24,RO0323,E ROBERT TIMBER LTD,25/9/2023 00:00:00,29/10/2023 00:00:00,P07-2024
,LEE VALLEY MARINA SPRINGFIELD,SUPPLIES AND SERVICES,TRADING AC - EXTERNAL PURCHASE,4875,P123785-SERVICE-Chandlery Stock,29/10/2023 00:00:00,279043,373.07,MI0200,MIDLAND CHANDLERS LIMITED,25/9/2023 00:00:00,29/10/2023 00:00:00,P07-2024
,LEE VALLEY MARINA SPRINGFIELD,SUPPLIES AND SERVICES,TRADING AC - EXTERNAL PURCHASE,4875,P123785-SERVICE-Chandlery Stock,29/10/2023 00:00:00,279062,5.25,MI0200,MIDLAND CHANDLERS LIMITED,25/9/2023 00:00:00,29/10/2023 00:00:00,P07-2024
,LEE VALLEY MARINA SPRINGFIELD,SUPPLIES AND SERVICES,TRADING AC - EXTERNAL PURCHASE,4875,P123810-SERVICE-Chandlery Stock,29/10/2023 00:00:00,279063,168.89,AS0036,ASAP SUPPLIES,25/9/2023 00:00:00,29/10/2023 00:00:00,P07-2024
,LEE VALLEY MARINA SPRINGFIELD,SUPPLIES AND SERVICES,TRADING AC - EXTERNAL PURCHASE,4875,P123820-SERVICE-Chandlery Stock,29/10/2023 00:00:00,279087,196.45,MI0200,MIDLAND CHANDLERS LIMITED,25/9/2023 00:00:00,29/10/2023 00:00:00,P07-2024
,STANSTEAD RECHARGEABLE WORKS,SUPPLIES AND SERVICES,TRADING AC - EXTERNAL PURCHASE,4875,P122745-SERVICE-chandlery stock,10/03/2023 00:00,277481,12.42,AQ0033,AQUAFAX LIMITED,25/9/2023 00:00:00,29/10/2023 00:00:00,P07-2024
,STANSTEAD RECHARGEABLE WORKS,SUPPLIES AND SERVICES,TRADING AC - EXTERNAL PURCHASE,4875,P122745-SERVICE-chandlery stock,10/03/2023 00:00,277482,430.05,AQ0033,AQUAFAX LIMITED,25/9/2023 00:00:00,29/10/2023 00:00:00,P07-2024
,STANSTEAD RECHARGEABLE WORKS,SUPPLIES AND SERVICES,TRADING AC - EXTERNAL PURCHASE,4875,P123369-SERVICE-engine mounts,10/03/2023 00:00,277898,103.5,BE0198,BETA MARINE LIMITED,25/9/2023 00:00:00,29/10/2023 00:00:00,P07-2024
,STANSTEAD RECHARGEABLE WORKS,SUPPLIES AND SERVICES,TRADING AC - EXTERNAL PURCHASE,4875,P123364-SERVICE-red diesel,10/03/2023 00:00,277932,305.3,SP0543,SPEEDY FUELS LIMITED,25/9/2023 00:00:00,29/10/2023 00:00:00,P07-2024
,STANSTEAD RECHARGEABLE WORKS,SUPPLIES AND SERVICES,TRADING AC - EXTERNAL PURCHASE,4875,P123364-SERVICE-red diesel,10/03/2023 00:00,277933,1657.1,SP0543,SPEEDY FUELS LIMITED,25/9/2023 00:00:00,29/10/2023 00:00:00,P07-2024
,STANSTEAD RECHARGEABLE WORKS,SUPPLIES AND SERVICES,TRADING AC - EXTERNAL PURCHASE,4875,P122827-SERVICE-chandlery stock,10/03/2023 00:00,277941,20.21,AS0036,ASAP SUPPLIES,25/9/2023 00:00:00,29/10/2023 00:00:00,P07-2024
,STANSTEAD RECHARGEABLE WORKS,SUPPLIES AND SERVICES,TRADING AC - EXTERNAL PURCHASE,4875,P122827-SERVICE-chandlery stock,10/03/2023 00:00,277942,117.72,AS0036,ASAP SUPPLIES,25/9/2023 00:00:00,29/10/2023 00:00:00,P07-2024
,STANSTEAD RECHARGEABLE WORKS,SUPPLIES AND SERVICES,TRADING AC - EXTERNAL PURCHASE,4875,Stanstead-Chandlery stock,10/03/2023 00:00,277943,6.25,MI0200,MIDLAND CHANDLERS LIMITED,25/9/2023 00:00:00,29/10/2023 00:00:00,P07-2024
,STANSTEAD RECHARGEABLE WORKS,SUPPLIES AND SERVICES,TRADING AC - EXTERNAL PURCHASE,4875,Stanstead-Chandlery stock,10/03/2023 00:00,277943,1850.83,MI0200,MIDLAND CHANDLERS LIMITED,25/9/2023 00:00:00,29/10/2023 00:00:00,P07-2024
,STANSTEAD RECHARGEABLE WORKS,SUPPLIES AND SERVICES,TRADING AC - EXTERNAL PURCHASE,4875,Stanstead-Chandlery stock,10/03/2023 00:00,277943,-1857.08,MI0200,MIDLAND CHANDLERS LIMITED,25/9/2023 00:00:00,29/10/2023 00:00:00,P07-2024
,STANSTEAD RECHARGEABLE WORKS,SUPPLIES AND SERVICES,TRADING AC - EXTERNAL PURCHASE,4875,P123359-SERVICE-chandlery stock,10/03/2023 00:00,277943,1857.08,MI0200,MIDLAND CHANDLERS LIMITED,25/9/2023 00:00:00,29/10/2023 00:00:00,P07-2024
,STANSTEAD RECHARGEABLE WORKS,SUPPLIES AND SERVICES,TRADING AC - EXTERNAL PURCHASE,4875,P123388-SERVICE-chandlery stock sept 23,10/09/2023 00:00,277944,284.73,MI0200,MIDLAND CHANDLERS LIMITED,25/9/2023 00:00:00,29/10/2023 00:00:00,P07-2024
,STANSTEAD RECHARGEABLE WORKS,SUPPLIES AND SERVICES,TRADING AC - EXTERNAL PURCHASE,4875,P123388-SERVICE-extra supplies,10/09/2023 00:00,277944,65.23,MI0200,MIDLAND CHANDLERS LIMITED,25/9/2023 00:00:00,29/10/2023 00:00:00,P07-2024
,STANSTEAD RECHARGEABLE WORKS,SUPPLIES AND SERVICES,TRADING AC - EXTERNAL PURCHASE,4875,P123374-SERVICE-customer order,17/10/2023 00:00:00,277945,40.78,MA0442,MARINE AND INDUSTRIAL LLP,25/9/2023 00:00:00,29/10/2023 00:00:00,P07-2024
,STANSTEAD RECHARGEABLE WORKS,SUPPLIES AND SERVICES,TRADING AC - EXTERNAL PURCHASE,4875,P123349-SERVICE-logs,10/03/2023 00:00,277975,240,HA0371,HARTS OF OAK,25/9/2023 00:00:00,29/10/2023 00:00:00,P07-2024
,STANSTEAD RECHARGEABLE WORKS,SUPPLIES AND SERVICES,TRADING AC - EXTERNAL PURCHASE,4875,P123396-SERVICE-chandlery stock,10/03/2023 00:00,278055,365.2,CA0660,CALFIRE SPARELINE LIMITED,25/9/2023 00:00:00,29/10/2023 00:00:00,P07-2024
,STANSTEAD RECHARGEABLE WORKS,SUPPLIES AND SERVICES,TRADING AC - EXTERNAL PURCHASE,4875,P123586-SERVICE-paint,17/10/2023 00:00:00,278087,239.95,CR0651,CRAFTMASTER PAINTS,25/9/2023 00:00:00,29/10/2023 00:00:00,P07-2024
,STANSTEAD RECHARGEABLE WORKS,SUPPLIES AND SERVICES,TRADING AC - EXTERNAL PURCHASE,4875,P123374-SERVICE-customer order,10/10/2023 00:00,278099,31.16,MA0442,MARINE AND INDUSTRIAL LLP,25/9/2023 00:00:00,29/10/2023 00:00:00,P07-2024
,STANSTEAD RECHARGEABLE WORKS,SUPPLIES AND SERVICES,TRADING AC - EXTERNAL PURCHASE,4875,P123441-SERVICE-chandlery stock & coupling,10/10/2023 00:00,278103,526.53,MI0200,MIDLAND CHANDLERS LIMITED,25/9/2023 00:00:00,29/10/2023 00:00:00,P07-2024
,STANSTEAD RECHARGEABLE WORKS,SUPPLIES AND SERVICES,TRADING AC - EXTERNAL PURCHASE,4875,P123462-SERVICE-chandlery stock,10/10/2023 00:00,278122,401.7,AQ0033,AQUAFAX LIMITED,25/9/2023 00:00:00,29/10/2023 00:00:00,P07-2024
,STANSTEAD RECHARGEABLE WORKS,SUPPLIES AND SERVICES,TRADING AC - EXTERNAL PURCHASE,4875,P122901-SERVICE-Calor Gas,17/10/2023 00:00:00,278132,797,SM0664,KG SMITH & SON,25/9/2023 00:00:00,29/10/2023 00:00:00,P07-2024
,STANSTEAD RECHARGEABLE WORKS,SUPPLIES AND SERVICES,TRADING AC - EXTERNAL PURCHASE,4875,P123363-SERVICE-gas,17/10/2023 00:00:00,278133,1020.5,SM0664,KG SMITH & SON,25/9/2023 00:00:00,29/10/2023 00:00:00,P07-2024
,STANSTEAD RECHARGEABLE WORKS,SUPPLIES AND SERVICES,TRADING AC - EXTERNAL PURCHASE,4875,P123465-SERVICE-chandlery stock,10/10/2023 00:00,278145,83.36,MI0200,MIDLAND CHANDLERS LIMITED,25/9/2023 00:00:00,29/10/2023 00:00:00,P07-2024
,STANSTEAD RECHARGEABLE WORKS,SUPPLIES AND SERVICES,TRADING AC - EXTERNAL PURCHASE,4875,Stanstead-Chandlery stock,10/10/2023 00:00,278146,40.34,MI0200,MIDLAND CHANDLERS LIMITED,25/9/2023 00:00:00,29/10/2023 00:00:00,P07-2024
,STANSTEAD RECHARGEABLE WORKS,SUPPLIES AND SERVICES,TRADING AC - EXTERNAL PURCHASE,4875,Stanstead-Chandlery stock,10/10/2023 00:00,278146,1194.34,MI0200,MIDLAND CHANDLERS LIMITED,25/9/2023 00:00:00,29/10/2023 00:00:00,P07-2024
,STANSTEAD RECHARGEABLE WORKS,SUPPLIES AND SERVICES,TRADING AC - EXTERNAL PURCHASE,4875,Stanstead-Chandlery stock,10/10/2023 00:00,278146,-1234.68,MI0200,MIDLAND CHANDLERS LIMITED,25/9/2023 00:00:00,29/10/2023 00:00:00,P07-2024
,STANSTEAD RECHARGEABLE WORKS,SUPPLIES AND SERVICES,TRADING AC - EXTERNAL PURCHASE,4875,P123465-SERVICE-chandlery stock,10/10/2023 00:00,278146,1234.68,MI0200,MIDLAND CHANDLERS LIMITED,25/9/2023 00:00:00,29/10/2023 00:00:00,P07-2024
,STANSTEAD RECHARGEABLE WORKS,SUPPLIES AND SERVICES,TRADING AC - EXTERNAL PURCHASE,4875,P123493-SERVICE-chandlery stock,10/10/2023 00:00,278297,182.85,CE0510,CENTURION EUROPE LIMITED,25/9/2023 00:00:00,29/10/2023 00:00:00,P07-2024
,STANSTEAD RECHARGEABLE WORKS,SUPPLIES AND SERVICES,TRADING AC - EXTERNAL PURCHASE,4875,P123462-SERVICE-chandlery stock,10/10/2023 00:00,278299,55.26,AQ0033,AQUAFAX LIMITED,25/9/2023 00:00:00,29/10/2023 00:00:00,P07-2024
,STANSTEAD RECHARGEABLE WORKS,SUPPLIES AND SERVICES,TRADING AC - EXTERNAL PURCHASE,4875,P123359-SERVICE-chandlery stock,10/10/2023 00:00,278300,35.08,MI0200,MIDLAND CHANDLERS LIMITED,25/9/2023 00:00:00,29/10/2023 00:00:00,P07-2024
,STANSTEAD RECHARGEABLE WORKS,SUPPLIES AND SERVICES,TRADING AC - EXTERNAL PURCHASE,4875,P123506-SERVICE-chandlery stock,17/10/2023 00:00:00,278301,214.32,MI0200,MIDLAND CHANDLERS LIMITED,25/9/2023 00:00:00,29/10/2023 00:00:00,P07-2024
,STANSTEAD RECHARGEABLE WORKS,SUPPLIES AND SERVICES,TRADING AC - EXTERNAL PURCHASE,4875,P123494-SERVICE-ropes,17/10/2023 00:00:00,278424,503.84,DS0201,DSM GROUP,25/9/2023 00:00:00,29/10/2023 00:00:00,P07-2024
,STANSTEAD RECHARGEABLE WORKS,SUPPLIES AND SERVICES,TRADING AC - EXTERNAL PURCHASE,4875,P123476-SERVICE-2200 ltrs red diesel,17/10/2023 00:00:00,278431,1995.4,HA0400,WATSON FUELS,25/9/2023 00:00:00,29/10/2023 00:00:00,P07-2024
,STANSTEAD RECHARGEABLE WORKS,SUPPLIES AND SERVICES,TRADING AC - EXTERNAL PURCHASE,4875,P123575-SERVICE-chandlery stock,17/10/2023 00:00:00,278563,1021.36,MI0200,MIDLAND CHANDLERS LIMITED,25/9/2023 00:00:00,29/10/2023 00:00:00,P07-2024
,STANSTEAD RECHARGEABLE WORKS,SUPPLIES AND SERVICES,TRADING AC - EXTERNAL PURCHASE,4875,P123576-SERVICE-cahndlery stock,23/10/2023 00:00:00,278564,423.45,CE0510,CENTURION EUROPE LIMITED,25/9/2023 00:00:00,29/10/2023 00:00:00,P07-2024
,STANSTEAD RECHARGEABLE WORKS,SUPPLIES AND SERVICES,TRADING AC - EXTERNAL PURCHASE,4875,P123462-SERVICE-chandlery stock,17/10/2023 00:00:00,278569,15.09,AQ0033,AQUAFAX LIMITED,25/9/2023 00:00:00,29/10/2023 00:00:00,P07-2024
,STANSTEAD RECHARGEABLE WORKS,SUPPLIES AND SERVICES,TRADING AC - EXTERNAL PURCHASE,4875,P123575-SERVICE-chandlery stock,17/10/2023 00:00:00,278634,7.26,MI0200,MIDLAND CHANDLERS LIMITED,25/9/2023 00:00:00,29/10/2023 00:00:00,P07-2024
,STANSTEAD RECHARGEABLE WORKS,SUPPLIES AND SERVICES,TRADING AC - EXTERNAL PURCHASE,4875,P123640-SERVICE-chandlery stock,23/10/2023 00:00:00,278673,556.78,AQ0033,AQUAFAX LIMITED,25/9/2023 00:00:00,29/10/2023 00:00:00,P07-2024
,STANSTEAD RECHARGEABLE WORKS,SUPPLIES AND SERVICES,TRADING AC - EXTERNAL PURCHASE,4875,P123640-SERVICE-chandlery stock,23/10/2023 00:00:00,278710,26,AQ0033,AQUAFAX LIMITED,25/9/2023 00:00:00,29/10/2023 00:00:00,P07-2024
,STANSTEAD RECHARGEABLE WORKS,SUPPLIES AND SERVICES,TRADING AC - EXTERNAL PURCHASE,4875,P123462-SERVICE-chandlery stock,23/10/2023 00:00:00,278711,35.21,AQ0033,AQUAFAX LIMITED,25/9/2023 00:00:00,29/10/2023 00:00:00,P07-2024
,STANSTEAD RECHARGEABLE WORKS,SUPPLIES AND SERVICES,TRADING AC - EXTERNAL PURCHASE,4875,P123663-SERVICE-paint,23/10/2023 00:00:00,278713,248.68,CR0651,CRAFTMASTER PAINTS,25/9/2023 00:00:00,29/10/2023 00:00:00,P07-2024
,STANSTEAD RECHARGEABLE WORKS,SUPPLIES AND SERVICES,TRADING AC - EXTERNAL PURCHASE,4875,P123702-SERVICE-end cap,29/10/2023 00:00:00,278817,14.55,MI0200,MIDLAND CHANDLERS LIMITED,25/9/2023 00:00:00,29/10/2023 00:00:00,P07-2024
,STANSTEAD RECHARGEABLE WORKS,SUPPLIES AND SERVICES,TRADING AC - EXTERNAL PURCHASE,4875,P123708-SERVICE-chandlery stock,29/10/2023 00:00:00,278866,88.64,AS0036,ASAP SUPPLIES,25/9/2023 00:00:00,29/10/2023 00:00:00,P07-2024
,STANSTEAD RECHARGEABLE WORKS,SUPPLIES AND SERVICES,TRADING AC - EXTERNAL PURCHASE,4875,P123708-SERVICE-chandlery stock,29/10/2023 00:00:00,278867,32.2,AS0036,ASAP SUPPLIES,25/9/2023 00:00:00,29/10/2023 00:00:00,P07-2024
,STANSTEAD RECHARGEABLE WORKS,SUPPLIES AND SERVICES,TRADING AC - EXTERNAL PURCHASE,4875,P123794-SERVICE-pottery for chandlery,29/10/2023 00:00:00,278907,235,CL0722,BEVERLEY CLARKE,25/9/2023 00:00:00,29/10/2023 00:00:00,P07-2024
,STANSTEAD RECHARGEABLE WORKS,SUPPLIES AND SERVICES,TRADING AC - EXTERNAL PURCHASE,4875,P123640-SERVICE-chandlery stock,29/10/2023 00:00:00,279008,10.4,AQ0033,AQUAFAX LIMITED,25/9/2023 00:00:00,29/10/2023 00:00:00,P07-2024
,STANSTEAD RECHARGEABLE WORKS,SUPPLIES AND SERVICES,TRADING AC - EXTERNAL PURCHASE,4875,P123755-SERVICE-chandlery items 24.10.23,29/10/2023 00:00:00,279009,284.67,MI0200,MIDLAND CHANDLERS LIMITED,25/9/2023 00:00:00,29/10/2023 00:00:00,P07-2024
,STANSTEAD RECHARGEABLE WORKS,SUPPLIES AND SERVICES,TRADING AC - EXTERNAL PURCHASE,4875,P123677-SERVICE-logs,29/10/2023 00:00:00,279025,240,HA0371,HARTS OF OAK,25/9/2023 00:00:00,29/10/2023 00:00:00,P07-2024
,LEE VALLEY CAMPSITE,SUPPLIES AND SERVICES,TRADING AC - EXTERNAL PURCHASE,4875,P121693-SERVICE-Stock  Caravan chemicals,17/10/2023 00:00:00,278385,62.6,TO0079,TOWSURE PRODUCTS LIMITED,25/9/2023 00:00:00,29/10/2023 00:00:00,P07-2024
,LEE VALLEY CAMPSITE,SUPPLIES AND SERVICES,TRADING AC - EXTERNAL PURCHASE,4875,P121693-SERVICE-Stock  Caravan chemicals,17/10/2023 00:00:00,278395,54.11,TO0079,TOWSURE PRODUCTS LIMITED,25/9/2023 00:00:00,29/10/2023 00:00:00,P07-2024
,LEE VALLEY CAMPSITE,SUPPLIES AND SERVICES,TRADING AC - EXTERNAL PURCHASE,4875,P121693-SERVICE-Stock  Caravan chemicals,29/10/2023 00:00:00,278828,3.2,TO0079,TOWSURE PRODUCTS LIMITED,25/9/2023 00:00:00,29/10/2023 00:00:00,P07-2024
P&V,WILDLIFE DISCOVERY CENTRE,SUPPLIES AND SERVICES,TRADING AC - EXTERNAL PURCHASE,4875,P123692-SERVICE-2x Milk in Stick 10ml (240Pk) - BZ74721,29/10/2023 00:00:00,279036,22.36,TH0008,JKL SOLUTIONS LTD,25/9/2023 00:00:00,29/10/2023 00:00:00,P07-2024
P&V,WILDLIFE DISCOVERY CENTRE,SUPPLIES AND SERVICES,TRADING AC - EXTERNAL PURCHASE,4875,P123692-SERVICE-2x 25cl Rippled Wall Hot Cups Pk25 - RY04635,29/10/2023 00:00:00,279036,7.28,TH0008,JKL SOLUTIONS LTD,25/9/2023 00:00:00,29/10/2023 00:00:00,P07-2024
P&V,WILDLIFE DISCOVERY CENTRE,SUPPLIES AND SERVICES,TRADING AC - EXTERNAL PURCHASE,4875,P123692-SERVICE-6x 35cl Rippled Wall Hot Cups Pk25 - RY04637,29/10/2023 00:00:00,279036,25.14,TH0008,JKL SOLUTIONS LTD,25/9/2023 00:00:00,29/10/2023 00:00:00,P07-2024
P&V,WILDLIFE DISCOVERY CENTRE,SUPPLIES AND SERVICES,TRADING AC - EXTERNAL PURCHASE,4875,P123692-SERVICE-1x Hot Chocolate Sachets 28g Pk50 - KS04386,29/10/2023 00:00:00,279036,22.06,TH0008,JKL SOLUTIONS LTD,25/9/2023 00:00:00,29/10/2023 00:00:00,P07-2024
P&V,WILDLIFE DISCOVERY CENTRE,SUPPLIES AND SERVICES,TRADING AC - EXTERNAL PURCHASE,4875,P123692-SERVICE-3x Nescafe and Go Cappuccino Pk8 - NL52543,29/10/2023 00:00:00,279036,28.08,TH0008,JKL SOLUTIONS LTD,25/9/2023 00:00:00,29/10/2023 00:00:00,P07-2024
P&V,WILDLIFE DISCOVERY CENTRE,SUPPLIES AND SERVICES,TRADING AC - EXTERNAL PURCHASE,4875,P123692-SERVICE-4x Nescafe & Go Latte Cup Pk8 - NL26692,29/10/2023 00:00:00,279036,41.44,TH0008,JKL SOLUTIONS LTD,25/9/2023 00:00:00,29/10/2023 00:00:00,P07-2024
P&V,WILDLIFE DISCOVERY CENTRE,SUPPLIES AND SERVICES,TRADING AC - EXTERNAL PURCHASE,4875,P123692-SERVICE-3x 500ml Still Water Bottles Pk24 - MYC30576,29/10/2023 00:00:00,279036,31.35,TH0008,JKL SOLUTIONS LTD,25/9/2023 00:00:00,29/10/2023 00:00:00,P07-2024
P&V,WILDLIFE DISCOVERY CENTRE,SUPPLIES AND SERVICES,TRADING AC - EXTERNAL PURCHASE,4875,P123692-SERVICE-8x Go Gold Blend White Coffee Pk8 - NL52547,29/10/2023 00:00:00,279036,74.88,TH0008,JKL SOLUTIONS LTD,25/9/2023 00:00:00,29/10/2023 00:00:00,P07-2024
P&V,ALMOST WILD CAMPSITE,SUPPLIES AND SERVICES,TRADING AC - EXTERNAL PURCHASE,4875,P123626-SERVICE-2 PALLETS OF LOGS,23/10/2023 00:00:00,278728,545.6,LO0473,LOGS DIRECT LTD,25/9/2023 00:00:00,29/10/2023 00:00:00,P07-2024
,LV LEISURE CENTRE CAMPSITE,SUPPLIES AND SERVICES,TRADING AC - EXTERNAL PURCHASE,4875,"P123492-SERVICE-tin opener, pegs and chairs",10/09/2023 00:00,278255,76.3,TO0079,TOWSURE PRODUCTS LIMITED,25/9/2023 00:00:00,29/10/2023 00:00:00,P07-2024
,LV LEISURE CENTRE CAMPSITE,SUPPLIES AND SERVICES,TRAVEL CARDS,4876,P123134-SERVICE-travel cards for edmonton,29/10/2023 00:00:00,278905,5132.5,PA0003,TRANSPORT TRADING LIMITED,25/9/2023 00:00:00,29/10/2023 00:00:00,P07-2024
,LEE VALLEY CAMPSITE,SUPPLIES AND SERVICES,BOTTLED GAS,4877,P123417-SERVICE-Site gas stock,10/03/2023 00:00,277735,320.58,CA0006,CALOR GAS LIMITED,25/9/2023 00:00:00,29/10/2023 00:00:00,P07-2024
,LEE VALLEY CAMPSITE,SUPPLIES AND SERVICES,BOTTLED GAS,4877,P122978-SERVICE-Stock - Gas,10/03/2023 00:00,278054,584.59,FL0147,FLOGAS BRITAIN LIMITED,25/9/2023 00:00:00,29/10/2023 00:00:00,P07-2024
,LEE VALLEY CAMPSITE,SUPPLIES AND SERVICES,BOTTLED GAS,4877,P122978-SERVICE-Stock - Gas,29/10/2023 00:00:00,279021,512.11,FL0147,FLOGAS BRITAIN LIMITED,25/9/2023 00:00:00,29/10/2023 00:00:00,P07-2024
CEO,CHIEF EXECUTIVE,SUPPLIES AND SERVICES,UNRECONCILED COMPANY CARD EXP,4880,P ANDREWS - OCTOBER 2023 CREDIT CARD STATEMENT,10/12/2023 00:00,278272,46.18,NA0007,NATWEST CARD CENTRE,25/9/2023 00:00:00,29/10/2023 00:00:00,P07-2024
P&V,MYDDELTON HOUSE,SUPPLIES AND SERVICES,UNRECONCILED COMPANY CARD EXP,4880,G FLAVIEN - OCTOBER 2023 CREDIT CARD STATEMENT,10/12/2023 00:00,278272,1568.41,NA0007,NATWEST CARD CENTRE,25/9/2023 00:00:00,29/10/2023 00:00:00,P07-2024
CEO,PR/COMMUNICATIONS,SUPPLIES AND SERVICES,UNRECONCILED COMPANY CARD EXP,4880,S BROMBERG - OCTOBER 2023 CREDIT CARD STATEMENT,10/12/2023 00:00,278272,2798.19,NA0007,NATWEST CARD CENTRE,25/9/2023 00:00:00,29/10/2023 00:00:00,P07-2024
R&B,DEMOCRATIC REPRESENTATION & MA,SUPPLIES AND SERVICES,UNRECONCILED COMPANY CARD EXP,4880,S BERTSCHIN - OCTOBER 2023 CREDIT CARD STATEMENT,10/12/2023 00:00,278272,407.7,NA0007,NATWEST CARD CENTRE,25/9/2023 00:00:00,29/10/2023 00:00:00,P07-2024
R&B,FINANCE & RESOURCES MANAGEMENT,SUPPLIES AND SERVICES,UNRECONCILED COMPANY CARD EXP,4880,L READ - OCTOBER 2023 CREDIT CARD STATEMENT,10/12/2023 00:00,278272,967.5,NA0007,NATWEST CARD CENTRE,25/9/2023 00:00:00,29/10/2023 00:00:00,P07-2024
R&B,INFORMATION TECHNOLOGY,SUPPLIES AND SERVICES,UNRECONCILED COMPANY CARD EXP,4880,S CLARK - OCTOBER 2023 CREDIT CARD STATEMENT,10/12/2023 00:00,278272,12.99,NA0007,NATWEST CARD CENTRE,25/9/2023 00:00:00,29/10/2023 00:00:00,P07-2024
,LEE VALLEY MARINA SPRINGFIELD,SUPPLIES AND SERVICES,UNRECONCILED COMPANY CARD EXP,4880,T BEAN - OCTOBER 2023 CREDIT CARD STATEMENT,10/12/2023 00:00,278272,175.63,NA0007,NATWEST CARD CENTRE,25/9/2023 00:00:00,29/10/2023 00:00:00,P07-2024
,LEE VALLEY MARINA STANSTEAD,SUPPLIES AND SERVICES,UNRECONCILED COMPANY CARD EXP,4880,J MANTON - OCTOBER 2023 CREDIT CARD STATEMENT,10/12/2023 00:00,278272,377.25,NA0007,NATWEST CARD CENTRE,25/9/2023 00:00:00,29/10/2023 00:00:00,P07-2024
P&V,LEE VALLEY FARM HOLYFIELDHALL,SUPPLIES AND SERVICES,UNRECONCILED COMPANY CARD EXP,4880,J PAINTER - OCTOBER 2023 CREDIT CARD STATEMENT,10/12/2023 00:00,278272,581.86,NA0007,NATWEST CARD CENTRE,25/9/2023 00:00:00,29/10/2023 00:00:00,P07-2024
,LEE VALLEY CAMPSITE,SUPPLIES AND SERVICES,UNRECONCILED COMPANY CARD EXP,4880,C CARTER - OCTOBER 2023 CREDIT CARD STATEMENT,10/12/2023 00:00,278272,2236.75,NA0007,NATWEST CARD CENTRE,25/9/2023 00:00:00,29/10/2023 00:00:00,P07-2024
,LEE VALLEY CARAVAN PARK,SUPPLIES AND SERVICES,UNRECONCILED COMPANY CARD EXP,4880,D SNOWDEN - OCTOBER 2023 CREDIT CARD STATEMENT,10/12/2023 00:00,278272,176.88,NA0007,NATWEST CARD CENTRE,25/9/2023 00:00:00,29/10/2023 00:00:00,P07-2024
,LEE VALLEY CARAVAN PARK,SUPPLIES AND SERVICES,UNRECONCILED COMPANY CARD EXP,4880,I RUSSELL - OCTOBER 2023 CREDIT CARD STATEMENT,10/12/2023 00:00,278272,3289.33,NA0007,NATWEST CARD CENTRE,25/9/2023 00:00:00,29/10/2023 00:00:00,P07-2024
P&V,MYDDELTON HOUSE GARDENS,SUPPLIES AND SERVICES,UNRECONCILED COMPANY CARD EXP,4880,R HARMES - OCTOBER 2023 CREDIT CARD STATEMENT,10/12/2023 00:00,278272,-17.02,NA0007,NATWEST CARD CENTRE,25/9/2023 00:00:00,29/10/2023 00:00:00,P07-2024
P&V,OPERATIONAL MANAGEMENT (L&E),SUPPLIES AND SERVICES,UNRECONCILED COMPANY CARD EXP,4880,J CARNEY - OCTOBER 2023 CREDIT CARD STATEMENT,10/12/2023 00:00,278272,39.57,NA0007,NATWEST CARD CENTRE,25/9/2023 00:00:00,29/10/2023 00:00:00,P07-2024
P&V,OPERATIONAL MANAGEMENT (L&E),SUPPLIES AND SERVICES,UNRECONCILED COMPANY CARD EXP,4880,J HETHERINGTON - OCTOBER 2023 CREDIT CARD STATEMENT,10/12/2023 00:00,278272,564.24,NA0007,NATWEST CARD CENTRE,25/9/2023 00:00:00,29/10/2023 00:00:00,P07-2024
P&V,SPORT AND LEISURE,SUPPLIES AND SERVICES,UNRECONCILED COMPANY CARD EXP,4880,A SACKETT - OCTOBER 2023 CREDIT CARD STATEMENT,10/12/2023 00:00,278272,424.86,NA0007,NATWEST CARD CENTRE,25/9/2023 00:00:00,29/10/2023 00:00:00,P07-2024
P&V,EVENTS MANAGEMENT (PR),SUPPLIES AND SERVICES,UNRECONCILED COMPANY CARD EXP,4880,S STONE-- OCTOBER 2023 CREDIT CARD STATEMENT,10/12/2023 00:00,278272,796.46,NA0007,NATWEST CARD CENTRE,25/9/2023 00:00:00,29/10/2023 00:00:00,P07-2024
,LV LEISURE CENTRE CAMPSITE,SUPPLIES AND SERVICES,UNRECONCILED COMPANY CARD EXP,4880,L SMITH - OCTOBER 2023 CREDIT CARD STATEMENT,10/12/2023 00:00,278272,212.15,NA0007,NATWEST CARD CENTRE,25/9/2023 00:00:00,29/10/2023 00:00:00,P07-2024
CEO,COMMERCIAL ACCOMMODATION,SUPPLIES AND SERVICES,OTHER EXPENSES,4899,P121556-SERVICE-Land Registry Fees,10/03/2023 00:00,278106,45,HM0032,HM LAND REGISTRY,25/9/2023 00:00:00,29/10/2023 00:00:00,P07-2024
CEO,COMMERCIAL ACCOMMODATION,SUPPLIES AND SERVICES,OTHER EXPENSES,4899,P121556-SERVICE-Land Registry Fees,10/09/2023 00:00,278287,51,HM0032,HM LAND REGISTRY,25/9/2023 00:00:00,29/10/2023 00:00:00,P07-2024
CEO,COMMERCIAL ACCOMMODATION,SUPPLIES AND SERVICES,OTHER EXPENSES,4899,P121556-SERVICE-Land Registry Fees,17/10/2023 00:00:00,278612,9,HM0032,HM LAND REGISTRY,25/9/2023 00:00:00,29/10/2023 00:00:00,P07-2024
CEO,COMMERCIAL ACCOMMODATION,SUPPLIES AND SERVICES,OTHER EXPENSES,4899,P121556-SERVICE-Land Registry Fees,24/10/2023 00:00:00,278827,6,HM0032,HM LAND REGISTRY,25/9/2023 00:00:00,29/10/2023 00:00:00,P07-2024
CEO,COMMERCIAL ACCOMMODATION,SUPPLIES AND SERVICES,OTHER EXPENSES,4899,P121556-SERVICE-Land Registry Fees,29/10/2023 00:00:00,279050,6,HM0032,HM LAND REGISTRY,25/9/2023 00:00:00,29/10/2023 00:00:00,P07-2024
CEO,COMMERCIAL ACCOMMODATION,SUPPLIES AND SERVICES,OTHER EXPENSES,4899,P123725-SERVICE-Service Charge Bikeworks July-September 2023,29/10/2023 00:00:00,279066,321,GR0097,GREENWICH LEISURE LTD,25/9/2023 00:00:00,29/10/2023 00:00:00,P07-2024
CEO,COMMERCIAL ACCOMMODATION,SUPPLIES AND SERVICES,OTHER EXPENSES,4899,P123725-SERVICE-Service Charge World College of Sports July-S,29/10/2023 00:00:00,279066,4194,GR0097,GREENWICH LEISURE LTD,25/9/2023 00:00:00,29/10/2023 00:00:00,P07-2024
CEO,MAJOR EVENTS,SUPPLIES AND SERVICES,OTHER EXPENSES,4899,P123523-SERVICE-TCL onsite inspection of roof loading install,17/10/2023 00:00:00,278574,500,EX0288,USEFUL SIMPLE GROUP LTD,25/9/2023 00:00:00,29/10/2023 00:00:00,P07-2024
CEO,MAJOR EVENTS,SUPPLIES AND SERVICES,OTHER EXPENSES,4899,P123523-SERVICE-TCL roof loading justification document,17/10/2023 00:00:00,278574,1500,EX0288,USEFUL SIMPLE GROUP LTD,25/9/2023 00:00:00,29/10/2023 00:00:00,P07-2024
CEO,MAJOR EVENTS,SUPPLIES AND SERVICES,OTHER EXPENSES,4899,P123571-SERVICE-Hiire of the ticket office and security cabin,29/10/2023 00:00:00,278885,300,EN0312,ENGLAND HOCKEY LIMITED,25/9/2023 00:00:00,29/10/2023 00:00:00,P07-2024
,LEE VALLEY CAMPSITE,SUPPLIES AND SERVICES,OTHER EXPENSES,4899,P123384-SERVICE-Preium WiFi installs at Sewardstone and to mo,10/03/2023 00:00,278094,450,JP0183,JPH CABLING SERVICES,25/9/2023 00:00:00,29/10/2023 00:00:00,P07-2024
,LEE VALLEY CAMPSITE,SUPPLIES AND SERVICES,OTHER EXPENSES,4899,P123093-SERVICE-SC Office Air Con,10/09/2023 00:00,278280,1500,CI0770,CITIPOST POWER,25/9/2023 00:00:00,29/10/2023 00:00:00,P07-2024
,LEE VALLEY CAMPSITE,SUPPLIES AND SERVICES,OTHER EXPENSES,4899,P123093-SERVICE-SC Shop Air Con,10/09/2023 00:00,278281,1900,CI0770,CITIPOST POWER,25/9/2023 00:00:00,29/10/2023 00:00:00,P07-2024
,LEE VALLEY CAMPSITE,SUPPLIES AND SERVICES,OTHER EXPENSES,4899,P123549-SERVICE-Chair,17/10/2023 00:00:00,278304,191.67,TH0008,JKL SOLUTIONS LTD,25/9/2023 00:00:00,29/10/2023 00:00:00,P07-2024
,LEE VALLEY CAMPSITE,SUPPLIES AND SERVICES,OTHER EXPENSES,4899,P123549-SERVICE-Footstool,17/10/2023 00:00:00,278304,23.14,TH0008,JKL SOLUTIONS LTD,25/9/2023 00:00:00,29/10/2023 00:00:00,P07-2024
,LEE VALLEY CAMPSITE,SUPPLIES AND SERVICES,OTHER EXPENSES,4899,Sewardstone-repairs to cabin pathways,10/09/2023 00:00,278365,700,MO0041,CAPSER,25/9/2023 00:00:00,29/10/2023 00:00:00,P07-2024
,LEE VALLEY CAMPSITE,SUPPLIES AND SERVICES,OTHER EXPENSES,4899,P122131-SERVICE-investigate sewage blockage P10,10/09/2023 00:00,278365,150,MO0041,CAPSER,25/9/2023 00:00:00,29/10/2023 00:00:00,P07-2024
,LEE VALLEY CAMPSITE,SUPPLIES AND SERVICES,OTHER EXPENSES,4899,P122131-SERVICE-repairs to cabin pathways,10/09/2023 00:00,278365,1200,MO0041,CAPSER,25/9/2023 00:00:00,29/10/2023 00:00:00,P07-2024
,LEE VALLEY CAMPSITE,SUPPLIES AND SERVICES,OTHER EXPENSES,4899,Sewardstone-repairs to cabin pathways,10/09/2023 00:00,278365,500,MO0041,CAPSER,25/9/2023 00:00:00,29/10/2023 00:00:00,P07-2024
,LEE VALLEY CAMPSITE,SUPPLIES AND SERVICES,OTHER EXPENSES,4899,Sewardstone-repairs to cabin pathways,10/09/2023 00:00,278365,-1200,MO0041,CAPSER,25/9/2023 00:00:00,29/10/2023 00:00:00,P07-2024
,LEE VALLEY CAMPSITE,SUPPLIES AND SERVICES,OTHER EXPENSES,4899,P123675-SERVICE-WiFi New Holiday Homes Dobbs Weir,25/10/2023 00:00:00,278849,450,JP0183,JPH CABLING SERVICES,25/9/2023 00:00:00,29/10/2023 00:00:00,P07-2024
,LEE VALLEY CARAVAN PARK,SUPPLIES AND SERVICES,OTHER EXPENSES,4899,P123556-SERVICE-Fire Assembly Point Sign,17/10/2023 00:00:00,278307,8.33,SC0057,SCREWFIX DIRECT LTD,25/9/2023 00:00:00,29/10/2023 00:00:00,P07-2024
,LEE VALLEY CARAVAN PARK,SUPPLIES AND SERVICES,OTHER EXPENSES,4899,P123655-SERVICE-Euro Locks for Tunnel - H & S,29/10/2023 00:00:00,278336,134.13,SC0057,SCREWFIX DIRECT LTD,25/9/2023 00:00:00,29/10/2023 00:00:00,P07-2024
,LEE VALLEY CARAVAN PARK,SUPPLIES AND SERVICES,OTHER EXPENSES,4899,P123781-SERVICE-H & S fire signs and PPE for strimming,29/10/2023 00:00:00,278882,312.35,SC0057,SCREWFIX DIRECT LTD,25/9/2023 00:00:00,29/10/2023 00:00:00,P07-2024
P&V,COMMUNITY ACCESS FUND,SUPPLIES AND SERVICES,OTHER EXPENSES,4899,P123572-SERVICE-CAF coach St Katherines 6/3/24,17/10/2023 00:00:00,278325,550,MI0412,MILESTONE COACHES LTD,25/9/2023 00:00:00,29/10/2023 00:00:00,P07-2024
P&V,COMMUNITY ACCESS FUND,SUPPLIES AND SERVICES,OTHER EXPENSES,4899,P123727-SERVICE-Q2 CAF WWC,29/10/2023 00:00:00,278614,192,GR0097,GREENWICH LEISURE LTD,25/9/2023 00:00:00,29/10/2023 00:00:00,P07-2024
P&V,COMMUNITY ACCESS FUND,SUPPLIES AND SERVICES,OTHER EXPENSES,4899,P123727-SERVICE-Q2 CAF WWC,29/10/2023 00:00:00,278615,64,GR0097,GREENWICH LEISURE LTD,25/9/2023 00:00:00,29/10/2023 00:00:00,P07-2024
P&V,COMMUNITY ACCESS FUND,SUPPLIES AND SERVICES,OTHER EXPENSES,4899,P123727-SERVICE-Q2 CAF WWC,29/10/2023 00:00:00,278616,192,GR0097,GREENWICH LEISURE LTD,25/9/2023 00:00:00,29/10/2023 00:00:00,P07-2024
P&V,COMMUNITY ACCESS FUND,SUPPLIES AND SERVICES,OTHER EXPENSES,4899,P123727-SERVICE-Q2 CAF WWC,29/10/2023 00:00:00,278617,64,GR0097,GREENWICH LEISURE LTD,25/9/2023 00:00:00,29/10/2023 00:00:00,P07-2024
P&V,COMMUNITY ACCESS FUND,SUPPLIES AND SERVICES,OTHER EXPENSES,4899,P123727-SERVICE-Q2 CAF WWC,29/10/2023 00:00:00,278618,320,GR0097,GREENWICH LEISURE LTD,25/9/2023 00:00:00,29/10/2023 00:00:00,P07-2024
P&V,COMMUNITY ACCESS FUND,SUPPLIES AND SERVICES,OTHER EXPENSES,4899,P123727-SERVICE-Q2 CAF WWC,29/10/2023 00:00:00,278619,380,GR0097,GREENWICH LEISURE LTD,25/9/2023 00:00:00,29/10/2023 00:00:00,P07-2024
P&V,COMMUNITY ACCESS FUND,SUPPLIES AND SERVICES,OTHER EXPENSES,4899,P123727-SERVICE-Q2 CAF WWC,29/10/2023 00:00:00,278620,870,GR0097,GREENWICH LEISURE LTD,25/9/2023 00:00:00,29/10/2023 00:00:00,P07-2024
P&V,COMMUNITY ACCESS FUND,SUPPLIES AND SERVICES,OTHER EXPENSES,4899,P123727-SERVICE-Q2 CAF WWC,29/10/2023 00:00:00,278621,208,GR0097,GREENWICH LEISURE LTD,25/9/2023 00:00:00,29/10/2023 00:00:00,P07-2024
P&V,COMMUNITY ACCESS FUND,SUPPLIES AND SERVICES,OTHER EXPENSES,4899,P123727-SERVICE-Q2 CAF WWC,29/10/2023 00:00:00,278622,208,GR0097,GREENWICH LEISURE LTD,25/9/2023 00:00:00,29/10/2023 00:00:00,P07-2024
P&V,COMMUNITY ACCESS FUND,SUPPLIES AND SERVICES,OTHER EXPENSES,4899,P123727-SERVICE-Q2 CAF WWC,29/10/2023 00:00:00,278623,320,GR0097,GREENWICH LEISURE LTD,25/9/2023 00:00:00,29/10/2023 00:00:00,P07-2024
P&V,COMMUNITY ACCESS FUND,SUPPLIES AND SERVICES,OTHER EXPENSES,4899,P123727-SERVICE-Q2 CAF WWC,29/10/2023 00:00:00,278624,192,GR0097,GREENWICH LEISURE LTD,25/9/2023 00:00:00,29/10/2023 00:00:00,P07-2024
P&V,COMMUNITY ACCESS FUND,SUPPLIES AND SERVICES,OTHER EXPENSES,4899,P123727-SERVICE-Q2 CAF WWC,29/10/2023 00:00:00,278626,416,GR0097,GREENWICH LEISURE LTD,25/9/2023 00:00:00,29/10/2023 00:00:00,P07-2024
,LV LEISURE CENTRE CAMPSITE,SUPPLIES AND SERVICES,OTHER EXPENSES,4899,P123514-SERVICE-first aid equipment,10/09/2023 00:00,278302,126.05,FI0215,VALUE PRODUCTS LTD,25/9/2023 00:00:00,29/10/2023 00:00:00,P07-2024
,LV LEISURE CENTRE CAMPSITE,SUPPLIES AND SERVICES,OTHER EXPENSES,4899,P123095-SERVICE-EC Shop & Office Air Con,25/10/2023 00:00:00,278823,2740,CI0770,CITIPOST POWER,25/9/2023 00:00:00,29/10/2023 00:00:00,P07-2024
,LV LEISURE CENTRE GOLF COURSE,SUPPLIES AND SERVICES,OTHER EXPENSES,4899,P122270-SERVICE-Knot Weed,10/03/2023 00:00,277644,247.5,GO0044,S.H.GOSS & CO LTD,25/9/2023 00:00:00,29/10/2023 00:00:00,P07-2024
P&V,AWARDS AND ACCREDITATIONS,SUPPLIES AND SERVICES,OTHER EXPENSES,4899,P123426-SERVICE-Quality Site visit 13/9/23,10/03/2023 00:00,277926,470,RI0053,RIGHT DIRECTIONS (MANAGEMENT) LTD,25/9/2023 00:00:00,29/10/2023 00:00:00,P07-2024
P&V,AWARDS AND ACCREDITATIONS,SUPPLIES AND SERVICES,OTHER EXPENSES,4899,P123210-SERVICE-2023-24 Market Research,17/10/2023 00:00:00,278465,7635,FE0285,FEEDBACK MARKET RESEARCH LIMITED,25/9/2023 00:00:00,29/10/2023 00:00:00,P07-2024
P&V,AWARDS AND ACCREDITATIONS,SUPPLIES AND SERVICES,OTHER EXPENSES,4899,P122971-SERVICE-VeloPark Quest directional review December 20,24/10/2023 00:00:00,278824,1250,4G0455,4GLOBAL CONSULTING LIMITED,25/9/2023 00:00:00,29/10/2023 00:00:00,P07-2024
P&V,AWARDS AND ACCREDITATIONS,SUPPLIES AND SERVICES,OTHER EXPENSES,4899,P121327-SERVICE-HTC Quest Plus,29/10/2023 00:00:00,278897,1575,4G0455,4GLOBAL CONSULTING LIMITED,25/9/2023 00:00:00,29/10/2023 00:00:00,P07-2024
P&V,S106 PROJECTS,S106 EXPENDITURE (REVENUE),S106 EXPENDITURE (REVENUE),4985,P123522-SERVICE-Delivery of the River Lynch Restoration Proje,25/10/2023 00:00:00,278137,32908,AQ0410,AQUAMAINTAIN LTD,25/9/2023 00:00:00,29/10/2023 00:00:00,P07-2024
P&V,S106 PROJECTS,S106 EXPENDITURE (REVENUE),S106 EXPENDITURE (REVENUE),4985,P123522-SERVICE-Delivery of the River Lynch Restoration Proje,17/10/2023 00:00:00,278326,24681,AQ0410,AQUAMAINTAIN LTD,25/9/2023 00:00:00,29/10/2023 00:00:00,P07-2024
P&V,S106 PROJECTS,S106 EXPENDITURE (REVENUE),S106 EXPENDITURE (REVENUE),4985,"P123411-SERVICE-Cut Back on Access Road at Spitalbrook, Dobbs",23/10/2023 00:00:00,278715,1015,VE0004,PRINCIPAL TREES LTD,25/9/2023 00:00:00,29/10/2023 00:00:00,P07-2024
P&V,"ASSET PROTECTION, MAINT, DEVEL",CAPITAL EXPENDITURE,CAPITAL EXPENDITURE,4990,P122781-SERVICE-Sewardstone - emergency water main repair wor,10/03/2023 00:00,276800,650,SO0400,SOUTHERN GREEN SERVICES LIMITED,25/9/2023 00:00:00,29/10/2023 00:00:00,P07-2024
P&V,"ASSET PROTECTION, MAINT, DEVEL",CAPITAL EXPENDITURE,CAPITAL EXPENDITURE,4990,"P123427-SERVICE-Replace bollards Woddland cabins 4,6,7 & 8 an",10/03/2023 00:00,276824,1960,BR0018,BRADSHAW ELECTRICAL LIMITED,25/9/2023 00:00:00,29/10/2023 00:00:00,P07-2024
P&V,"ASSET PROTECTION, MAINT, DEVEL",CAPITAL EXPENDITURE,CAPITAL EXPENDITURE,4990,P122924-SERVICE-Holyfield farm - investigate for a water leak,29/10/2023 00:00:00,277159,250,MO0041,CAPSER,25/9/2023 00:00:00,29/10/2023 00:00:00,P07-2024
P&V,"ASSET PROTECTION, MAINT, DEVEL",CAPITAL EXPENDITURE,CAPITAL EXPENDITURE,4990,P123135-SERVICE-WWC - Torq stripping od cladding,10/03/2023 00:00,277638,9850,BE0563,BELL GROUP,25/9/2023 00:00:00,29/10/2023 00:00:00,P07-2024
P&V,"ASSET PROTECTION, MAINT, DEVEL",CAPITAL EXPENDITURE,CAPITAL EXPENDITURE,4990,P122524-SERVICE-Dusk to Dawn lighting at Edmonton Campsite,10/03/2023 00:00,277674,6150,BR0018,BRADSHAW ELECTRICAL LIMITED,25/9/2023 00:00:00,29/10/2023 00:00:00,P07-2024
P&V,"ASSET PROTECTION, MAINT, DEVEL",CAPITAL EXPENDITURE,CAPITAL EXPENDITURE,4990,P123428-SERVICE-Dobbs Weir campsite-lamp post & bollard contr,10/03/2023 00:00,277706,3265,BR0018,BRADSHAW ELECTRICAL LIMITED,25/9/2023 00:00:00,29/10/2023 00:00:00,P07-2024
P&V,"ASSET PROTECTION, MAINT, DEVEL",CAPITAL EXPENDITURE,CAPITAL EXPENDITURE,4990,P123218-SERVICE-WWC back gate entrance sign - replacement vin,26/9/2023 00:00:00,277769,325,SI0024,SIGNS EXPRESS (HARLOW),25/9/2023 00:00:00,29/10/2023 00:00:00,P07-2024
P&V,"ASSET PROTECTION, MAINT, DEVEL",CAPITAL EXPENDITURE,CAPITAL EXPENDITURE,4990,P123307-SERVICE-To remove and replace 7 metres x 1.5,10/03/2023 00:00,277772,978,KE0023,KENDALL & SONS LIMITED,25/9/2023 00:00:00,29/10/2023 00:00:00,P07-2024
P&V,"ASSET PROTECTION, MAINT, DEVEL",CAPITAL EXPENDITURE,CAPITAL EXPENDITURE,4990,Stanstead-decking,10/03/2023 00:00,277772,-978,KE0023,KENDALL & SONS LIMITED,25/9/2023 00:00:00,29/10/2023 00:00:00,P07-2024
P&V,"ASSET PROTECTION, MAINT, DEVEL",CAPITAL EXPENDITURE,CAPITAL EXPENDITURE,4990,Stanstead-decking,10/03/2023 00:00,277772,200,KE0023,KENDALL & SONS LIMITED,25/9/2023 00:00:00,29/10/2023 00:00:00,P07-2024
P&V,"ASSET PROTECTION, MAINT, DEVEL",CAPITAL EXPENDITURE,CAPITAL EXPENDITURE,4990,Stanstead-decking,10/03/2023 00:00,277772,778,KE0023,KENDALL & SONS LIMITED,25/9/2023 00:00:00,29/10/2023 00:00:00,P07-2024
P&V,"ASSET PROTECTION, MAINT, DEVEL",CAPITAL EXPENDITURE,CAPITAL EXPENDITURE,4990,Stanstead-decking,10/03/2023 00:00,277773,782,KE0023,KENDALL & SONS LIMITED,25/9/2023 00:00:00,29/10/2023 00:00:00,P07-2024
P&V,"ASSET PROTECTION, MAINT, DEVEL",CAPITAL EXPENDITURE,CAPITAL EXPENDITURE,4990,Stanstead-decking,10/03/2023 00:00,277773,398,KE0023,KENDALL & SONS LIMITED,25/9/2023 00:00:00,29/10/2023 00:00:00,P07-2024
P&V,"ASSET PROTECTION, MAINT, DEVEL",CAPITAL EXPENDITURE,CAPITAL EXPENDITURE,4990,Stanstead-decking,10/03/2023 00:00,277773,-1180,KE0023,KENDALL & SONS LIMITED,25/9/2023 00:00:00,29/10/2023 00:00:00,P07-2024
P&V,"ASSET PROTECTION, MAINT, DEVEL",CAPITAL EXPENDITURE,CAPITAL EXPENDITURE,4990,P123312-SERVICE-Stanstead Marina,10/03/2023 00:00,277773,1180,KE0023,KENDALL & SONS LIMITED,25/9/2023 00:00:00,29/10/2023 00:00:00,P07-2024
P&V,"ASSET PROTECTION, MAINT, DEVEL",CAPITAL EXPENDITURE,CAPITAL EXPENDITURE,4990,Bridge N152-Repair handrails,10/03/2023 00:00,277774,225,KE0023,KENDALL & SONS LIMITED,25/9/2023 00:00:00,29/10/2023 00:00:00,P07-2024
P&V,"ASSET PROTECTION, MAINT, DEVEL",CAPITAL EXPENDITURE,CAPITAL EXPENDITURE,4990,Bridge N152-Repair handrails,10/03/2023 00:00,277774,-790,KE0023,KENDALL & SONS LIMITED,25/9/2023 00:00:00,29/10/2023 00:00:00,P07-2024
P&V,"ASSET PROTECTION, MAINT, DEVEL",CAPITAL EXPENDITURE,CAPITAL EXPENDITURE,4990,P122341-SERVICE-Repair Handrails - Bridge N152,10/03/2023 00:00,277774,790,KE0023,KENDALL & SONS LIMITED,25/9/2023 00:00:00,29/10/2023 00:00:00,P07-2024
P&V,"ASSET PROTECTION, MAINT, DEVEL",CAPITAL EXPENDITURE,CAPITAL EXPENDITURE,4990,Bridge N152-Repair handrails,10/03/2023 00:00,277774,565,KE0023,KENDALL & SONS LIMITED,25/9/2023 00:00:00,29/10/2023 00:00:00,P07-2024
P&V,"ASSET PROTECTION, MAINT, DEVEL",CAPITAL EXPENDITURE,CAPITAL EXPENDITURE,4990,P123085-SERVICE-Pickets lock athletic centre leaking gully,10/03/2023 00:00,277775,2195,KE0023,KENDALL & SONS LIMITED,25/9/2023 00:00:00,29/10/2023 00:00:00,P07-2024
P&V,"ASSET PROTECTION, MAINT, DEVEL",CAPITAL EXPENDITURE,CAPITAL EXPENDITURE,4990,LVAC-Leaking gully,10/03/2023 00:00,277775,1310,KE0023,KENDALL & SONS LIMITED,25/9/2023 00:00:00,29/10/2023 00:00:00,P07-2024
P&V,"ASSET PROTECTION, MAINT, DEVEL",CAPITAL EXPENDITURE,CAPITAL EXPENDITURE,4990,LVAC-Leaking gully,10/03/2023 00:00,277775,885,KE0023,KENDALL & SONS LIMITED,25/9/2023 00:00:00,29/10/2023 00:00:00,P07-2024
P&V,"ASSET PROTECTION, MAINT, DEVEL",CAPITAL EXPENDITURE,CAPITAL EXPENDITURE,4990,LVAC-Leaking gully,10/03/2023 00:00,277775,-2195,KE0023,KENDALL & SONS LIMITED,25/9/2023 00:00:00,29/10/2023 00:00:00,P07-2024
P&V,"ASSET PROTECTION, MAINT, DEVEL",CAPITAL EXPENDITURE,CAPITAL EXPENDITURE,4990,Three Mills-repair stage/decking,10/03/2023 00:00,277776,190,KE0023,KENDALL & SONS LIMITED,25/9/2023 00:00:00,29/10/2023 00:00:00,P07-2024
P&V,"ASSET PROTECTION, MAINT, DEVEL",CAPITAL EXPENDITURE,CAPITAL EXPENDITURE,4990,P121858-SERVICE-Repair Stage/Decking at Three Mills Green,10/03/2023 00:00,277776,800,KE0023,KENDALL & SONS LIMITED,25/9/2023 00:00:00,29/10/2023 00:00:00,P07-2024
P&V,"ASSET PROTECTION, MAINT, DEVEL",CAPITAL EXPENDITURE,CAPITAL EXPENDITURE,4990,Three Mills-repair stage/decking,10/03/2023 00:00,277776,610,KE0023,KENDALL & SONS LIMITED,25/9/2023 00:00:00,29/10/2023 00:00:00,P07-2024
P&V,"ASSET PROTECTION, MAINT, DEVEL",CAPITAL EXPENDITURE,CAPITAL EXPENDITURE,4990,Three Mills-repair stage/decking,10/03/2023 00:00,277776,-800,KE0023,KENDALL & SONS LIMITED,25/9/2023 00:00:00,29/10/2023 00:00:00,P07-2024
P&V,"ASSET PROTECTION, MAINT, DEVEL",CAPITAL EXPENDITURE,CAPITAL EXPENDITURE,4990,P122754-SERVICE-HTC & Velopark camera replacement,10/03/2023 00:00,277909,4818.49,AR0503,ARENA EUROPE LTD,25/9/2023 00:00:00,29/10/2023 00:00:00,P07-2024
P&V,"ASSET PROTECTION, MAINT, DEVEL",CAPITAL EXPENDITURE,CAPITAL EXPENDITURE,4990,Refer to 277423,10/06/2023 00:00,277967,-700,MO0041,CAPSER,25/9/2023 00:00:00,29/10/2023 00:00:00,P07-2024
P&V,"ASSET PROTECTION, MAINT, DEVEL",CAPITAL EXPENDITURE,CAPITAL EXPENDITURE,4990,Refer to 277423,10/06/2023 00:00,277967,-5500,MO0041,CAPSER,25/9/2023 00:00:00,29/10/2023 00:00:00,P07-2024
P&V,"ASSET PROTECTION, MAINT, DEVEL",CAPITAL EXPENDITURE,CAPITAL EXPENDITURE,4990,Refer to 277423,10/06/2023 00:00,277967,6200,MO0041,CAPSER,25/9/2023 00:00:00,29/10/2023 00:00:00,P07-2024
P&V,"ASSET PROTECTION, MAINT, DEVEL",CAPITAL EXPENDITURE,CAPITAL EXPENDITURE,4990,P122694-SERVICE-Springfield Marina Path Renewals,10/06/2023 00:00,277967,-6200,MO0041,CAPSER,25/9/2023 00:00:00,29/10/2023 00:00:00,P07-2024
P&V,"ASSET PROTECTION, MAINT, DEVEL",CAPITAL EXPENDITURE,CAPITAL EXPENDITURE,4990,P122694-SERVICE-Springfield Marina Path Renewals,10/06/2023 00:00,277968,6200,MO0041,CAPSER,25/9/2023 00:00:00,29/10/2023 00:00:00,P07-2024
P&V,"ASSET PROTECTION, MAINT, DEVEL",CAPITAL EXPENDITURE,CAPITAL EXPENDITURE,4990,Springfield-extra path,10/06/2023 00:00,277968,4900,MO0041,CAPSER,25/9/2023 00:00:00,29/10/2023 00:00:00,P07-2024
P&V,"ASSET PROTECTION, MAINT, DEVEL",CAPITAL EXPENDITURE,CAPITAL EXPENDITURE,4990,Springfield-extra path,10/06/2023 00:00,277968,1300,MO0041,CAPSER,25/9/2023 00:00:00,29/10/2023 00:00:00,P07-2024
P&V,"ASSET PROTECTION, MAINT, DEVEL",CAPITAL EXPENDITURE,CAPITAL EXPENDITURE,4990,Springfield-extra path,10/06/2023 00:00,277968,-6200,MO0041,CAPSER,25/9/2023 00:00:00,29/10/2023 00:00:00,P07-2024
P&V,"ASSET PROTECTION, MAINT, DEVEL",CAPITAL EXPENDITURE,CAPITAL EXPENDITURE,4990,P123448-SERVICE-WWC Kayak launch ramp,10/09/2023 00:00,278098,2603.06,GI0137,R & P GIBBS LIMITED,25/9/2023 00:00:00,29/10/2023 00:00:00,P07-2024
P&V,"ASSET PROTECTION, MAINT, DEVEL",CAPITAL EXPENDITURE,CAPITAL EXPENDITURE,4990,P121990-SERVICE-To dismantle and remove from site for license,10/09/2023 00:00,278109,5840,FA0099,FARM & COUNTRY SUPPLIES LTD,25/9/2023 00:00:00,29/10/2023 00:00:00,P07-2024
